﻿Department,Entity,Date,Expense Type,Expense Area,Supplier,Transaction Number,Amount
Home Office,Disclosure and Barring Services,05/01/2024,IT RUN COST,DBS - Disclosure & Barring Service,VODAFONE LTD,2891725-UK10/122023/1980-119598-49369-1-2024,59242.8
Home Office,Disclosure and Barring Services,08/01/2024,CONT OUT SERV OTHER,DBS - Disclosure & Barring Service,ALEXANDER MANN SOLUTIONS LTD,2891825-2952475-560478-6459333-1-2024,77512
Home Office,Disclosure and Barring Services,08/01/2024,CONT OUT SERV OTHER,DBS - Disclosure & Barring Service,ALEXANDER MANN SOLUTIONS LTD,2891799-2952474-560478-7712633-1-2024,92551.6
Home Office,Disclosure and Barring Services,08/01/2024,DBS DIRECT COSTS C2B,DBS - Disclosure & Barring Service,POST OFFICE LTD,2891780-1000/90066219-239462-609225-1-2024,73107
Home Office,Disclosure and Barring Services,09/01/2024,IT RUN COST,DBS - Disclosure & Barring Service,CGI IT UK LTD,2891951-GB014121866-240306-3715845-1-2024,44590.14
Home Office,Disclosure and Barring Services,09/01/2024,IT RUN COST,DBS - Disclosure & Barring Service,CGI IT UK LTD,2891725-GB014120569-240306-28656624-1-2024,343879.49
Home Office,Disclosure and Barring Services,09/01/2024,IT RUN COST,DBS - Disclosure & Barring Service,CGI IT UK LTD,2891725-GB014121902-240306-1015849-1-2024,1219018.8
Home Office,Disclosure and Barring Services,09/01/2024,IT RUN COST,DBS - Disclosure & Barring Service,VODAFONE LTD,2891725-UK10/012024/4675-119598-1552298-1-2024,186275.76
Home Office,Disclosure and Barring Services,10/01/2024,IT RUN COST,DBS - Disclosure & Barring Service,CGI IT UK LTD,2891951-GB014122184-240306-3682687-1-2024,44192.24
Home Office,Disclosure and Barring Services,10/01/2024,IT RUN COST,DBS - Disclosure & Barring Service,CGI IT UK LTD,2891725-GB014122077-240306-8827862-1-2024,105934.34
Home Office,Disclosure and Barring Services,11/01/2024,IT RUN COST,DBS - Disclosure & Barring Service,ORACLE CORPORATION UK LIMITED,2891725-460132300-100642-1797075-1-2024,215649
Home Office,Disclosure and Barring Services,11/01/2024,IT RUN COST,DBS - Disclosure & Barring Service,VODAFONE LTD,2891725-UK10/122023/2030-119598-23796-1-2024,28555.2
Home Office,Disclosure and Barring Services,12/01/2024,CONTINGENT LABOUR OTHER,DBS - Disclosure & Barring Service,ALEXANDER MANN SOLUTIONS LTD,2891809-2955329A-560478-268116-1-2024,3217.39
Home Office,Disclosure and Barring Services,12/01/2024,CONTINGENT LABOUR OTHER,DBS - Disclosure & Barring Service,ALEXANDER MANN SOLUTIONS LTD,2891717-2955329A-560478-323149-1-2024,3877.79
Home Office,Disclosure and Barring Services,12/01/2024,CONTINGENT LABOUR OTHER,DBS - Disclosure & Barring Service,ALEXANDER MANN SOLUTIONS LTD,2891748-2955329A-560478-616729-1-2024,7400.75
Home Office,Disclosure and Barring Services,12/01/2024,CONTINGENT LABOUR OTHER,DBS - Disclosure & Barring Service,ALEXANDER MANN SOLUTIONS LTD,2891944-2955329A-560478-989318-1-2024,11871.81
Home Office,Disclosure and Barring Services,12/01/2024,OTHER,DBS - Disclosure & Barring Service,EPIQ SYSTEMS LTD,2891802-90811769-54047-2226387-1-2024,26716.64
Home Office,Disclosure and Barring Services,15/01/2024,LEGAL ADVICE,DBS - Disclosure & Barring Service,DLA PIPER UK LLP,2891802-9020037983-170627-2978561-1-2024,35742.73
Home Office,Disclosure and Barring Services,15/01/2024,DIRECT COSTS TICKET PRICE,DBS - Disclosure & Barring Service,HINDUJA GLOBAL SOLUTIONS UK LTD,2891780-23-1334-53040-2499571-1-2024,299948.52
Home Office,Disclosure and Barring Services,18/01/2024,DIRECT COSTS POSTAGE,DBS - Disclosure & Barring Service,SWISS POST SOLUTIONS LTD,2891780-1800021024-53641-78891049-1-2024,946692.58
Home Office,Disclosure and Barring Services,19/01/2024,CONTINGENT LABOUR OTHER,DBS - Disclosure & Barring Service,ALEXANDER MANN SOLUTIONS LTD,2891748-2959353A-560478-649245-1-2024,7790.94
Home Office,Disclosure and Barring Services,19/01/2024,CONTINGENT LABOUR OTHER,DBS - Disclosure & Barring Service,ALEXANDER MANN SOLUTIONS LTD,2891717-2959353A-560478-663485-1-2024,7961.82
Home Office,Disclosure and Barring Services,19/01/2024,CONTINGENT LABOUR OTHER,DBS - Disclosure & Barring Service,ALEXANDER MANN SOLUTIONS LTD,2891809-2959353A-560478-697755-1-2024,8373.06
Home Office,Disclosure and Barring Services,19/01/2024,CONTINGENT LABOUR OTHER,DBS - Disclosure & Barring Service,ALEXANDER MANN SOLUTIONS LTD,2891944-2959353A-560478-2124382-1-2024,25492.58
Home Office,Disclosure and Barring Services,22/01/2024,CONTINGENT LABOUR OTHER,DBS - Disclosure & Barring Service,METHODS  BUSINESS AND DIGITAL TECH LTD,2891944-SIN078584-119732-289275-1-2024,34713
Home Office,Disclosure and Barring Services,25/01/2024,IT RUN COST,DBS - Disclosure & Barring Service,CGI IT UK LTD,2891717-GB014121622-240306-3225102-1-2024,38701.22
Home Office,Disclosure and Barring Services,25/01/2024,IT RUN COST,DBS - Disclosure & Barring Service,CGI IT UK LTD,2891959-GB014121619-240306-6492001-1-2024,77904.01
Home Office,Disclosure and Barring Services,25/01/2024,IT RUN COST,DBS - Disclosure & Barring Service,CGI IT UK LTD,2891959-GB014121618-240306-27173239-1-2024,326078.87
Home Office,Disclosure and Barring Services,26/01/2024,CONTINGENT LABOUR OTHER,DBS - Disclosure & Barring Service,ALEXANDER MANN SOLUTIONS LTD,2891809-2963750A-560478-335145-1-2024,4021.74
Home Office,Disclosure and Barring Services,26/01/2024,CONTINGENT LABOUR OTHER,DBS - Disclosure & Barring Service,ALEXANDER MANN SOLUTIONS LTD,2891748-2963750A-560478-649245-1-2024,7790.94
Home Office,Disclosure and Barring Services,26/01/2024,CONTINGENT LABOUR OTHER,DBS - Disclosure & Barring Service,ALEXANDER MANN SOLUTIONS LTD,2891717-2963750A-560478-1074445-1-2024,12893.34
Home Office,Disclosure and Barring Services,26/01/2024,CONTINGENT LABOUR OTHER,DBS - Disclosure & Barring Service,ALEXANDER MANN SOLUTIONS LTD,2891944-2963750A-560478-198787-1-2024,23854.44
Home Office,Disclosure and Barring Services,26/01/2024,EXTERNAL,DBS - Disclosure & Barring Service,KPMG LLP,2891962-5502707171-120914-2176396-1-2024,26116.75
Home Office,Disclosure and Barring Services,26/01/2024,EXTERNAL,DBS - Disclosure & Barring Service,KPMG LLP,2891962-5502707173-120914-2176396-1-2024,26116.75
Home Office,Disclosure and Barring Services,29/01/2024,POLICE DISCLOSURE COSTS,DBS - Disclosure & Barring Service,NATIONAL CRIME AGENCY (NCA),2891776-DISC/NCA/P8/P9/23-343011-3106914-1-2024,31069.14
Home Office,Disclosure and Barring Services,30/01/2024,SYSTEM CLEARING,DBS - Disclosure & Barring Service,CGI IT UK LTD,2891952-GB014123062-240306-5310215-1-2024,63722.58
Home Office,Disclosure and Barring Services,30/01/2024,IT RUN COST,DBS - Disclosure & Barring Service,ENTSERV UK LTD,2891725-6134487-102438-69762746-1-2024,837152.95
Home Office,Disclosure and Barring Services,31/01/2024,DIRECT COSTS TICKET PRICE,DBS - Disclosure & Barring Service,HINDUJA GLOBAL SOLUTIONS UK LTD,2891780-23-1300-53040-314044-1-2024,376852.8
Home Office,Home Office,02/01/2024,CONTINGENT LABOUR OTHER,CD - Corporate & Delivery,ADECCO UK LTD,1682114-29718708-56679-79291-1-2024,951.49
Home Office,Home Office,02/01/2024,CONTINGENT LABOUR OTHER,CD - Corporate & Delivery,ALEXANDER MANN SOLUTIONS LTD,1682114-2949716-560478-15426-1-2024,1851.12
Home Office,Home Office,02/01/2024,CONTINGENT LABOUR OTHER,CD - Corporate & Delivery,ALEXANDER MANN SOLUTIONS LTD,1750000-2949716-560478-31503-1-2024,3780.36
Home Office,Home Office,02/01/2024,CONTINGENT LABOUR OTHER,CD - Corporate & Delivery,ALEXANDER MANN SOLUTIONS LTD,1709106-2949716-560478-73507-1-2024,8820.84
Home Office,Home Office,02/01/2024,CONTINGENT LABOUR OTHER,CD - Corporate & Delivery,ALEXANDER MANN SOLUTIONS LTD,1682113-2949716-560478-866325-1-2024,10395.9
Home Office,Home Office,02/01/2024,CONTINGENT LABOUR OTHER,CD - Corporate & Delivery,ALEXANDER MANN SOLUTIONS LTD,1735100-2949716-560478-1889436-1-2024,22673.23
Home Office,Home Office,03/01/2024,RAIL FARES,CD - Corporate & Delivery,CORPORATE TRAVEL MANAGEMENT (NORTH),0000000-19101-245986-42425219-1-2024,424261.49
Home Office,Home Office,03/01/2024,ENTERPRISE,CD - Corporate & Delivery,ENTERPRISE RENT-A-CAR UK LTD,0000000-34766103-107797-44681023-1-2024,536128.01
Home Office,Home Office,04/01/2024,RAIL FARES,CD - Corporate & Delivery,CORPORATE TRAVEL MANAGEMENT (NORTH),0000000-19120-245986-17563571-1-2024,175636.57
Home Office,Home Office,05/01/2024,CONTINGENT LABOUR OTHER,CD - Corporate & Delivery,ALEXANDER MANN SOLUTIONS LTD,1682113-2952165-560478-173265-1-2024,2079.18
Home Office,Home Office,05/01/2024,CONTINGENT LABOUR OTHER,CD - Corporate & Delivery,ALEXANDER MANN SOLUTIONS LTD,1682114-2952165-560478-281574-1-2024,3378.89
Home Office,Home Office,05/01/2024,CONTINGENT LABOUR OTHER,CD - Corporate & Delivery,ALEXANDER MANN SOLUTIONS LTD,1735100-2952165-560478-98199-1-2024,11783.88
Home Office,Home Office,05/01/2024,ARVAL FUEL,CD - Corporate & Delivery,ALLSTAR BUSINESS SOLUTIONS LTD,0000000-E2018131904-255582-11320278-1-2024,135843.28
Home Office,Home Office,05/01/2024,FULL COST,CD - Corporate & Delivery,BROOK STREET (UK) LTD,1681105-30782870-24-100385-28739-1-2024,344.87
Home Office,Home Office,05/01/2024,FULL COST,CD - Corporate & Delivery,BROOK STREET (UK) LTD,1681500-30782870-24-100385-42735-1-2024,512.82
Home Office,Home Office,05/01/2024,FULL COST,CD - Corporate & Delivery,BROOK STREET (UK) LTD,1686201-30782870-24-100385-328779-1-2024,3945.33
Home Office,Home Office,05/01/2024,FULL COST,CD - Corporate & Delivery,BROOK STREET (UK) LTD,1682114-30782870-24-100385-614957-1-2024,7379.49
Home Office,Home Office,05/01/2024,IT RUN COST,CD - Corporate & Delivery,MADE TECH LTD,1750000-INV004338-56527-42325-1-2024,50790
Home Office,Home Office,05/01/2024,IT RUN COST,CD - Corporate & Delivery,MADE TECH LTD,1750000-INV004269-56527-75875-1-2024,91050
Home Office,Home Office,08/01/2024,CONTINGENT LABOUR OTHER,CD - Corporate & Delivery,ADECCO UK LTD,1682114-29724672-56679-47146-1-2024,565.75
Home Office,Home Office,08/01/2024,CONTINGENT LABOUR OTHER,CD - Corporate & Delivery,ADECCO UK LTD,1686201-29724672-56679-48218-1-2024,578.62
Home Office,Home Office,09/01/2024,AR REFUNDS CTRL,CD - Corporate & Delivery,FOREIGN COMMONWEALTH & DEVELOPMENT OFFICE,0000000-20011260-113026-1004876-1-2024,10048.76
Home Office,Home Office,09/01/2024,ADVICE,CD - Corporate & Delivery,FSP CONSULTING SERVICES LTD,1709106-INV-206530-54884-4567357-1-2024,45673.57
Home Office,Home Office,11/01/2024,AR REFUNDS CTRL,CD - Corporate & Delivery,BOXXE LTD,0000000-INV0027116-100762-82260-1-2024,98712
Home Office,Home Office,11/01/2024,RAIL FARES,CD - Corporate & Delivery,CORPORATE TRAVEL MANAGEMENT (NORTH),0000000-19193-245986-12569356-1-2024,125694.36
Home Office,Home Office,11/01/2024,OFFICE RELATED,CD - Corporate & Delivery,RESTORE PLC,1709106-1438761-549843-3555006-1-2024,35550.06
Home Office,Home Office,11/01/2024,MULTIMEDIA,CD - Corporate & Delivery,STORY UK LTD,1686202-SI0006868ST-52450-31512-1-2024,31512
Home Office,Home Office,12/01/2024,ADVICE,CD - Corporate & Delivery,BLOOM PROCUREMENT SERVICES LTD,1735100-SIN047823-518536-96250-1-2024,115500
Home Office,Home Office,12/01/2024,FULL COST,CD - Corporate & Delivery,BROOK STREET (UK) LTD,1681500-30791401-24-100385-5698-1-2024,683.76
Home Office,Home Office,12/01/2024,FULL COST,CD - Corporate & Delivery,BROOK STREET (UK) LTD,1496251-30791401-24-100385-6747-1-2024,809.64
Home Office,Home Office,12/01/2024,FULL COST,CD - Corporate & Delivery,BROOK STREET (UK) LTD,1681105-30791401-24-100385-102073-1-2024,1224.88
Home Office,Home Office,12/01/2024,FULL COST,CD - Corporate & Delivery,BROOK STREET (UK) LTD,1686201-30791401-24-100385-6679-1-2024,8014.8
Home Office,Home Office,12/01/2024,FULL COST,CD - Corporate & Delivery,BROOK STREET (UK) LTD,1682114-30791401-24-100385-1070898-1-2024,12850.79
Home Office,Home Office,12/01/2024,LEGAL ADVICE,CD - Corporate & Delivery,GOVERNMENT LEGAL DEPARTMENT,1682199-524511-113504-973539-1-2024,97353.9
Home Office,Home Office,12/01/2024,LEGAL ADVICE,CD - Corporate & Delivery,GOVERNMENT LEGAL DEPARTMENT,1682199-526713-113504-10063474-1-2024,100634.74
Home Office,Home Office,12/01/2024,LEGAL ADVICE,CD - Corporate & Delivery,GOVERNMENT LEGAL DEPARTMENT,1682199-530063-113504-1156233-1-2024,115623.3
Home Office,Home Office,12/01/2024,LEGAL ADVICE,CD - Corporate & Delivery,GOVERNMENT LEGAL DEPARTMENT,1682199-528747-113504-11783899-1-2024,117838.99
Home Office,Home Office,12/01/2024,OFFICE RELATED,CD - Corporate & Delivery,IRON MOUNTAIN (UK) LTD,1709106-0800187-116000-35289817-1-2024,352898.17
Home Office,Home Office,12/01/2024,AR REFUNDS CTRL,CD - Corporate & Delivery,SOCITM ADVISORY,0000000-IN0001300-60539-45550-1-2024,54660
Home Office,Home Office,12/01/2024,AR REFUNDS CTRL,CD - Corporate & Delivery,SOCITM ADVISORY,0000000-IN0001333-60539-69690-1-2024,83628
Home Office,Home Office,15/01/2024,CONTINGENT LABOUR OTHER,CD - Corporate & Delivery,ADECCO UK LTD,1686201-29727575-56679-63219-1-2024,758.63
Home Office,Home Office,15/01/2024,CONTINGENT LABOUR OTHER,CD - Corporate & Delivery,ADECCO UK LTD,1682114-29727575-56679-143582-1-2024,1722.99
Home Office,Home Office,16/01/2024,CONTINGENT LABOUR OTHER,CD - Corporate & Delivery,ALEXANDER MANN SOLUTIONS LTD,1682113-2955329-560478-23102-1-2024,2772.24
Home Office,Home Office,16/01/2024,CONTINGENT LABOUR OTHER,CD - Corporate & Delivery,ALEXANDER MANN SOLUTIONS LTD,1735100-2955329-560478-1260484-1-2024,15125.83
Home Office,Home Office,16/01/2024,GCDA,CD - Corporate & Delivery,KINTO UK LTD,0000000-4963737-150319-3522795-1-2024,35227.95
Home Office,Home Office,16/01/2024,GCDA,CD - Corporate & Delivery,KINTO UK LTD,0000000-4963736-150319-13135947-1-2024,157631.51
Home Office,Home Office,17/01/2024,AR REFUNDS CTRL,CD - Corporate & Delivery,GAMMA TELECOM LTD,0000000-GA1721045-194326-2648695-1-2024,31784.34
Home Office,Home Office,17/01/2024,AR REFUNDS CTRL,CD - Corporate & Delivery,GAMMA TELECOM LTD,0000000-GA1754576-194326-4726065-1-2024,56712.78
Home Office,Home Office,17/01/2024,OCCUPATIONAL HEALTH,CD - Corporate & Delivery,HEALIX INTERNATIONAL LTD,1681500-52233-230715-3519547-1-2024,42234.56
Home Office,Home Office,18/01/2024,END USER COMPUTER SOFTWARE,CD - Corporate & Delivery,DUN & BRADSTREET LTD,1735100-CI-00176098-100371-24778-1-2024,29733.6
Home Office,Home Office,19/01/2024,CONTINGENT LABOUR OTHER,CD - Corporate & Delivery,ALEXANDER MANN SOLUTIONS LTD,1709106-2959353-560478-147014-1-2024,1764.17
Home Office,Home Office,19/01/2024,CONTINGENT LABOUR OTHER,CD - Corporate & Delivery,ALEXANDER MANN SOLUTIONS LTD,1682113-2959353-560478-23102-1-2024,2772.24
Home Office,Home Office,19/01/2024,CONTINGENT LABOUR OTHER,CD - Corporate & Delivery,ALEXANDER MANN SOLUTIONS LTD,1750000-2959353-560478-252024-1-2024,3024.29
Home Office,Home Office,19/01/2024,CONTINGENT LABOUR OTHER,CD - Corporate & Delivery,ALEXANDER MANN SOLUTIONS LTD,1682114-2959353-560478-499166-1-2024,5989.99
Home Office,Home Office,19/01/2024,CONTINGENT LABOUR OTHER,CD - Corporate & Delivery,ALEXANDER MANN SOLUTIONS LTD,1735100-2959353-560478-3013286-1-2024,36159.43
Home Office,Home Office,19/01/2024,FULL COST,CD - Corporate & Delivery,BROOK STREET (UK) LTD,1681500-30801357-24-100385-71603-1-2024,859.24
Home Office,Home Office,19/01/2024,FULL COST,CD - Corporate & Delivery,BROOK STREET (UK) LTD,1496251-30801357-24-100385-84186-1-2024,1010.23
Home Office,Home Office,19/01/2024,FULL COST,CD - Corporate & Delivery,BROOK STREET (UK) LTD,1681105-30801357-24-100385-147421-1-2024,1769.04
Home Office,Home Office,19/01/2024,FULL COST,CD - Corporate & Delivery,BROOK STREET (UK) LTD,1686201-30801357-24-100385-971909-1-2024,11662.9
Home Office,Home Office,19/01/2024,FULL COST,CD - Corporate & Delivery,BROOK STREET (UK) LTD,1682114-30801357-24-100385-1470224-1-2024,17642.65
Home Office,Home Office,19/01/2024,AR REFUNDS CTRL,CD - Corporate & Delivery,DELOITTE LLP,0000000-8004269016-112904-627875-1-2024,75345
Home Office,Home Office,19/01/2024,LEGAL ADVICE,CD - Corporate & Delivery,GOVERNMENT LEGAL DEPARTMENT,1682199-532407-113504-9186206-1-2024,91862.06
Home Office,Home Office,19/01/2024,LEGAL ADVICE,CD - Corporate & Delivery,GOVERNMENT LEGAL DEPARTMENT,1682199-531227-113504-10054476-1-2024,100544.76
Home Office,Home Office,19/01/2024,LEGAL ADVICE,CD - Corporate & Delivery,GOVERNMENT LEGAL DEPARTMENT,1682199-533802-113504-14233474-1-2024,142334.74
Home Office,Home Office,19/01/2024,PROCUREMENT CARD - GPC,CD - Corporate & Delivery,RBS,0000000-GPC1901241058-102384-0-1-2024,155566.25
Home Office,Home Office,22/01/2024,CONTINGENT LABOUR OTHER,CD - Corporate & Delivery,ADECCO UK LTD,1686201-29731917-56679-79291-1-2024,951.49
Home Office,Home Office,22/01/2024,CONTINGENT LABOUR OTHER,CD - Corporate & Delivery,ADECCO UK LTD,1682114-29731917-56679-158582-1-2024,1902.98
Home Office,Home Office,23/01/2024,MINOR WORK,CD - Corporate & Delivery,FM SYSTEMS EUROPE,1750000-INV-U12569-52659-49450-1-2024,59340
Home Office,Home Office,23/01/2024,MINOR WORK,CD - Corporate & Delivery,FM SYSTEMS EUROPE,1750000-INV-U12571-52659-87015-1-2024,104418
Home Office,Home Office,23/01/2024,CONTINGENT LABOUR OTHER,CD - Corporate & Delivery,VERACITY OSI UK LIMITED,1752000-INV-00001842-50153-186600-1-2024,223920
Home Office,Home Office,24/01/2024,RAIL FARES,CD - Corporate & Delivery,CORPORATE TRAVEL MANAGEMENT (NORTH),0000000-19213-245986-109929106-1-2024,1099725.18
Home Office,Home Office,24/01/2024,IT RUN COST,CD - Corporate & Delivery,KPMG LLP,1684110-5502766364-120914-55936-1-2024,67123.2
Home Office,Home Office,26/01/2024,CONTINGENT LABOUR OTHER,CD - Corporate & Delivery,ALEXANDER MANN SOLUTIONS LTD,1682114-2963750-560478-15426-1-2024,1851.12
Home Office,Home Office,26/01/2024,CONTINGENT LABOUR OTHER,CD - Corporate & Delivery,ALEXANDER MANN SOLUTIONS LTD,1682113-2963750-560478-288775-1-2024,3465.3
Home Office,Home Office,26/01/2024,CONTINGENT LABOUR OTHER,CD - Corporate & Delivery,ALEXANDER MANN SOLUTIONS LTD,1709106-2963750-560478-367535-1-2024,4410.42
Home Office,Home Office,26/01/2024,CONTINGENT LABOUR OTHER,CD - Corporate & Delivery,ALEXANDER MANN SOLUTIONS LTD,1735100-2963750-560478-2381078-1-2024,28572.94
Home Office,Home Office,26/01/2024,AR REFUNDS CTRL,CD - Corporate & Delivery,BOXXE LTD,0000000-INV0031254-100762-73163403-1-2024,877960.85
Home Office,Home Office,26/01/2024,FULL COST,CD - Corporate & Delivery,BROOK STREET (UK) LTD,1496251-30816320-24-100385-6804-1-2024,816.48
Home Office,Home Office,26/01/2024,FULL COST,CD - Corporate & Delivery,BROOK STREET (UK) LTD,1681500-30816320-24-100385-71435-1-2024,857.22
Home Office,Home Office,26/01/2024,FULL COST,CD - Corporate & Delivery,BROOK STREET (UK) LTD,1681105-30816320-24-100385-147112-1-2024,1765.34
Home Office,Home Office,26/01/2024,FULL COST,CD - Corporate & Delivery,BROOK STREET (UK) LTD,1686201-30816320-24-100385-954959-1-2024,11459.47
Home Office,Home Office,26/01/2024,FULL COST,CD - Corporate & Delivery,BROOK STREET (UK) LTD,1682114-30816320-24-100385-1486587-1-2024,17839.02
Home Office,Home Office,26/01/2024,RECRUITMENT ADVERTISING,CD - Corporate & Delivery,CABINET OFFICE,1686202-3836713-113009-318185-1-2024,31818.5
Home Office,Home Office,26/01/2024,AUDIT SERVICES,CD - Corporate & Delivery,GOVERNMENT INTERNAL AUDIT AGENCY (GIAA),1757075-46162-467816-644750-1-2024,644750
Home Office,Home Office,26/01/2024,EXTERNAL,CD - Corporate & Delivery,HM TREASURY,1752000-46160-113038-125000-1-2024,125000
Home Office,Home Office,26/01/2024,AR REFUNDS CTRL,CD - Corporate & Delivery,KPMG LLP,0000000-5502752585-120914-121808-1-2024,146169.6
Home Office,Home Office,26/01/2024,AR REFUNDS CTRL,CD - Corporate & Delivery,MIGRANT HELPLINE LTD T/A MIGRANT HELPLINE,0000000-2505-214026-324996721-1-2024,3899960.65
Home Office,Home Office,26/01/2024,AR REFUNDS CTRL,CD - Corporate & Delivery,MINISTRY OF DEFENCE,0000000-7751813-192639-1575000-1-2024,1575000
Home Office,Home Office,29/01/2024,CONTINGENT LABOUR OTHER,CD - Corporate & Delivery,ADECCO UK LTD,1686201-29736445-56679-79291-1-2024,951.49
Home Office,Home Office,29/01/2024,CONTINGENT LABOUR OTHER,CD - Corporate & Delivery,ADECCO UK LTD,1682114-29736445-56679-158582-1-2024,1902.98
Home Office,Home Office,29/01/2024,RECRUITMENT ADVERTISING,CD - Corporate & Delivery,CABINET OFFICE,1686202-3836809-113009-105720308-1-2024,1057203.08
Home Office,Home Office,29/01/2024,EXTERNAL,CD - Corporate & Delivery,ERNST AND YOUNG LLP,1433006-GB01G000501815-113852-69218-1-2024,69218
Home Office,Home Office,29/01/2024,AUDIT SERVICES,CD - Corporate & Delivery,GOVERNMENT INTERNAL AUDIT AGENCY (GIAA),1417701-46185-467816-7597473-1-2024,75974.73
Home Office,Home Office,30/01/2024,EXTERNAL,CD - Corporate & Delivery,CABINET OFFICE,1735100-3831803-113009-30500-1-2024,30500
Home Office,Home Office,30/01/2024,EXTERNAL,CD - Corporate & Delivery,CABINET OFFICE,1735100-3831804-113009-113300-1-2024,113300
Home Office,Home Office,30/01/2024,OTHER ICT COSTS,CD - Corporate & Delivery,FCDO SERVICES,1709106-70008226-162152-5880314-1-2024,58803.14
Home Office,Home Office,30/01/2024,OTHER ICT COSTS,CD - Corporate & Delivery,FCDO SERVICES,1709106-70008227-162152-16209185-1-2024,162091.85
Home Office,Home Office,30/01/2024,OCCUPATIONAL HEALTH,CD - Corporate & Delivery,HEALTH MANAGEMENT LTD,1151500-INV549948-215148-6009334-1-2024,72112.01
Home Office,Home Office,30/01/2024,IT RUN COST,CD - Corporate & Delivery,SHARED SERVICES CONNECTED LTD (SSCL),1751064-100042646-378790-228068-1-2024,273681.6
Home Office,Home Office,30/01/2024,IT RUN COST,CD - Corporate & Delivery,SHARED SERVICES CONNECTED LTD (SSCL),1751064-100042863-378790-74519678-1-2024,745196.78
Home Office,Home Office,30/01/2024,IT RUN COST,CD - Corporate & Delivery,SHARED SERVICES CONNECTED LTD (SSCL),1751064-100042645-378790-149299016-1-2024,1492990.16
Home Office,Home Office,31/01/2024,ADVICE,CD - Corporate & Delivery,CABINET OFFICE,1735100-3836873-113009-538875-1-2024,64665
Home Office,Home Office,16/01/2024,AD PRODUCTION,COMMS - Communications Directorate,STORY UK LTD,1810000-SI0006944ST-52450-30300-1-2024,30300
Home Office,Home Office,16/01/2024,AD PRODUCTION,COMMS - Communications Directorate,WAVEMAKER LIMITED,1810000-M38002-534582-50000-1-2024,50000
Home Office,Home Office,19/01/2024,AD PRODUCTION,COMMS - Communications Directorate,FCB INFERNO LIMITED,1810000-9045014862-523379-331684-1-2024,33168.4
Home Office,Home Office,31/01/2024,AD PRODUCTION,COMMS - Communications Directorate,STORY UK LTD,1810000-SI0006991ST-52450-4937638-1-2024,49376.38
Home Office,Home Office,02/01/2024,CONTINGENT LABOUR OTHER,HSG - Homeland Security Group,ALEXANDER MANN SOLUTIONS LTD,1283024-2949716-560478-398634-1-2024,4783.61
Home Office,Home Office,02/01/2024,CONTINGENT LABOUR OTHER,HSG - Homeland Security Group,ALEXANDER MANN SOLUTIONS LTD,1283020-2949716-560478-798517-1-2024,9582.2
Home Office,Home Office,08/01/2024,CONFERENCES,HSG - Homeland Security Group,CALDER CONFERENCES LTD,1282019-513534-112824-3046685-1-2024,36560.22
Home Office,Home Office,09/01/2024,BUILDING SERVICE CHARGES,HSG - Homeland Security Group,CAPITA BUSINESS SERVICES LTD,1283002-6004163617-138018-6589875-1-2024,79078.5
Home Office,Home Office,09/01/2024,OTHER,HSG - Homeland Security Group,FERA SCIENCE LTD,1283002-6138069473-414818-3580514-1-2024,35805.14
Home Office,Home Office,09/01/2024,OTHER,HSG - Homeland Security Group,FERA SCIENCE LTD,1283002-6138069472-414818-6336846-1-2024,63368.46
Home Office,Home Office,12/01/2024,IT RUN COST,HSG - Homeland Security Group,TOPLEVEL COMPUTING LTD,1283002-19130850-102136-23324-1-2024,27988.8
Home Office,Home Office,15/01/2024,ADVICE,HSG - Homeland Security Group,PRICE WATERHOUSE COOPERS LLP,1286523-1356099455-112713-512325-1-2024,51232.5
Home Office,Home Office,16/01/2024,CONTINGENT LABOUR OTHER,HSG - Homeland Security Group,ALEXANDER MANN SOLUTIONS LTD,1433609-2955329-560478-122184-1-2024,1466.21
Home Office,Home Office,16/01/2024,CONTINGENT LABOUR OTHER,HSG - Homeland Security Group,ALEXANDER MANN SOLUTIONS LTD,1283024-2955329-560478-131908-1-2024,1582.9
Home Office,Home Office,16/01/2024,CONTINGENT LABOUR OTHER,HSG - Homeland Security Group,ALEXANDER MANN SOLUTIONS LTD,1282027-2955329-560478-157515-1-2024,1890.18
Home Office,Home Office,16/01/2024,CONTINGENT LABOUR OTHER,HSG - Homeland Security Group,ALEXANDER MANN SOLUTIONS LTD,1283020-2955329-560478-223788-1-2024,2685.46
Home Office,Home Office,17/01/2024,SYSTEM CLEARING,HSG - Homeland Security Group,NAIMURI LTD,1282033-3699-54310-3074092-1-2024,30740.92
Home Office,Home Office,17/01/2024,IT RUN COST,HSG - Homeland Security Group,NAIMURI LTD,1282033-3709-54310-11662947-1-2024,116629.47
Home Office,Home Office,17/01/2024,MULTIMEDIA,HSG - Homeland Security Group,ONE TWO AGENCY LTD,1283020-00001-103176-24947-1-2024,24947
Home Office,Home Office,18/01/2024,RESEARCH AND DEVELOPMENT,HSG - Homeland Security Group,CT CENTRE (MOD) LTD T/A DSTL,1282033-10002934-208273-2373546-1-2024,23735.46
Home Office,Home Office,19/01/2024,CONTINGENT LABOUR OTHER,HSG - Homeland Security Group,ALEXANDER MANN SOLUTIONS LTD,1283024-2959353-560478-263815-1-2024,3165.78
Home Office,Home Office,19/01/2024,CONTINGENT LABOUR OTHER,HSG - Homeland Security Group,ALEXANDER MANN SOLUTIONS LTD,1282027-2959353-560478-283527-1-2024,3402.32
Home Office,Home Office,19/01/2024,CONTINGENT LABOUR OTHER,HSG - Homeland Security Group,ALEXANDER MANN SOLUTIONS LTD,1433609-2959353-560478-429609-1-2024,5155.31
Home Office,Home Office,19/01/2024,CONTINGENT LABOUR OTHER,HSG - Homeland Security Group,ALEXANDER MANN SOLUTIONS LTD,1283020-2959353-560478-756498-1-2024,9077.97
Home Office,Home Office,19/01/2024,FULL COST,HSG - Homeland Security Group,BROOK STREET (UK) LTD,1283020-30801357-24-100385-47712-1-2024,572.54
Home Office,Home Office,19/01/2024,IT RUN COST,HSG - Homeland Security Group,LEONARDO UK LTD,1433609-90245135-154349-27945-1-2024,33534
Home Office,Home Office,19/01/2024,SYSTEM CLEARING,HSG - Homeland Security Group,LEONARDO UK LTD,1433609-90245135-154349-89862707-1-2024,1078352.48
Home Office,Home Office,19/01/2024,BASIC SALARY,HSG - Homeland Security Group,POLICE & CRIME COMMISSIONER FOR SUSSEX (THE),1287000-1800052847-112720-342059-1-2024,34205.9
Home Office,Home Office,22/01/2024,RESEARCH AND DEVELOPMENT,HSG - Homeland Security Group,ALEXANDER MANN SOLUTIONS LTD,1283002-2960386-560478-25000-1-2024,30000
Home Office,Home Office,22/01/2024,EXTERNAL,HSG - Homeland Security Group,CSL - KPMG LLP,1286005-5502765250-478245-2693559-1-2024,26935.59
Home Office,Home Office,22/01/2024,OTHER,HSG - Homeland Security Group,CT CENTRE (MOD) LTD T/A DSTL,1283002-10002947-208273-5328635-1-2024,53286.35
Home Office,Home Office,24/01/2024,OTHER,HSG - Homeland Security Group,CT CENTRE (MOD) LTD T/A DSTL,1283002-10002998-208273-48406175-1-2024,484061.75
Home Office,Home Office,24/01/2024,OTHER,HSG - Homeland Security Group,CT CENTRE (MOD) LTD T/A DSTL,1283002-10002997-208273-61036995-1-2024,610369.95
Home Office,Home Office,24/01/2024,OTHER,HSG - Homeland Security Group,CT CENTRE (MOD) LTD T/A DSTL,1283002-10002996-208273-64817018-1-2024,648170.18
Home Office,Home Office,26/01/2024,CONTINGENT LABOUR OTHER,HSG - Homeland Security Group,ALEXANDER MANN SOLUTIONS LTD,1282027-2963750-560478-157515-1-2024,1890.18
Home Office,Home Office,26/01/2024,CONTINGENT LABOUR OTHER,HSG - Homeland Security Group,ALEXANDER MANN SOLUTIONS LTD,1283024-2963750-560478-263815-1-2024,3165.78
Home Office,Home Office,26/01/2024,CONTINGENT LABOUR OTHER,HSG - Homeland Security Group,ALEXANDER MANN SOLUTIONS LTD,1433609-2963750-560478-464238-1-2024,5570.86
Home Office,Home Office,26/01/2024,CONTINGENT LABOUR OTHER,HSG - Homeland Security Group,ALEXANDER MANN SOLUTIONS LTD,1283020-2963750-560478-962658-1-2024,11551.89
Home Office,Home Office,26/01/2024,CONTINGENT LABOUR OTHER,HSG - Homeland Security Group,ALEXANDER MANN SOLUTIONS LTD,1285006-2964818-560478-54821-1-2024,65785.2
Home Office,Home Office,26/01/2024,FULL COST,HSG - Homeland Security Group,BROOK STREET (UK) LTD,1283020-30816320-24-100385-47712-1-2024,572.54
Home Office,Home Office,26/01/2024,DEFENCE,HSG - Homeland Security Group,MINISTRY OF DEFENCE,1283002-7754651-192639-1575000-1-2024,1575000
Home Office,Home Office,29/01/2024,OTHER,HSG - Homeland Security Group,CT CENTRE (MOD) LTD T/A DSTL,1283002-10003011-208273-48212176-1-2024,482121.76
Home Office,Home Office,29/01/2024,RESEARCH AND DEVELOPMENT,HSG - Homeland Security Group,MAYORS OFFICE FOR POLICING AND CRIME (MOPC),1282000-9411053467-100548-47675109-1-2024,476751.09
Home Office,Home Office,30/01/2024,SYSTEM CLEARING,HSG - Homeland Security Group,LEONARDO UK LTD,1433609-90245502-154349-37315726-1-2024,447788.71
Home Office,Home Office,16/01/2024,LEGAL ADVICE,LS - Legal Services,GOVERNMENT LEGAL DEPARTMENT,1870000-A4104-113504-284500-1-2024,284500
Home Office,Home Office,16/01/2024,LEGAL ADVICE,LS - Legal Services,GOVERNMENT LEGAL DEPARTMENT,1870000-A4103-113504-2930250-1-2024,2930250
Home Office,Home Office,02/01/2024,CONTINGENT LABOUR OTHER,MBG - Migration & Borders Group,ALEXANDER MANN SOLUTIONS LTD,1771104-2949716-560478-17064-1-2024,2047.68
Home Office,Home Office,02/01/2024,CONTINGENT LABOUR OTHER,MBG - Migration & Borders Group,ALEXANDER MANN SOLUTIONS LTD,1771058-2949716-560478-400356-1-2024,4804.27
Home Office,Home Office,02/01/2024,CONTINGENT LABOUR OTHER,MBG - Migration & Borders Group,ALEXANDER MANN SOLUTIONS LTD,1771101-2949716-560478-569735-1-2024,6836.82
Home Office,Home Office,02/01/2024,CONTINGENT LABOUR OTHER,MBG - Migration & Borders Group,ALEXANDER MANN SOLUTIONS LTD,1771116-2949716-560478-1266903-1-2024,15202.84
Home Office,Home Office,02/01/2024,OTHER ICT COSTS,MBG - Migration & Borders Group,ENTRUST CORPORATION,1701015-4010993-59373-9292195-1-2024,92921.95
Home Office,Home Office,02/01/2024,PERSONNEL RELATED,MBG - Migration & Borders Group,REED IN PARTNERSHIP LTD,1771124-140667-59633-7946617-1-2024,79466.17
Home Office,Home Office,02/01/2024,PERSONNEL RELATED,MBG - Migration & Borders Group,REED IN PARTNERSHIP LTD,1771124-140668-59633-20791077-1-2024,207910.77
Home Office,Home Office,03/01/2024,PERSONNEL RELATED,MBG - Migration & Borders Group,PALLADIUM INTERNATIONAL LIMITED,1771124-319270-L9-0009-526764-9891202-1-2024,98912.02
Home Office,Home Office,04/01/2024,PERSONNEL RELATED,MBG - Migration & Borders Group,INTERNATIONAL RESCUE COMMITTEE UK,1771124-IRC0212-59614-6368771-1-2024,63687.71
Home Office,Home Office,05/01/2024,CONTINGENT LABOUR OTHER,MBG - Migration & Borders Group,ALEXANDER MANN SOLUTIONS LTD,1771116-2952165-560478-272696-1-2024,3272.36
Home Office,Home Office,05/01/2024,IT,MBG - Migration & Borders Group,BLOOM PROCUREMENT SERVICES LTD,1771115-SIN048034-518536-9261053-1-2024,111132.64
Home Office,Home Office,05/01/2024,IT,MBG - Migration & Borders Group,BLOOM PROCUREMENT SERVICES LTD,1771115-SIN047970-518536-91883986-1-2024,1102607.83
Home Office,Home Office,05/01/2024,OTHER ICT COSTS,MBG - Migration & Borders Group,PA CONSULTING SERVICES LTD,1431882-0000028854-100039-18785-1-2024,18785
Home Office,Home Office,05/01/2024,OTHER ICT COSTS,MBG - Migration & Borders Group,PA CONSULTING SERVICES LTD,1701015-0000028854-100039-33969864-1-2024,339698.64
Home Office,Home Office,08/01/2024,SYSTEM CLEARING,MBG - Migration & Borders Group,ALEXANDER MANN SOLUTIONS LTD,1701015-2952472-560478-90507-1-2024,90507
Home Office,Home Office,08/01/2024,ADVICE,MBG - Migration & Borders Group,CLOUD KUBED UK,1771116-INV-0169-59459-66500-1-2024,79800
Home Office,Home Office,08/01/2024,PERSONNEL RELATED,MBG - Migration & Borders Group,GET SKILLS EMPLOYMENT & TRAINING LTD,1771124-INV-0928-59591-6275192-1-2024,62751.92
Home Office,Home Office,08/01/2024,SYSTEM CLEARING,MBG - Migration & Borders Group,MASTEK (UK) LTD,1701015-90399195-351665-90476-1-2024,108571.2
Home Office,Home Office,08/01/2024,SYSTEM CLEARING,MBG - Migration & Borders Group,MASTEK (UK) LTD,1701015-90399091-351665-1195956-1-2024,143514.72
Home Office,Home Office,08/01/2024,IN COUNTRY ESCORT,MBG - Migration & Borders Group,MITIE CARE & CUSTODY LTD,1431122-186797/92944570-243944-4581162-1-2024,45811.62
Home Office,Home Office,08/01/2024,ADVICE,MBG - Migration & Borders Group,NEWTON EUROPE LTD,1771144-SIN003166-60579-987500-1-2024,1185000
Home Office,Home Office,09/01/2024,OTHER ICT COSTS,MBG - Migration & Borders Group,ACCENTURE (UK) LTD,1701015-3003644471-106767-315135-1-2024,315135
Home Office,Home Office,09/01/2024,IT RUN COST,MBG - Migration & Borders Group,CONEXIA LTD,1771058-6032642406-158585-515-1-2024,618
Home Office,Home Office,09/01/2024,CONTINGENT LABOUR OTHER,MBG - Migration & Borders Group,CONEXIA LTD,1771119-6032642406-158585-21630-1-2024,25956
Home Office,Home Office,09/01/2024,FCO CHARGES,MBG - Migration & Borders Group,FOREIGN COMMONWEALTH & DEVELOPMENT OFFICE,1771008-20011260-113026--27938-1-2024,-2793.8
Home Office,Home Office,10/01/2024,SYSTEM CLEARING,MBG - Migration & Borders Group,COGNIZANT WORLDWIDE LTD,1701015-CW101-0001658883-468613-1682125-1-2024,168212.5
Home Office,Home Office,11/01/2024,OTHER ICT COSTS,MBG - Migration & Borders Group,DELOITTE LLP,1701015-8004338158-112904-115500-1-2024,115500
Home Office,Home Office,11/01/2024,OTHER ICT COSTS,MBG - Migration & Borders Group,DELOITTE LLP,1701015-8004338159-112904-115500-1-2024,115500
Home Office,Home Office,11/01/2024,OTHER ICT COSTS,MBG - Migration & Borders Group,DELOITTE LLP,1701015-8004338160-112904-115500-1-2024,115500
Home Office,Home Office,11/01/2024,SYSTEM CLEARING,MBG - Migration & Borders Group,DELOITTE LLP,1701015-8004338158-112904-116500-1-2024,116500
Home Office,Home Office,11/01/2024,SYSTEM CLEARING,MBG - Migration & Borders Group,DELOITTE LLP,1701015-8004338159-112904-116500-1-2024,116500
Home Office,Home Office,11/01/2024,SYSTEM CLEARING,MBG - Migration & Borders Group,DELOITTE LLP,1701015-8004338160-112904-116500-1-2024,116500
Home Office,Home Office,11/01/2024,RESEARCH AND DEVELOPMENT,MBG - Migration & Borders Group,IFF RESEARCH LTD,1771105-0018160-106307-283116-1-2024,33973.92
Home Office,Home Office,12/01/2024,SYSTEM CLEARING,MBG - Migration & Borders Group,BJSS LIMITED,1701015-INV-UK027142-508104-11977625-1-2024,143731.5
Home Office,Home Office,12/01/2024,OTHER ICT COSTS,MBG - Migration & Borders Group,PA CONSULTING SERVICES LTD,1701015-0000029386-100039-148293-1-2024,148293
Home Office,Home Office,15/01/2024,PERSONNEL RELATED,MBG - Migration & Borders Group,BIG INTEGRATION PARTNERSHIP,1407007-HO019-57594-201000-1-2024,201000
Home Office,Home Office,16/01/2024,CONTINGENT LABOUR OTHER,MBG - Migration & Borders Group,ALEXANDER MANN SOLUTIONS LTD,1771058-2955329-560478-433719-1-2024,5204.63
Home Office,Home Office,16/01/2024,CONTINGENT LABOUR OTHER,MBG - Migration & Borders Group,ALEXANDER MANN SOLUTIONS LTD,1771116-2955329-560478-454495-1-2024,5453.94
Home Office,Home Office,16/01/2024,OTHER ICT COSTS,MBG - Migration & Borders Group,CLARASYS LTD,1701015-INV105179-56484-2855449-1-2024,28554.49
Home Office,Home Office,16/01/2024,ADVICE,MBG - Migration & Borders Group,CLOUD KUBED UK,1771116-INV-0172-59459-252605-1-2024,303126
Home Office,Home Office,16/01/2024,SYSTEM CLEARING,MBG - Migration & Borders Group,DELOITTE LLP,1701015-8004237097-112904-103135-1-2024,103135
Home Office,Home Office,16/01/2024,FCO CHARGES,MBG - Migration & Borders Group,FOREIGN COMMONWEALTH & DEVELOPMENT OFFICE,1771008-20012712-113026-6517-1-2024,65.17
Home Office,Home Office,16/01/2024,FCO CHARGES,MBG - Migration & Borders Group,FOREIGN COMMONWEALTH & DEVELOPMENT OFFICE,1862106-20012712-113026-332372-1-2024,3323.72
Home Office,Home Office,16/01/2024,RESEARCH AND DEVELOPMENT,MBG - Migration & Borders Group,IPSOS (MARKET RESEARCH) LTD,1771105-24000059-106668-23250-1-2024,27900
Home Office,Home Office,17/01/2024,SYSTEM CLEARING,MBG - Migration & Borders Group,ACCENTURE (UK) LTD,1701015-3003645880-106767-2135600-1-2024,2135600
Home Office,Home Office,17/01/2024,SYSTEM CLEARING,MBG - Migration & Borders Group,FUJITSU SERVICES LTD,1701015-1010008413-106173-163052-1-2024,195662.4
Home Office,Home Office,17/01/2024,SYSTEM CLEARING,MBG - Migration & Borders Group,FUJITSU SERVICES LTD,1701015-1010008411-106173-177925-1-2024,213510
Home Office,Home Office,17/01/2024,SYSTEM CLEARING,MBG - Migration & Borders Group,FUJITSU SERVICES LTD,1701015-1010008412-106173-182003-1-2024,218403.6
Home Office,Home Office,17/01/2024,SYSTEM CLEARING,MBG - Migration & Borders Group,IBM UNITED KINGDOM LTD,1701015-5811230846-101457-32190-1-2024,32190
Home Office,Home Office,18/01/2024,OTHER ICT COSTS,MBG - Migration & Borders Group,CAPGEMINI UK PLC,1701015-2600110405247-112696-62000-1-2024,62000
Home Office,Home Office,18/01/2024,IT RUN COST,MBG - Migration & Borders Group,PA CONSULTING SERVICES LTD,1701015-0000029242-100039-147726-1-2024,177271.2
Home Office,Home Office,19/01/2024,CONTINGENT LABOUR OTHER,MBG - Migration & Borders Group,ALEXANDER MANN SOLUTIONS LTD,1771104-2959353-560478-273024-1-2024,3276.29
Home Office,Home Office,19/01/2024,CONTINGENT LABOUR OTHER,MBG - Migration & Borders Group,ALEXANDER MANN SOLUTIONS LTD,1771116-2959353-560478-1136235-1-2024,13634.82
Home Office,Home Office,19/01/2024,OTHER ICT COSTS,MBG - Migration & Borders Group,CAPGEMINI UK PLC,1701015-2600110405350-112696-12081298-1-2024,120812.98
Home Office,Home Office,19/01/2024,OTHER ICT COSTS,MBG - Migration & Borders Group,CAPGEMINI UK PLC,1701015-2600110405366-112696-12451641-1-2024,149419.7
Home Office,Home Office,19/01/2024,SYSTEM CLEARING,MBG - Migration & Borders Group,KINTO UK LTD,1431879-2685277-150319-2674873-1-2024,32098.47
Home Office,Home Office,19/01/2024,IT RUN COST,MBG - Migration & Borders Group,LEIDOS INNOVATIONS UK LTD,1701015-INV02-000633517-136199-2361185-1-2024,28334.22
Home Office,Home Office,19/01/2024,PERSONNEL RELATED,MBG - Migration & Borders Group,THE GROWTH COMPANY,1771124-6093454-56410-13534146-1-2024,135341.46
Home Office,Home Office,22/01/2024,IT,MBG - Migration & Borders Group,ALEXANDER MANN SOLUTIONS LTD,1771098-2960383-560478-8586488-1-2024,103037.86
Home Office,Home Office,22/01/2024,ADVICE,MBG - Migration & Borders Group,CLOUD KUBED UK,1771144-INV-0173-59459-81225-1-2024,97470
Home Office,Home Office,22/01/2024,ADVICE,MBG - Migration & Borders Group,CLOUD KUBED UK,1771116-INV-0174-59459-164255-1-2024,197106
Home Office,Home Office,22/01/2024,ADVICE,MBG - Migration & Borders Group,CLOUD KUBED UK,1771116-INV-0175-59459-174705-1-2024,209646
Home Office,Home Office,22/01/2024,ADVICE,MBG - Migration & Borders Group,CLOUD KUBED UK,1771116-INV-0176-59459-183255-1-2024,219906
Home Office,Home Office,22/01/2024,ADVICE,MBG - Migration & Borders Group,CLOUD KUBED UK,1771116-INV-0177-59459-363455-1-2024,436146
Home Office,Home Office,22/01/2024,PERSONNEL RELATED,MBG - Migration & Borders Group,REED IN PARTNERSHIP LTD,1771124-140940-59633-8824108-1-2024,88241.08
Home Office,Home Office,23/01/2024,OTHER ICT COSTS,MBG - Migration & Borders Group,6POINT6 LTD,1701015-3946-338678-138505-1-2024,138505
Home Office,Home Office,23/01/2024,OTHER ICT COSTS,MBG - Migration & Borders Group,6POINT6 LTD,1701015-3931-338678-9650475-1-2024,965047.5
Home Office,Home Office,23/01/2024,IT,MBG - Migration & Borders Group,BARINGA PARTNERS LLP,1771098-37091-58339-16416475-1-2024,196997.7
Home Office,Home Office,23/01/2024,FCO CHARGES,MBG - Migration & Borders Group,FOREIGN COMMONWEALTH & DEVELOPMENT OFFICE,1771008-20012850-113026-8657-1-2024,86.57
Home Office,Home Office,23/01/2024,PERSONNEL RELATED,MBG - Migration & Borders Group,INTERNATIONAL RESCUE COMMITTEE UK,1771124-IRC0215-59614-6491519-1-2024,64915.19
Home Office,Home Office,23/01/2024,SYSTEM CLEARING,MBG - Migration & Borders Group,LEIDOS INNOVATIONS UK LTD,1701015-INV02-000650644-136199-177947704-1-2024,1779477.04
Home Office,Home Office,23/01/2024,OTHER ICT COSTS,MBG - Migration & Borders Group,PA CONSULTING SERVICES LTD,1431882-0000029542-100039-18785-1-2024,18785
Home Office,Home Office,23/01/2024,OTHER ICT COSTS,MBG - Migration & Borders Group,PA CONSULTING SERVICES LTD,1701015-0000029394-100039-46850-1-2024,56220
Home Office,Home Office,23/01/2024,OTHER ICT COSTS,MBG - Migration & Borders Group,PA CONSULTING SERVICES LTD,1701015-0000029415-100039-231500-1-2024,277800
Home Office,Home Office,23/01/2024,OTHER ICT COSTS,MBG - Migration & Borders Group,PA CONSULTING SERVICES LTD,1701015-0000029542-100039-32181288-1-2024,321812.88
Home Office,Home Office,23/01/2024,SYSTEM CLEARING,MBG - Migration & Borders Group,PA CONSULTING SERVICES LTD,1701015-0000029533-100039-540462-1-2024,540462
Home Office,Home Office,23/01/2024,PERSONNEL RELATED,MBG - Migration & Borders Group,REED IN PARTNERSHIP LTD,1771124-140941-59633-23249481-1-2024,232494.81
Home Office,Home Office,24/01/2024,IT RUN COST,MBG - Migration & Borders Group,BJSS LIMITED,1701015-INV-UK027437-508104-970475-1-2024,116457
Home Office,Home Office,24/01/2024,OTHER ICT COSTS,MBG - Migration & Borders Group,CAPGEMINI UK PLC,1701015-2600110405970-112696-503250-1-2024,503250
Home Office,Home Office,24/01/2024,SYSTEM CLEARING,MBG - Migration & Borders Group,ENTRUST CORPORATION,1701015-7192724-59373-118000-1-2024,118000
Home Office,Home Office,24/01/2024,OTHER ICT COSTS,MBG - Migration & Borders Group,ENTRUST CORPORATION,1701015-4011077-59373-12760598-1-2024,127605.98
Home Office,Home Office,24/01/2024,PERSONNEL RELATED,MBG - Migration & Borders Group,GET SKILLS EMPLOYMENT & TRAINING LTD,1771124-INV-0955-59591-7177372-1-2024,71773.72
Home Office,Home Office,24/01/2024,OTHER ICT COSTS,MBG - Migration & Borders Group,METHODS  BUSINESS AND DIGITAL TECH LTD,1701015-SIN078482-119732-61190-1-2024,73428
Home Office,Home Office,24/01/2024,OTHER ICT COSTS,MBG - Migration & Borders Group,METHODS  BUSINESS AND DIGITAL TECH LTD,1701015-SIN078483-119732-7315875-1-2024,87790.5
Home Office,Home Office,25/01/2024,OTHER ICT COSTS,MBG - Migration & Borders Group,CAPGEMINI UK PLC,1701015-2600110405530-112696-7260387-1-2024,72603.87
Home Office,Home Office,25/01/2024,OTHER ICT COSTS,MBG - Migration & Borders Group,CLARASYS LTD,1701015-INV105257-56484-10395-1-2024,12474
Home Office,Home Office,25/01/2024,OTHER ICT COSTS,MBG - Migration & Borders Group,CLARASYS LTD,1771112-INV105257-56484-10780-1-2024,12936
Home Office,Home Office,25/01/2024,OTHER ICT COSTS,MBG - Migration & Borders Group,CLARASYS LTD,1771112-INV105192-56484-12320-1-2024,14784
Home Office,Home Office,25/01/2024,OTHER ICT COSTS,MBG - Migration & Borders Group,CLARASYS LTD,1701015-INV105192-56484-31749-1-2024,38098.8
Home Office,Home Office,25/01/2024,SYSTEM CLEARING,MBG - Migration & Borders Group,DEPARTMENT FOR WORK & PENSIONS (DWP),1701015-4024109-148757-63998-1-2024,76797.6
Home Office,Home Office,25/01/2024,SYSTEM CLEARING,MBG - Migration & Borders Group,DEPARTMENT FOR WORK & PENSIONS (DWP),1701015-4024108-148757-80233-1-2024,96279.6
Home Office,Home Office,25/01/2024,SYSTEM CLEARING,MBG - Migration & Borders Group,MASTEK (UK) LTD,1701015-90399421-351665-3833447-1-2024,383344.7
Home Office,Home Office,25/01/2024,CONTINGENT LABOUR OTHER,MBG - Migration & Borders Group,PARETO FRONTIERS LTD,1771116-020-59295-28500-1-2024,34200
Home Office,Home Office,25/01/2024,PERSONNEL RELATED,MBG - Migration & Borders Group,TWIN TRAINING INTERNATIONAL LTD,1771124-REP LOT 5 008-59600-7402079-1-2024,74020.79
Home Office,Home Office,25/01/2024,SYSTEM CLEARING,MBG - Migration & Borders Group,WE ARE SNOOK LTD,1701015-91481128-54458-54200-1-2024,54200
Home Office,Home Office,26/01/2024,CONTINGENT LABOUR OTHER,MBG - Migration & Borders Group,ALEXANDER MANN SOLUTIONS LTD,1771104-2963750-560478-204768-1-2024,2457.22
Home Office,Home Office,26/01/2024,CONTINGENT LABOUR OTHER,MBG - Migration & Borders Group,ALEXANDER MANN SOLUTIONS LTD,1771058-2963750-560478-633897-1-2024,7606.76
Home Office,Home Office,26/01/2024,CONTINGENT LABOUR OTHER,MBG - Migration & Borders Group,ALEXANDER MANN SOLUTIONS LTD,1771116-2963750-560478-1136235-1-2024,13634.82
Home Office,Home Office,26/01/2024,SYSTEM CLEARING,MBG - Migration & Borders Group,DELOITTE LLP,1701015-8004387046-112904-70000-1-2024,70000
Home Office,Home Office,26/01/2024,PERSONNEL RELATED,MBG - Migration & Borders Group,MAXIMUS UK SERVICES LTD,1771124-5956-59613-11944486-1-2024,119444.86
Home Office,Home Office,26/01/2024,PERSONNEL RELATED,MBG - Migration & Borders Group,MAXIMUS UK SERVICES LTD,1771124-5955-59613-1435719-1-2024,143571.9
Home Office,Home Office,29/01/2024,ADVICE,MBG - Migration & Borders Group,CAPGEMINI UK PLC,1771116-2600110405204-112696-2281225-1-2024,273747
Home Office,Home Office,29/01/2024,ADVICE,MBG - Migration & Borders Group,CAPGEMINI UK PLC,1771116-2600110405172-112696-1729000-1-2024,2074800
Home Office,Home Office,29/01/2024,OTHER ICT COSTS,MBG - Migration & Borders Group,DELOITTE LLP,1701015-8004386708-112904-28506405-1-2024,342076.86
Home Office,Home Office,29/01/2024,OTHER ICT COSTS,MBG - Migration & Borders Group,DELOITTE LLP,1701015-8004387557-112904-820000-1-2024,984000
Home Office,Home Office,29/01/2024,ADVICE,MBG - Migration & Borders Group,NEWTON EUROPE LTD,1771144-SIN003207-60579-987500-1-2024,1185000
Home Office,Home Office,30/01/2024,IT RUN COST,MBG - Migration & Borders Group,CABINET OFFICE,1701015-3836579-113009-10733437-1-2024,128801.24
Home Office,Home Office,30/01/2024,SYSTEM CLEARING,MBG - Migration & Borders Group,CAPGEMINI UK PLC,1701015-2600110406745-112696-2687106-1-2024,32245.28
Home Office,Home Office,30/01/2024,OTHER ICT COSTS,MBG - Migration & Borders Group,CAPGEMINI UK PLC,1771116-2600110406746-112696-428564-1-2024,42856.4
Home Office,Home Office,30/01/2024,SYSTEM CLEARING,MBG - Migration & Borders Group,CAPGEMINI UK PLC,1701015-2600110405196-112696-6323673-1-2024,63236.73
Home Office,Home Office,30/01/2024,SYSTEM CLEARING,MBG - Migration & Borders Group,CAPGEMINI UK PLC,1701015-2600110406769-112696-6280355-1-2024,75364.26
Home Office,Home Office,30/01/2024,SYSTEM CLEARING,MBG - Migration & Borders Group,CAPGEMINI UK PLC,1701015-2600110406786-112696-1278681-1-2024,153441.72
Home Office,Home Office,30/01/2024,SYSTEM CLEARING,MBG - Migration & Borders Group,CAPGEMINI UK PLC,1701015-2600110406802-112696-31122798-1-2024,373473.58
Home Office,Home Office,30/01/2024,SYSTEM CLEARING,MBG - Migration & Borders Group,CAPGEMINI UK PLC,1701015-2600110406803-112696-3370557-1-2024,404466.84
Home Office,Home Office,30/01/2024,SYSTEM CLEARING,MBG - Migration & Borders Group,DELOITTE LLP,1701015-8004387037-112904-58250-1-2024,58250
Home Office,Home Office,30/01/2024,OTHER ICT COSTS,MBG - Migration & Borders Group,DELOITTE LLP,1701015-8004387037-112904-61500-1-2024,61500
Home Office,Home Office,30/01/2024,SYSTEM CLEARING,MBG - Migration & Borders Group,MASTEK (UK) LTD,1701015-90399440-351665-51190-1-2024,51190
Home Office,Home Office,30/01/2024,OTHER ICT COSTS,MBG - Migration & Borders Group,MASTEK (UK) LTD,1701015-90399443-351665-4505732-1-2024,450573.2
Home Office,Home Office,30/01/2024,SYSTEM CLEARING,MBG - Migration & Borders Group,MASTEK (UK) LTD,1701015-90399442-351665-535538-1-2024,535538
Home Office,Home Office,31/01/2024,SYSTEM CLEARING,MBG - Migration & Borders Group,BJSS LIMITED,1701015-INV-UK027441-508104-9502491-1-2024,114029.89
Home Office,Home Office,31/01/2024,SYSTEM CLEARING,MBG - Migration & Borders Group,BJSS LIMITED,1701015-INV-UK027165-508104-12159893-1-2024,145918.72
Home Office,Home Office,31/01/2024,SYSTEM CLEARING,MBG - Migration & Borders Group,BJSS LIMITED,1701015-INV-UK027143-508104-13810347-1-2024,165724.16
Home Office,Home Office,31/01/2024,OTHER ICT COSTS,MBG - Migration & Borders Group,CAPGEMINI UK PLC,1701015-2600110406770-112696-2904569-1-2024,29045.69
Home Office,Home Office,31/01/2024,SYSTEM CLEARING,MBG - Migration & Borders Group,MASTEK (UK) LTD,1701015-90399438-351665-90273088-1-2024,902730.88
Home Office,Home Office,02/01/2024,CONTINGENT LABOUR OTHER,PSG - Public Safety Group,ALEXANDER MANN SOLUTIONS LTD,1486609-2949716-560478-65331-1-2024,7839.72
Home Office,Home Office,02/01/2024,CONTINGENT LABOUR OTHER,PSG - Public Safety Group,ALEXANDER MANN SOLUTIONS LTD,1830007-2949716-560478-1003032-1-2024,12036.38
Home Office,Home Office,02/01/2024,CONTINGENT LABOUR OTHER,PSG - Public Safety Group,ALEXANDER MANN SOLUTIONS LTD,1892018-2949716-560478-1027763-1-2024,12333.16
Home Office,Home Office,02/01/2024,SYSTEM CLEARING,PSG - Public Safety Group,ALEXANDER MANN SOLUTIONS LTD,1892014-2950555-560478-30833-1-2024,30833
Home Office,Home Office,02/01/2024,SYSTEM CLEARING,PSG - Public Safety Group,ALEXANDER MANN SOLUTIONS LTD,1892014-2950548-560478-30833-1-2024,36999.6
Home Office,Home Office,02/01/2024,SYSTEM CLEARING,PSG - Public Safety Group,ALEXANDER MANN SOLUTIONS LTD,1892014-2950556-560478-3898125-1-2024,38981.25
Home Office,Home Office,02/01/2024,CONTINGENT LABOUR OTHER,PSG - Public Safety Group,ALEXANDER MANN SOLUTIONS LTD,1892014-2949716-560478-4115262-1-2024,49383.15
Home Office,Home Office,02/01/2024,CONTINGENT LABOUR OTHER,PSG - Public Safety Group,ALEXANDER MANN SOLUTIONS LTD,1262100-2949716-560478-542258-1-2024,54225.8
Home Office,Home Office,02/01/2024,SYSTEM CLEARING,PSG - Public Safety Group,ALEXANDER MANN SOLUTIONS LTD,1261001-2950549-560478-93582-1-2024,93582
Home Office,Home Office,02/01/2024,SYSTEM CLEARING,PSG - Public Safety Group,ALEXANDER MANN SOLUTIONS LTD,1892014-2950547-560478-45219198-1-2024,542630.38
Home Office,Home Office,02/01/2024,SYSTEM CLEARING,PSG - Public Safety Group,CGI IT UK LTD,1892014-GB014121608-240306-14805163-1-2024,177661.96
Home Office,Home Office,02/01/2024,SYSTEM CLEARING,PSG - Public Safety Group,PA CONSULTING SERVICES LTD,1892014-0000029232-100039-353287-1-2024,423944.4
Home Office,Home Office,03/01/2024,SYSTEM CLEARING,PSG - Public Safety Group,ALEXANDER MANN SOLUTIONS LTD,1261001-2938005-560478-93582-1-2024,93582
Home Office,Home Office,03/01/2024,SYSTEM CLEARING,PSG - Public Safety Group,ALEXANDER MANN SOLUTIONS LTD,1892016-2942337-560478-45675767-1-2024,456757.67
Home Office,Home Office,03/01/2024,SYSTEM CLEARING,PSG - Public Safety Group,EE LTD,1262100-1800316602-425623-9780064-1-2024,97800.64
Home Office,Home Office,03/01/2024,IT RUN COST,PSG - Public Safety Group,FUJITSU SERVICES LTD,1262100-1010008549-106173-20053659-1-2024,200536.59
Home Office,Home Office,03/01/2024,IT RUN COST,PSG - Public Safety Group,LEIDOS INNOVATIONS UK LTD,1486609-INV02-000633506-136199-4827957-1-2024,48279.57
Home Office,Home Office,03/01/2024,MEDALS,PSG - Public Safety Group,ROYAL MINT,1205011-RML-SINF-608567-101036-42900-1-2024,51480
Home Office,Home Office,03/01/2024,MEDALS,PSG - Public Safety Group,ROYAL MINT,1205011-RML-SINF-608566-101036-63000-1-2024,75600
Home Office,Home Office,04/01/2024,RESEARCH AND DEVELOPMENT,PSG - Public Safety Group,DELOITTE LLP,1286565-8004237317-112904-11147542-1-2024,133770.5
Home Office,Home Office,04/01/2024,SYSTEM CLEARING,PSG - Public Safety Group,FIMATIX UK LTD,1892014-INV-2006-56521-1233375-1-2024,123337.5
Home Office,Home Office,04/01/2024,IT RUN COST,PSG - Public Safety Group,IBM UNITED KINGDOM LTD,1486609-5812231910-101457-30895975-1-2024,308959.75
Home Office,Home Office,04/01/2024,RESEARCH AND DEVELOPMENT,PSG - Public Safety Group,ITAD LTD,1286565-SIL007110-57425-10231624-1-2024,122779.49
Home Office,Home Office,04/01/2024,IT RUN COST,PSG - Public Safety Group,LEIDOS INNOVATIONS UK LTD,1486609-INV02-000618802-136199-10164582-1-2024,101645.82
Home Office,Home Office,04/01/2024,AD PRODUCTION,PSG - Public Safety Group,OMNICOM MEDIA GROUP UK,1292511-F42700-258111-2434369-1-2024,24343.69
Home Office,Home Office,04/01/2024,AD PRODUCTION,PSG - Public Safety Group,OMNICOM MEDIA GROUP UK,1292511-F35592-258111-11400004-1-2024,114000.04
Home Office,Home Office,04/01/2024,AD PRODUCTION,PSG - Public Safety Group,OMNICOM MEDIA GROUP UK,1292511-F39735-258111-16566551-1-2024,165665.51
Home Office,Home Office,04/01/2024,RESEARCH AND DEVELOPMENT,PSG - Public Safety Group,TORCHLIGHT GROUP LTD,1286565-TLG-001726-50792-10091111-1-2024,121093.33
Home Office,Home Office,04/01/2024,IT RUN COST,PSG - Public Safety Group,VODAFONE LTD,1830007-392886-119598-17261479-1-2024,207137.75
Home Office,Home Office,05/01/2024,CONTINGENT LABOUR OTHER,PSG - Public Safety Group,ALEXANDER MANN SOLUTIONS LTD,1892014-2952165-560478-340293-1-2024,4083.52
Home Office,Home Office,05/01/2024,CONTINGENT LABOUR OTHER,PSG - Public Safety Group,ALEXANDER MANN SOLUTIONS LTD,1262100-2952165-560478-535533-1-2024,5355.33
Home Office,Home Office,05/01/2024,CONTINGENT LABOUR OTHER,PSG - Public Safety Group,ALEXANDER MANN SOLUTIONS LTD,1892008-2952165-560478-188827-1-2024,22659.23
Home Office,Home Office,05/01/2024,FULL COST,PSG - Public Safety Group,BROOK STREET (UK) LTD,1295014-30782870-24-100385-106288-1-2024,1275.46
Home Office,Home Office,05/01/2024,FULL COST,PSG - Public Safety Group,BROOK STREET (UK) LTD,1295054-30782870-24-100385-777272-1-2024,9327.27
Home Office,Home Office,05/01/2024,SYSTEM CLEARING,PSG - Public Safety Group,IBM UNITED KINGDOM LTD,1486609-5801240006-101457-87681-1-2024,87681
Home Office,Home Office,05/01/2024,IT RUN COST,PSG - Public Safety Group,IBM UNITED KINGDOM LTD,1486609-5801240007-101457-3343755-1-2024,334375.5
Home Office,Home Office,05/01/2024,IT RUN COST,PSG - Public Safety Group,MASTEK (UK) LTD,1486609-90399224-351665-29741898-1-2024,327160.88
Home Office,Home Office,05/01/2024,ADVICE,PSG - Public Safety Group,QINETIQ LTD,1233011-117074506-112688-10144902-1-2024,121738.82
Home Office,Home Office,05/01/2024,OTHER GOVERNMENT DEPARTMENTS,PSG - Public Safety Group,SUFFOLK COUNTY COUNCIL,1292511-9538336-177916-3466403-1-2024,34664.03
Home Office,Home Office,08/01/2024,IT RUN COST,PSG - Public Safety Group,IDENTITY E2E LTD,1486609-101911-384232-32942-1-2024,395.3
Home Office,Home Office,08/01/2024,IT RUN COST,PSG - Public Safety Group,IDENTITY E2E LTD,1486609-101911-384232-4845-1-2024,5329.5
Home Office,Home Office,08/01/2024,SYSTEM CLEARING,PSG - Public Safety Group,IDENTITY E2E LTD,1486609-101911-384232-460350-1-2024,460350
Home Office,Home Office,08/01/2024,RESEARCH AND DEVELOPMENT,PSG - Public Safety Group,QINETIQ LTD,1230011-117073533-112688-9294382-1-2024,111532.58
Home Office,Home Office,09/01/2024,SYSTEM CLEARING,PSG - Public Safety Group,AIRWAVE SOLUTIONS LTD,1262100-HO-073-153581-59560502-1-2024,595605.02
Home Office,Home Office,09/01/2024,SYSTEM CLEARING,PSG - Public Safety Group,CGI IT UK LTD,1892017-GB014121860-240306-23444-1-2024,23444
Home Office,Home Office,09/01/2024,IT RUN COST,PSG - Public Safety Group,CGI IT UK LTD,1200122-GB014121837-240306-364595-1-2024,36459.5
Home Office,Home Office,09/01/2024,CURRENT GRANTS TO OVERSEAS BODIES,PSG - Public Safety Group,FOREIGN COMMONWEALTH & DEVELOPMENT OFFICE,1286565-20011260-113026-2479-1-2024,24.79
Home Office,Home Office,09/01/2024,CURRENT GRANTS TO CENTRAL GOVERNMENT,PSG - Public Safety Group,FOREIGN COMMONWEALTH & DEVELOPMENT OFFICE,1286565-20012074-113026-28023-1-2024,280.23
Home Office,Home Office,09/01/2024,ADVICE,PSG - Public Safety Group,FOREIGN COMMONWEALTH & DEVELOPMENT OFFICE,1286565-20012074-113026-293202-1-2024,2932.02
Home Office,Home Office,09/01/2024,ADVICE,PSG - Public Safety Group,FOREIGN COMMONWEALTH & DEVELOPMENT OFFICE,1286565-20011260-113026-298771-1-2024,2987.71
Home Office,Home Office,09/01/2024,TRANSFERS,PSG - Public Safety Group,FOREIGN COMMONWEALTH & DEVELOPMENT OFFICE,1286565-20012074-113026-563531-1-2024,5635.31
Home Office,Home Office,09/01/2024,TRANSFERS,PSG - Public Safety Group,FOREIGN COMMONWEALTH & DEVELOPMENT OFFICE,1286565-20011260-113026-1495772-1-2024,14957.72
Home Office,Home Office,09/01/2024,MISCELLANEOUS EXPENDITURE,PSG - Public Safety Group,FOREIGN COMMONWEALTH & DEVELOPMENT OFFICE,1286565-20012074-113026-66000-1-2024,66000
Home Office,Home Office,09/01/2024,CURRENT GRANTS TO OVERSEAS BODIES,PSG - Public Safety Group,FOREIGN COMMONWEALTH & DEVELOPMENT OFFICE,1286565-20012074-113026-29162583-1-2024,291625.83
Home Office,Home Office,09/01/2024,IT RUN COST,PSG - Public Safety Group,MASTEK (UK) LTD,1486609-90399225-351665-16824-1-2024,16824
Home Office,Home Office,09/01/2024,SYSTEM CLEARING,PSG - Public Safety Group,MASTEK (UK) LTD,1486609-90399225-351665-11143469-1-2024,111434.69
Home Office,Home Office,09/01/2024,LEGAL ADVICE,PSG - Public Safety Group,TLT LLP,1262100-1414385-56259-4592208-1-2024,45922.08
Home Office,Home Office,09/01/2024,LEGAL ADVICE,PSG - Public Safety Group,TLT LLP,1262100-1414273-56259-6205028-1-2024,62050.28
Home Office,Home Office,09/01/2024,LEGAL ADVICE,PSG - Public Safety Group,TLT LLP,1262100-1422030-56259-8010617-1-2024,80106.17
Home Office,Home Office,09/01/2024,LEGAL ADVICE,PSG - Public Safety Group,TLT LLP,1262100-1415709-56259-12873347-1-2024,128733.47
Home Office,Home Office,09/01/2024,RESEARCH AND DEVELOPMENT,PSG - Public Safety Group,UNIVERSITY OF CENTRAL LANCASHIRE,1292511-5114221-158472-7977739-1-2024,95732.87
Home Office,Home Office,10/01/2024,IT RUN COST,PSG - Public Safety Group,AKHTER COMPUTERS LTD,1892014-SI0080581-102603-24014156-1-2024,288169.87
Home Office,Home Office,10/01/2024,IT RUN COST,PSG - Public Safety Group,BAE SYSTEMS APPLIED INTELLIGENCE LIMITED,1892024-1001057739-136604-54945-1-2024,54945
Home Office,Home Office,10/01/2024,IT RUN COST,PSG - Public Safety Group,BAE SYSTEMS APPLIED INTELLIGENCE LIMITED,1892023-1001058362-136604-8562662-1-2024,85626.62
Home Office,Home Office,10/01/2024,OTHER GOVERNMENT DEPARTMENTS,PSG - Public Safety Group,GREATER MANCHESTER COMBINED AUTHORITY,1292511-617932-261812-5409566-1-2024,54095.66
Home Office,Home Office,10/01/2024,SYSTEM CLEARING,PSG - Public Safety Group,LEIDOS INNOVATIONS UK LTD,1486609-INV02-000618827-136199-3044005-1-2024,30440.05
Home Office,Home Office,10/01/2024,IT RUN COST,PSG - Public Safety Group,LEIDOS INNOVATIONS UK LTD,1486609-INV02-000644748-136199-2900489-1-2024,34805.87
Home Office,Home Office,10/01/2024,IT RUN COST,PSG - Public Safety Group,MASTEK (UK) LTD,1486609-90398963-351665-24114764-1-2024,265262.4
Home Office,Home Office,10/01/2024,TRANSFERS,PSG - Public Safety Group,NATIONAL CRIME AGENCY (NCA),1233013-SI\031241-343011-232806242-1-2024,2328062.42
Home Office,Home Office,10/01/2024,IT RUN COST,PSG - Public Safety Group,OFFICE OF THE POLICE & CRIME COMMISSIONER FOR WARWICKSHIRE,1892008-W0060288-101736-26799-1-2024,26799
Home Office,Home Office,10/01/2024,ADVICE,PSG - Public Safety Group,QINETIQ LTD,1830007-117074265-112688-9192938-1-2024,91929.38
Home Office,Home Office,10/01/2024,SYSTEM CLEARING,PSG - Public Safety Group,SPECIALIST COMPUTER CENTRES PLC,1892016-OP/ N503067-100774-3142151-1-2024,31421.51
Home Office,Home Office,10/01/2024,SYSTEM CLEARING,PSG - Public Safety Group,SPECIALIST COMPUTER CENTRES PLC,1892016-OP/ N503772-100774-5770222-1-2024,57702.22
Home Office,Home Office,10/01/2024,SYSTEM CLEARING,PSG - Public Safety Group,SPECIALIST COMPUTER CENTRES PLC,1892016-OP/ N503066-100774-173040-1-2024,173040
Home Office,Home Office,10/01/2024,IT RUN COST,PSG - Public Safety Group,VODAFONE LTD,1262100-UK10/012024/3360-119598-21352-1-2024,21352
Home Office,Home Office,10/01/2024,IT RUN COST,PSG - Public Safety Group,VODAFONE LTD,1262100-1000002758-119598-4894418-1-2024,48944.18
Home Office,Home Office,10/01/2024,IT RUN COST,PSG - Public Safety Group,VODAFONE LTD,1262100-1000002761-119598-4894418-1-2024,48944.18
Home Office,Home Office,11/01/2024,SYSTEM CLEARING,PSG - Public Safety Group,ALEXANDER MANN SOLUTIONS LTD,1892018-2950546-560478-22336-1-2024,22336
Home Office,Home Office,11/01/2024,IT RUN COST,PSG - Public Safety Group,ALEXANDER MANN SOLUTIONS LTD,1892023-2933619-560478-51910-1-2024,51910
Home Office,Home Office,11/01/2024,IT RUN COST,PSG - Public Safety Group,CERTUS ADVISORY LIMITED,1262100-466-566163-26490-1-2024,26490
Home Office,Home Office,11/01/2024,IT RUN COST,PSG - Public Safety Group,CERTUS ADVISORY LIMITED,1262116-465-566163-4026989-1-2024,48323.87
Home Office,Home Office,11/01/2024,IT RUN COST,PSG - Public Safety Group,CERTUS ADVISORY LIMITED,1262100-465-566163-7839763-1-2024,78397.63
Home Office,Home Office,11/01/2024,OTHER GOVERNMENT DEPARTMENTS,PSG - Public Safety Group,GREATER MANCHESTER COMBINED AUTHORITY,1292511-617379-261812-10896671-1-2024,108966.71
Home Office,Home Office,11/01/2024,IT RUN COST,PSG - Public Safety Group,IBM UNITED KINGDOM LTD,1486609-5801240040-101457-19550297-1-2024,195502.97
Home Office,Home Office,11/01/2024,SYSTEM CLEARING,PSG - Public Safety Group,METHODS  BUSINESS AND DIGITAL TECH LTD,1892011-SIN079044-119732-2403875-1-2024,24038.75
Home Office,Home Office,11/01/2024,IT RUN COST,PSG - Public Safety Group,REPLY LTD,1892014-3231002487-311787-42950-1-2024,51540
Home Office,Home Office,11/01/2024,LEGAL ADVICE,PSG - Public Safety Group,TLT LLP,1262100-1438189-56259-3865402-1-2024,38654.02
Home Office,Home Office,11/01/2024,LEGAL ADVICE,PSG - Public Safety Group,TLT LLP,1262100-1418611-56259-3957448-1-2024,39574.48
Home Office,Home Office,11/01/2024,IT RUN COST,PSG - Public Safety Group,VODAFONE LTD,1262100-UK10/122023/922-119598-21352-1-2024,21352
Home Office,Home Office,12/01/2024,SYSTEM CLEARING,PSG - Public Safety Group,ALEXANDER MANN SOLUTIONS LTD,1892014-2956224-560478-22575-1-2024,27090
Home Office,Home Office,12/01/2024,SYSTEM CLEARING,PSG - Public Safety Group,ALEXANDER MANN SOLUTIONS LTD,1892014-2956225-560478-22575-1-2024,27090
Home Office,Home Office,12/01/2024,SYSTEM CLEARING,PSG - Public Safety Group,ALEXANDER MANN SOLUTIONS LTD,1892014-2956212-560478-45625-1-2024,54750
Home Office,Home Office,12/01/2024,FULL COST,PSG - Public Safety Group,BROOK STREET (UK) LTD,1220012-30791401-24-100385-74928-1-2024,899.14
Home Office,Home Office,12/01/2024,FULL COST,PSG - Public Safety Group,BROOK STREET (UK) LTD,1295014-30791401-24-100385-142071-1-2024,1704.85
Home Office,Home Office,12/01/2024,FULL COST,PSG - Public Safety Group,BROOK STREET (UK) LTD,1295054-30791401-24-100385-1347223-1-2024,16166.7
Home Office,Home Office,12/01/2024,OTHER GOVERNMENT DEPARTMENTS,PSG - Public Safety Group,EAST SUSSEX FIRE AUTHORITY,1292511-8022002730-447190-508893-1-2024,50889.3
Home Office,Home Office,12/01/2024,IT RUN COST,PSG - Public Safety Group,IDENTITY E2E LTD,1262100-101912-384232-9277875-1-2024,92778.75
Home Office,Home Office,12/01/2024,SYSTEM CLEARING,PSG - Public Safety Group,NETCOMPANY UK LIMITED,1892019-NCUK62776-465524-15201875-1-2024,152018.75
Home Office,Home Office,12/01/2024,IT RUN COST,PSG - Public Safety Group,PA CONSULTING SERVICES LTD,1262100-0000029221-100039-97080-1-2024,97080
Home Office,Home Office,12/01/2024,IT RUN COST,PSG - Public Safety Group,ROKE MANOR RESEARCH LIMITED,1262100-90034002-101796-53827-1-2024,53827
Home Office,Home Office,12/01/2024,LEGAL ADVICE,PSG - Public Safety Group,TLT LLP,1262100-1419486-56259-24150-1-2024,24150
Home Office,Home Office,12/01/2024,LEGAL ADVICE,PSG - Public Safety Group,TLT LLP,1262100-1419210-56259-2856341-1-2024,28563.41
Home Office,Home Office,12/01/2024,LEGAL ADVICE,PSG - Public Safety Group,TLT LLP,1262100-1418606-56259-7045935-1-2024,70459.35
Home Office,Home Office,12/01/2024,LEGAL ADVICE,PSG - Public Safety Group,TLT LLP,1262100-1419475-56259-16146635-1-2024,161466.35
Home Office,Home Office,15/01/2024,RESEARCH AND DEVELOPMENT,PSG - Public Safety Group,HM REVENUE & CUSTOMS,1286565-18000052092023-187546-64375-1-2024,64375
Home Office,Home Office,15/01/2024,IT RUN COST,PSG - Public Safety Group,VODAFONE LTD,1830007-10521521-119598-3194401-1-2024,383328.12
Home Office,Home Office,16/01/2024,CONTINGENT LABOUR OTHER,PSG - Public Safety Group,ALEXANDER MANN SOLUTIONS LTD,1892018-2955329-560478-147462-1-2024,1769.55
Home Office,Home Office,16/01/2024,CONTINGENT LABOUR OTHER,PSG - Public Safety Group,ALEXANDER MANN SOLUTIONS LTD,1862112-2955329-560478-251762-1-2024,3021.15
Home Office,Home Office,16/01/2024,CONTINGENT LABOUR OTHER,PSG - Public Safety Group,ALEXANDER MANN SOLUTIONS LTD,1830007-2955329-560478-411786-1-2024,4941.44
Home Office,Home Office,16/01/2024,CONTINGENT LABOUR OTHER,PSG - Public Safety Group,ALEXANDER MANN SOLUTIONS LTD,1486609-2955329-560478-56304-1-2024,6756.48
Home Office,Home Office,16/01/2024,CONTINGENT LABOUR OTHER,PSG - Public Safety Group,ALEXANDER MANN SOLUTIONS LTD,1892023-2955329-560478-781652-1-2024,9379.83
Home Office,Home Office,16/01/2024,CONTINGENT LABOUR OTHER,PSG - Public Safety Group,ALEXANDER MANN SOLUTIONS LTD,1892008-2955329-560478-199346-1-2024,23921.53
Home Office,Home Office,16/01/2024,CONTINGENT LABOUR OTHER,PSG - Public Safety Group,ALEXANDER MANN SOLUTIONS LTD,1262100-2955329-560478-5712544-1-2024,57125.44
Home Office,Home Office,16/01/2024,CONTINGENT LABOUR OTHER,PSG - Public Safety Group,ALEXANDER MANN SOLUTIONS LTD,1892014-2955329-560478-11226766-1-2024,134721.31
Home Office,Home Office,16/01/2024,RESEARCH,PSG - Public Safety Group,CM MONITOR LTD T/A BRITAIN THINKS,1292511-4168-1-407109-50000-1-2024,60000
Home Office,Home Office,16/01/2024,IT RUN COST,PSG - Public Safety Group,EE LTD,1262100-1800332182-425623-18856706-1-2024,188567.06
Home Office,Home Office,16/01/2024,SYSTEM CLEARING,PSG - Public Safety Group,EMPIRIC SOLUTIONS LIMITED,1892009-SI0000079422-515778-63000-1-2024,63000
Home Office,Home Office,16/01/2024,CURRENT GRANTS TO OVERSEAS BODIES,PSG - Public Safety Group,FOREIGN COMMONWEALTH & DEVELOPMENT OFFICE,1286565-20012712-113026-1294-1-2024,12.94
Home Office,Home Office,16/01/2024,TRANSFERS,PSG - Public Safety Group,FOREIGN COMMONWEALTH & DEVELOPMENT OFFICE,1286565-20012712-113026-25965-1-2024,259.65
Home Office,Home Office,16/01/2024,CURRENT GRANTS TO CENTRAL GOVERNMENT,PSG - Public Safety Group,FOREIGN COMMONWEALTH & DEVELOPMENT OFFICE,1286565-20012712-113026-130734-1-2024,1307.34
Home Office,Home Office,16/01/2024,ADVICE,PSG - Public Safety Group,FOREIGN COMMONWEALTH & DEVELOPMENT OFFICE,1286565-20012712-113026-533988-1-2024,5339.88
Home Office,Home Office,16/01/2024,FCO CHARGES,PSG - Public Safety Group,FOREIGN COMMONWEALTH & DEVELOPMENT OFFICE,1862114-20012712-113026-1062742-1-2024,10627.42
Home Office,Home Office,16/01/2024,PUBLIC OPIN SURVEY,PSG - Public Safety Group,IPSOS (MARKET RESEARCH) LTD,1200122-24000020-106668-34052-1-2024,34052
Home Office,Home Office,16/01/2024,IT RUN COST,PSG - Public Safety Group,MASON ADVISORY LTD,1262100-INV004493-51190-30559833-1-2024,305598.33
Home Office,Home Office,16/01/2024,AD PRODUCTION,PSG - Public Safety Group,OMNICOM MEDIA GROUP UK,1230011-F42699-258111-2482286-1-2024,24822.86
Home Office,Home Office,16/01/2024,AD PRODUCTION,PSG - Public Safety Group,OMNICOM MEDIA GROUP UK,1230011-F41080-258111-5739352-1-2024,57393.52
Home Office,Home Office,16/01/2024,OTHER GOVERNMENT DEPARTMENTS,PSG - Public Safety Group,WEST MIDLANDS FIRE AND RESCUE AUTHORITY,1292511-571016-512573-14277382-1-2024,142773.82
Home Office,Home Office,17/01/2024,IT RUN COST,PSG - Public Safety Group,BAE SYSTEMS APPLIED INTELLIGENCE LIMITED,1892008-1001058360-136604-36670-1-2024,36670
Home Office,Home Office,17/01/2024,MISCELLANEOUS EXPENDITURE,PSG - Public Safety Group,HM REVENUE & CUSTOMS,1862112-18000053082023-187546-52808-1-2024,52808
Home Office,Home Office,17/01/2024,MISCELLANEOUS EXPENDITURE,PSG - Public Safety Group,HM REVENUE & CUSTOMS,1286565-18000052512023-187546-488759-1-2024,488759
Home Office,Home Office,17/01/2024,SYSTEM CLEARING,PSG - Public Safety Group,LEIDOS INNOVATIONS UK LTD,1486609-INV02-000630120-136199-15462946-1-2024,154629.46
Home Office,Home Office,17/01/2024,SYSTEM CLEARING,PSG - Public Safety Group,SOFTWARE AG (UK) LTD,1892014-1109014302-216241-169030-1-2024,202836
Home Office,Home Office,18/01/2024,IT RUN COST,PSG - Public Safety Group,BAE SYSTEMS APPLIED INTELLIGENCE LIMITED,1892024-1001058426-136604-30280-1-2024,30280
Home Office,Home Office,18/01/2024,IT RUN COST,PSG - Public Safety Group,BAE SYSTEMS APPLIED INTELLIGENCE LIMITED,1892024-1001058425-136604-96140-1-2024,96140
Home Office,Home Office,18/01/2024,ADVICE,PSG - Public Safety Group,BARINGA PARTNERS LLP,1830007-36965-58339-20986835-1-2024,209868.35
Home Office,Home Office,18/01/2024,ADVICE,PSG - Public Safety Group,BLOOM PROCUREMENT SERVICES LTD,1830007-SIN048269-518536-848625-1-2024,101835
Home Office,Home Office,18/01/2024,OTHER ICT COSTS,PSG - Public Safety Group,NCC GROUP SECURITY SERVICES LTD,1486609-00114586-100598-25380-1-2024,30456
Home Office,Home Office,18/01/2024,IT RUN COST,PSG - Public Safety Group,VODAFONE LTD,1830007-393632-119598-17261479-1-2024,207137.75
Home Office,Home Office,19/01/2024,CONTINGENT LABOUR OTHER,PSG - Public Safety Group,ALEXANDER MANN SOLUTIONS LTD,1262116-2959353-560478-451688-1-2024,5420.26
Home Office,Home Office,19/01/2024,CONTINGENT LABOUR OTHER,PSG - Public Safety Group,ALEXANDER MANN SOLUTIONS LTD,1262115-2959353-560478-544328-1-2024,6531.94
Home Office,Home Office,19/01/2024,CONTINGENT LABOUR OTHER,PSG - Public Safety Group,ALEXANDER MANN SOLUTIONS LTD,1892018-2959353-560478-657391-1-2024,7888.69
Home Office,Home Office,19/01/2024,CONTINGENT LABOUR OTHER,PSG - Public Safety Group,ALEXANDER MANN SOLUTIONS LTD,1486609-2959353-560478-11322-1-2024,13586.4
Home Office,Home Office,19/01/2024,CONTINGENT LABOUR OTHER,PSG - Public Safety Group,ALEXANDER MANN SOLUTIONS LTD,1892008-2959353-560478-1414452-1-2024,16973.42
Home Office,Home Office,19/01/2024,CONTINGENT LABOUR OTHER,PSG - Public Safety Group,ALEXANDER MANN SOLUTIONS LTD,1892023-2959353-560478-2918013-1-2024,35016.15
Home Office,Home Office,19/01/2024,CONTINGENT LABOUR OTHER,PSG - Public Safety Group,ALEXANDER MANN SOLUTIONS LTD,1262100-2959353-560478-20023588-1-2024,200235.88
Home Office,Home Office,19/01/2024,CONTINGENT LABOUR OTHER,PSG - Public Safety Group,ALEXANDER MANN SOLUTIONS LTD,1892014-2959353-560478-27795441-1-2024,333545.31
Home Office,Home Office,19/01/2024,FULL COST,PSG - Public Safety Group,BROOK STREET (UK) LTD,1220012-30801357-24-100385-75432-1-2024,905.18
Home Office,Home Office,19/01/2024,FULL COST,PSG - Public Safety Group,BROOK STREET (UK) LTD,1262100-30801357-24-100385-117882-1-2024,1178.82
Home Office,Home Office,19/01/2024,FULL COST,PSG - Public Safety Group,BROOK STREET (UK) LTD,1295014-30801357-24-100385-183884-1-2024,2206.6
Home Office,Home Office,19/01/2024,FULL COST,PSG - Public Safety Group,BROOK STREET (UK) LTD,1295054-30801357-24-100385-1825288-1-2024,21903.39
Home Office,Home Office,19/01/2024,MISCELLANEOUS EXPENDITURE,PSG - Public Safety Group,DEPARTMENT FOR BUSINESS & TRADE,1205000-623110009025-528394-5512984-1-2024,55129.84
Home Office,Home Office,19/01/2024,IT RUN COST,PSG - Public Safety Group,EE LTD,1262100-1800332185-425623-8601971-1-2024,86019.71
Home Office,Home Office,19/01/2024,IT RUN COST,PSG - Public Safety Group,EE LTD,1262100-1800332186-425623-14915853-1-2024,149158.53
Home Office,Home Office,19/01/2024,OTHER GOVERNMENT DEPARTMENTS,PSG - Public Safety Group,LONDON FIRE & EPA,1292511-IN059876-249961-29126995-1-2024,291269.95
Home Office,Home Office,22/01/2024,CONTINGENT LABOUR OTHER,PSG - Public Safety Group,ALEXANDER MANN SOLUTIONS LTD,1265001-2960384-560478-70000-1-2024,84000
Home Office,Home Office,22/01/2024,SYSTEM CLEARING,PSG - Public Safety Group,ALEXANDER MANN SOLUTIONS LTD,1892016-2960381-560478-45675767-1-2024,456757.67
Home Office,Home Office,22/01/2024,IT RUN COST,PSG - Public Safety Group,CIVICA UK LTD,1892014-C/HT294544-421184-2407315-1-2024,28887.78
Home Office,Home Office,22/01/2024,IT RUN COST,PSG - Public Safety Group,EE LTD,1262100-1800332192-425623-6227905-1-2024,62279.05
Home Office,Home Office,22/01/2024,IT RUN COST,PSG - Public Safety Group,EE LTD,1262100-1800332197-425623-7145146-1-2024,71451.46
Home Office,Home Office,22/01/2024,IT RUN COST,PSG - Public Safety Group,EE LTD,1262100-1800332193-425623-10125386-1-2024,101253.86
Home Office,Home Office,22/01/2024,SYSTEM CLEARING,PSG - Public Safety Group,FUJITSU SERVICES LTD,1892019-1030021502-106173-67415-1-2024,67415
Home Office,Home Office,22/01/2024,ADVICE,PSG - Public Safety Group,QINETIQ LTD,1830007-117074796-112688-5311868-1-2024,53118.68
Home Office,Home Office,22/01/2024,RESEARCH AND DEVELOPMENT,PSG - Public Safety Group,TORCHLIGHT GROUP LTD,1286565-TLG-001740-50792-6938856-1-2024,83266.27
Home Office,Home Office,23/01/2024,IT RUN COST,PSG - Public Safety Group,CAPGEMINI UK PLC,1892023-2600110406003-112696-21450-1-2024,21450
Home Office,Home Office,23/01/2024,IT RUN COST,PSG - Public Safety Group,CAPGEMINI UK PLC,1892023-2600110405993-112696-256986-1-2024,25698.6
Home Office,Home Office,23/01/2024,IT RUN COST,PSG - Public Safety Group,CAPGEMINI UK PLC,1892023-2600110406004-112696-29313-1-2024,29313
Home Office,Home Office,23/01/2024,BASIC SALARY,PSG - Public Safety Group,COUNTY DURHAM & DARLINGTON FIRE & RESCUE SERVICE,1262100-10011751-494682-2798793-1-2024,27987.93
Home Office,Home Office,23/01/2024,IT RUN COST,PSG - Public Safety Group,DATALYNX LTD,1892014-1265-184817-218650-1-2024,218650
Home Office,Home Office,23/01/2024,CURRENT GRANTS TO OVERSEAS BODIES,PSG - Public Safety Group,FOREIGN COMMONWEALTH & DEVELOPMENT OFFICE,1286565-20012850-113026-5878938-1-2024,58789.38
Home Office,Home Office,23/01/2024,IT RUN COST,PSG - Public Safety Group,IBM UNITED KINGDOM LTD,1486609-5801240359-101457-29176888-1-2024,291768.88
Home Office,Home Office,23/01/2024,SYSTEM CLEARING,PSG - Public Safety Group,LENDLEASE CONSTRUCTION (EUROPE) LTD,1262100-14100019923-468614-30948991-1-2024,309489.91
Home Office,Home Office,23/01/2024,IT RUN COST,PSG - Public Safety Group,METRICELL LTD,1262100-INV-1842-59817-87500-1-2024,87500
Home Office,Home Office,24/01/2024,IT RUN COST,PSG - Public Safety Group,CAPGEMINI UK PLC,1892018-2600110406052-112696-1242425-1-2024,124242.5
Home Office,Home Office,24/01/2024,RESEARCH AND DEVELOPMENT,PSG - Public Safety Group,DELOITTE LLP,1286565-8004348908-112904-2906515-1-2024,34878.18
Home Office,Home Office,24/01/2024,RESEARCH AND DEVELOPMENT,PSG - Public Safety Group,DELOITTE LLP,1286565-8004348907-112904-1094767-1-2024,131372.04
Home Office,Home Office,24/01/2024,SYSTEM CLEARING,PSG - Public Safety Group,EE LTD,1262100-1800332227-425623-2190839-1-2024,21908.39
Home Office,Home Office,24/01/2024,IT RUN COST,PSG - Public Safety Group,EE LTD,1262100-1800332228-425623-3509462-1-2024,35094.62
Home Office,Home Office,24/01/2024,IT RUN COST,PSG - Public Safety Group,EE LTD,1262100-1800332224-425623-3718366-1-2024,37183.66
Home Office,Home Office,24/01/2024,IT RUN COST,PSG - Public Safety Group,EE LTD,1262100-1800332225-425623-4097179-1-2024,40971.79
Home Office,Home Office,24/01/2024,IT RUN COST,PSG - Public Safety Group,EE LTD,1262100-1800332219-425623-4153308-1-2024,41533.08
Home Office,Home Office,24/01/2024,IT RUN COST,PSG - Public Safety Group,EE LTD,1262100-1800332222-425623-5517568-1-2024,55175.68
Home Office,Home Office,24/01/2024,IT RUN COST,PSG - Public Safety Group,LEIDOS INNOVATIONS UK LTD,1486609-INV02-000650739-136199-2287047-1-2024,27444.56
Home Office,Home Office,24/01/2024,IT RUN COST,PSG - Public Safety Group,LEIDOS INNOVATIONS UK LTD,1486609-INV02-000650679-136199-5272205-1-2024,63266.46
Home Office,Home Office,24/01/2024,IT RUN COST,PSG - Public Safety Group,MASTEK (UK) LTD,1486609-90399417-351665-31942952-1-2024,351372.47
Home Office,Home Office,24/01/2024,RESEARCH,PSG - Public Safety Group,MULTICULTURAL MARKETING CONSULTANCY,1230011-080-59063-48945-1-2024,58734
Home Office,Home Office,24/01/2024,IT RUN COST,PSG - Public Safety Group,PA CONSULTING SERVICES LTD,1892014-0000029480-100039-44820-1-2024,53784
Home Office,Home Office,24/01/2024,RESEARCH AND DEVELOPMENT,PSG - Public Safety Group,TORCHLIGHT GROUP LTD,1286565-TLG-001739-50792-4233859-1-2024,50806.31
Home Office,Home Office,24/01/2024,SYSTEM CLEARING,PSG - Public Safety Group,WHP TELECOMS LTD,1262116-SINV110478-55174-4771821-1-2024,57261.85
Home Office,Home Office,24/01/2024,SYSTEM CLEARING,PSG - Public Safety Group,WHP TELECOMS LTD,1262116-SINV110477-55174-7424874-1-2024,89098.49
Home Office,Home Office,24/01/2024,SYSTEM CLEARING,PSG - Public Safety Group,WHP TELECOMS LTD,1262116-SINV110498-55174-55207949-1-2024,662495.39
Home Office,Home Office,25/01/2024,SYSTEM CLEARING,PSG - Public Safety Group,EE LTD,1262100-1800332195-425623-3487128-1-2024,34871.28
Home Office,Home Office,25/01/2024,SYSTEM CLEARING,PSG - Public Safety Group,EE LTD,1262100-1800332189-425623-6085351-1-2024,60853.51
Home Office,Home Office,25/01/2024,IT RUN COST,PSG - Public Safety Group,EE LTD,1262100-1800332178-425623-18126902-1-2024,181269.02
Home Office,Home Office,25/01/2024,IT RUN COST,PSG - Public Safety Group,LEIDOS INNOVATIONS UK LTD,1486609-INV02-000650706-136199-16371-1-2024,16371
Home Office,Home Office,25/01/2024,IT RUN COST,PSG - Public Safety Group,LEIDOS INNOVATIONS UK LTD,1486609-INV02-000650740-136199-3393548-1-2024,40722.58
Home Office,Home Office,25/01/2024,RESEARCH AND DEVELOPMENT,PSG - Public Safety Group,QE ASSESSMENTS LTD,1230011-16/23-24/DHRE-53800-28771-1-2024,34525.2
Home Office,Home Office,25/01/2024,SYSTEM CLEARING,PSG - Public Safety Group,SOLIRIUS LTD,1892016-9023-CAID-WP007-04-58468-36750-1-2024,36750
Home Office,Home Office,25/01/2024,SYSTEM CLEARING,PSG - Public Safety Group,SOLIRIUS LTD,1892016-8896-CAID-WP007-02-58468-57750-1-2024,57750
Home Office,Home Office,25/01/2024,SYSTEM CLEARING,PSG - Public Safety Group,SOPRA STERIA LTD,1892017-100215205-112699-100416-1-2024,100416
Home Office,Home Office,26/01/2024,RESEARCH AND DEVELOPMENT,PSG - Public Safety Group,ALCIS HOLDINGS LTD,1286565-AH0467-59858-5170225-1-2024,51702.25
Home Office,Home Office,26/01/2024,CONTINGENT LABOUR OTHER,PSG - Public Safety Group,ALEXANDER MANN SOLUTIONS LTD,1262116-2963750-560478-282305-1-2024,3387.66
Home Office,Home Office,26/01/2024,CONTINGENT LABOUR OTHER,PSG - Public Safety Group,ALEXANDER MANN SOLUTIONS LTD,1862112-2963750-560478-575456-1-2024,6905.47
Home Office,Home Office,26/01/2024,CONTINGENT LABOUR OTHER,PSG - Public Safety Group,ALEXANDER MANN SOLUTIONS LTD,1486609-2963750-560478-11322-1-2024,13586.4
Home Office,Home Office,26/01/2024,CONTINGENT LABOUR OTHER,PSG - Public Safety Group,ALEXANDER MANN SOLUTIONS LTD,1892018-2963750-560478-1253117-1-2024,15037.4
Home Office,Home Office,26/01/2024,CONTINGENT LABOUR OTHER,PSG - Public Safety Group,ALEXANDER MANN SOLUTIONS LTD,1830007-2963750-560478-136754-1-2024,16410.48
Home Office,Home Office,26/01/2024,IT RUN COST,PSG - Public Safety Group,ALEXANDER MANN SOLUTIONS LTD,1892018-2964811-560478-28374-1-2024,28374
Home Office,Home Office,26/01/2024,CONTINGENT LABOUR OTHER,PSG - Public Safety Group,ALEXANDER MANN SOLUTIONS LTD,1892008-2963750-560478-3140886-1-2024,37690.63
Home Office,Home Office,26/01/2024,CONTINGENT LABOUR OTHER,PSG - Public Safety Group,ALEXANDER MANN SOLUTIONS LTD,1892023-2963750-560478-440755-1-2024,52890.6
Home Office,Home Office,26/01/2024,CONTINGENT LABOUR OTHER,PSG - Public Safety Group,ALEXANDER MANN SOLUTIONS LTD,1262100-2963750-560478-19302238-1-2024,193022.38
Home Office,Home Office,26/01/2024,CONTINGENT LABOUR OTHER,PSG - Public Safety Group,ALEXANDER MANN SOLUTIONS LTD,1892014-2963750-560478-24137139-1-2024,289645.66
Home Office,Home Office,26/01/2024,FULL COST,PSG - Public Safety Group,BROOK STREET (UK) LTD,1220012-30816320-24-100385-9129-1-2024,1095.48
Home Office,Home Office,26/01/2024,FULL COST,PSG - Public Safety Group,BROOK STREET (UK) LTD,1262100-30816320-24-100385-117882-1-2024,1178.82
Home Office,Home Office,26/01/2024,FULL COST,PSG - Public Safety Group,BROOK STREET (UK) LTD,1295014-30816320-24-100385-1621-1-2024,1945.2
Home Office,Home Office,26/01/2024,FULL COST,PSG - Public Safety Group,BROOK STREET (UK) LTD,1295054-30816320-24-100385-1888972-1-2024,22667.65
Home Office,Home Office,26/01/2024,IT RUN COST,PSG - Public Safety Group,DELOITTE LLP,1262100-8004231578-112904-1139590-1-2024,1139590
Home Office,Home Office,26/01/2024,IT RUN COST,PSG - Public Safety Group,EE LTD,1262100-1800332221-425623-2353376-1-2024,23533.76
Home Office,Home Office,26/01/2024,IT RUN COST,PSG - Public Safety Group,EE LTD,1262100-1800332220-425623-8208733-1-2024,82087.33
Home Office,Home Office,26/01/2024,SYSTEM CLEARING,PSG - Public Safety Group,EE LTD,1262100-1800332196-425623-66647384-1-2024,666473.84
Home Office,Home Office,26/01/2024,IT RUN COST,PSG - Public Safety Group,EE LTD,1262100-1800334425-425623-7504056-1-2024,750405.6
Home Office,Home Office,26/01/2024,IT RUN COST,PSG - Public Safety Group,EE LTD,1262100-1800333194-425623-57943214-1-2024,5794321.4
Home Office,Home Office,26/01/2024,UTILISATION,PSG - Public Safety Group,GOVERNMENT LEGAL DEPARTMENT,1205000-Z1523107-113504-32000000-1-2024,32000000
Home Office,Home Office,26/01/2024,IT RUN COST,PSG - Public Safety Group,HANDSFREE GROUP LTD,1262100-2051878-55082-689500-1-2024,689500
Home Office,Home Office,26/01/2024,IT RUN COST,PSG - Public Safety Group,LEIDOS INNOVATIONS UK LTD,1486609-INV02-000633579-136199-3094031-1-2024,30940.31
Home Office,Home Office,26/01/2024,IT RUN COST,PSG - Public Safety Group,MOTOROLA LIMITED,1262100-1980003954-100573-129166666-1-2024,1291666.66
Home Office,Home Office,29/01/2024,BASIC SALARY,PSG - Public Safety Group,NOTTINGHAMSHIRE FIRE & RESCUE SERVICE,1262100-FS5002060-448252-3969795-1-2024,39697.95
Home Office,Home Office,29/01/2024,BASIC SALARY,PSG - Public Safety Group,SCOTTISH POLICE AUTHORITY,1709505-S0029095-194742-275645-1-2024,27564.5
Home Office,Home Office,30/01/2024,IT RUN COST,PSG - Public Safety Group,APPVIA LTD,1892023-SOW7_INV-0322-50296-22550-1-2024,22550
Home Office,Home Office,30/01/2024,IT RUN COST,PSG - Public Safety Group,APPVIA LTD,1892023-SOW6_INV-0322-50296-27500-1-2024,27500
Home Office,Home Office,30/01/2024,IT RUN COST,PSG - Public Safety Group,APPVIA LTD,1892023-SOW8_INV-0321-50296-183700-1-2024,183700
Home Office,Home Office,30/01/2024,IT RUN COST,PSG - Public Safety Group,BAE SYSTEMS APPLIED INTELLIGENCE LIMITED,1892023-1001058589-136604-6749738-1-2024,67497.38
Home Office,Home Office,30/01/2024,IT RUN COST,PSG - Public Safety Group,CAPGEMINI UK PLC,1892023-2600110405999-112696-3089625-1-2024,30896.25
Home Office,Home Office,30/01/2024,IT RUN COST,PSG - Public Safety Group,CAPGEMINI UK PLC,1892023-2600110405998-112696-574675-1-2024,57467.5
Home Office,Home Office,30/01/2024,IT RUN COST,PSG - Public Safety Group,CAPGEMINI UK PLC,1892023-2600110406002-112696-300930-1-2024,300930
Home Office,Home Office,30/01/2024,IT RUN COST,PSG - Public Safety Group,CGI IT UK LTD,1892009-GB014122796-240306-147365-1-2024,147365
Home Office,Home Office,30/01/2024,SYSTEM CLEARING,PSG - Public Safety Group,FUJITSU SERVICES LTD,1892018-1030021920-106173-8090513-1-2024,80905.13
Home Office,Home Office,30/01/2024,AD PRODUCTION,PSG - Public Safety Group,OMNICOM MEDIA GROUP UK,1292511-F47497-258111-8969072-1-2024,89690.72
Home Office,Home Office,30/01/2024,AD PRODUCTION,PSG - Public Safety Group,OMNICOM MEDIA GROUP UK,1230011-F47495-258111-16089016-1-2024,160890.16
Home Office,Home Office,30/01/2024,ADVICE,PSG - Public Safety Group,QINETIQ LTD,1286721-117074303-112688-4190562-1-2024,50286.74
Home Office,Home Office,30/01/2024,SYSTEM CLEARING,PSG - Public Safety Group,SOPRA STERIA LTD,1892014-100215265-112699-23370-1-2024,28044
Home Office,Home Office,30/01/2024,SYSTEM CLEARING,PSG - Public Safety Group,SOPRA STERIA LTD,1892017-100215266-112699-1836789-1-2024,183678.9
Home Office,Home Office,31/01/2024,SYSTEM CLEARING,PSG - Public Safety Group,BAE SYSTEMS APPLIED INTELLIGENCE LIMITED,1892023-1001058521-136604-23160-1-2024,23160
Home Office,Home Office,31/01/2024,IT RUN COST,PSG - Public Safety Group,BAE SYSTEMS APPLIED INTELLIGENCE LIMITED,1892024-1001058353-136604-38520-1-2024,38520
Home Office,Home Office,31/01/2024,SYSTEM CLEARING,PSG - Public Safety Group,BAE SYSTEMS APPLIED INTELLIGENCE LIMITED,1892023-1001058215-136604-3926392-1-2024,39263.92
Home Office,Home Office,31/01/2024,AD PRODUCTION,PSG - Public Safety Group,OMNICOM MEDIA GROUP UK,1292511-F47895-258111-291736-1-2024,29173.6
Home Office,Home Office,31/01/2024,AD PRODUCTION,PSG - Public Safety Group,OMNICOM MEDIA GROUP UK,1292511-F47894-258111-3851584-1-2024,38515.84
Home Office,Home Office,31/01/2024,SYSTEM CLEARING,PSG - Public Safety Group,SPECIALIST COMPUTER CENTRES PLC,1892016-OP/ N483903-100774-3144814-1-2024,31448.14
Home Office,Home Office,02/01/2024,CONTINGENT LABOUR OTHER,"STARS -  Science, Technology, Analysis, Research & Strategy",ALEXANDER MANN SOLUTIONS LTD,1805091-2949716-560478-83786-1-2024,1005.43
Home Office,Home Office,02/01/2024,CONTINGENT LABOUR OTHER,"STARS -  Science, Technology, Analysis, Research & Strategy",ALEXANDER MANN SOLUTIONS LTD,1805055-2949716-560478-2119-1-2024,2542.8
Home Office,Home Office,03/01/2024,RESEARCH AND DEVELOPMENT,"STARS -  Science, Technology, Analysis, Research & Strategy",ECORYS UK LTD,1805055-7008718-51235-171983-1-2024,206379.6
Home Office,Home Office,04/01/2024,ADVICE,"STARS -  Science, Technology, Analysis, Research & Strategy",INTERSEC CONSULTANCY LTD,1283022-1166-558638-2576092-1-2024,30178.42
Home Office,Home Office,05/01/2024,CONTINGENT LABOUR OTHER,"STARS -  Science, Technology, Analysis, Research & Strategy",ALEXANDER MANN SOLUTIONS LTD,1805055-2952165-560478-246215-1-2024,2954.58
Home Office,Home Office,05/01/2024,FULL COST,"STARS -  Science, Technology, Analysis, Research & Strategy",BROOK STREET (UK) LTD,1805091-30782870-24-100385-53218-1-2024,638.62
Home Office,Home Office,08/01/2024,EXTERNAL,"STARS -  Science, Technology, Analysis, Research & Strategy",CAPITA BUSINESS SERVICES LTD,1283022-6004162698-138018-78999-1-2024,78999
Home Office,Home Office,09/01/2024,RAIL TRAVEL,"STARS -  Science, Technology, Analysis, Research & Strategy",FOREIGN COMMONWEALTH & DEVELOPMENT OFFICE,1771142-20011260-113026-7028-1-2024,70.28
Home Office,Home Office,09/01/2024,MOBILE PHONES,"STARS -  Science, Technology, Analysis, Research & Strategy",FOREIGN COMMONWEALTH & DEVELOPMENT OFFICE,1771142-20011260-113026-7986-1-2024,79.86
Home Office,Home Office,09/01/2024,FCO CHARGES,"STARS -  Science, Technology, Analysis, Research & Strategy",FOREIGN COMMONWEALTH & DEVELOPMENT OFFICE,1771142-20011260-113026-31986-1-2024,319.86
Home Office,Home Office,09/01/2024,OTHER,"STARS -  Science, Technology, Analysis, Research & Strategy",FOREIGN COMMONWEALTH & DEVELOPMENT OFFICE,1771142-20012074-113026-41242-1-2024,412.42
Home Office,Home Office,09/01/2024,SUBSISTENCE,"STARS -  Science, Technology, Analysis, Research & Strategy",FOREIGN COMMONWEALTH & DEVELOPMENT OFFICE,1771142-20011260-113026-42734-1-2024,427.34
Home Office,Home Office,09/01/2024,FOREIGN SUBSISTENCE,"STARS -  Science, Technology, Analysis, Research & Strategy",FOREIGN COMMONWEALTH & DEVELOPMENT OFFICE,1771142-20011260-113026-56746-1-2024,567.46
Home Office,Home Office,09/01/2024,HOTELS & ACCOMODATION,"STARS -  Science, Technology, Analysis, Research & Strategy",FOREIGN COMMONWEALTH & DEVELOPMENT OFFICE,1771142-20011260-113026-57746-1-2024,577.46
Home Office,Home Office,09/01/2024,FOREIGN SUBSISTENCE,"STARS -  Science, Technology, Analysis, Research & Strategy",FOREIGN COMMONWEALTH & DEVELOPMENT OFFICE,1771142-20012074-113026-124083-1-2024,1240.83
Home Office,Home Office,09/01/2024,OTHER FOREIGN TRAVEL,"STARS -  Science, Technology, Analysis, Research & Strategy",FOREIGN COMMONWEALTH & DEVELOPMENT OFFICE,1771142-20011260-113026-147043-1-2024,1470.43
Home Office,Home Office,09/01/2024,CONFERENCES,"STARS -  Science, Technology, Analysis, Research & Strategy",FOREIGN COMMONWEALTH & DEVELOPMENT OFFICE,1771142-20012074-113026-15145-1-2024,1514.5
Home Office,Home Office,09/01/2024,SYSTEM CLEARING,"STARS -  Science, Technology, Analysis, Research & Strategy",IBM UNITED KINGDOM LTD,1492000-5812230692-101457-30940-1-2024,30940
Home Office,Home Office,09/01/2024,SYSTEM CLEARING,"STARS -  Science, Technology, Analysis, Research & Strategy",IBM UNITED KINGDOM LTD,1492000-5812231033-101457-5211025-1-2024,52110.25
Home Office,Home Office,12/01/2024,FULL COST,"STARS -  Science, Technology, Analysis, Research & Strategy",BROOK STREET (UK) LTD,1805091-30791401-24-100385-7136-1-2024,856.32
Home Office,Home Office,15/01/2024,ADVICE,"STARS -  Science, Technology, Analysis, Research & Strategy",CROWN INTEGRATED SERVICES LTD,1283022-1013-59148-20893874-1-2024,247025.73
Home Office,Home Office,15/01/2024,ADVICE,"STARS -  Science, Technology, Analysis, Research & Strategy",GRESTON ASSOCIATES LTD,1283022-131-2023-524581-9404866-1-2024,112858.39
Home Office,Home Office,15/01/2024,ADVICE,"STARS -  Science, Technology, Analysis, Research & Strategy",OFFICE OF THE POLICE & CRIME COMMISSIONER FOR SUFFOLK,1771141-9422006930-101704-8427772-1-2024,84277.72
Home Office,Home Office,15/01/2024,ADVICE,"STARS -  Science, Technology, Analysis, Research & Strategy",SMART ACCOMMODATION FOR RESIDENTIAL COMPLEXES COMPANY,1283022-000754-566980-220000-1-2024,220000
Home Office,Home Office,16/01/2024,CONTINGENT LABOUR OTHER,"STARS -  Science, Technology, Analysis, Research & Strategy",ALEXANDER MANN SOLUTIONS LTD,1805055-2955329-560478-296582-1-2024,3558.99
Home Office,Home Office,16/01/2024,ADVICE,"STARS -  Science, Technology, Analysis, Research & Strategy",DELOITTE LLP,1295051-8004346636-112904-589875-1-2024,70785
Home Office,Home Office,16/01/2024,MOBILE PHONES,"STARS -  Science, Technology, Analysis, Research & Strategy",FOREIGN COMMONWEALTH & DEVELOPMENT OFFICE,1771142-20012712-113026-1443-1-2024,14.43
Home Office,Home Office,16/01/2024,RECHARGE COST,"STARS -  Science, Technology, Analysis, Research & Strategy",FOREIGN COMMONWEALTH & DEVELOPMENT OFFICE,1444089-20012712-113026-2945-1-2024,29.45
Home Office,Home Office,16/01/2024,OTHER,"STARS -  Science, Technology, Analysis, Research & Strategy",FOREIGN COMMONWEALTH & DEVELOPMENT OFFICE,1771142-20012712-113026-11801-1-2024,118.01
Home Office,Home Office,16/01/2024,CATERING & HOSPITALITY,"STARS -  Science, Technology, Analysis, Research & Strategy",FOREIGN COMMONWEALTH & DEVELOPMENT OFFICE,1771142-20012712-113026-1616-1-2024,161.6
Home Office,Home Office,16/01/2024,MOBILE PHONES,"STARS -  Science, Technology, Analysis, Research & Strategy",FOREIGN COMMONWEALTH & DEVELOPMENT OFFICE,1862107-20012712-113026-23231-1-2024,232.31
Home Office,Home Office,16/01/2024,FOREIGN TAXI SERVICES,"STARS -  Science, Technology, Analysis, Research & Strategy",FOREIGN COMMONWEALTH & DEVELOPMENT OFFICE,1771142-20012712-113026-31477-1-2024,314.77
Home Office,Home Office,16/01/2024,FOREIGN SUBSISTENCE,"STARS -  Science, Technology, Analysis, Research & Strategy",FOREIGN COMMONWEALTH & DEVELOPMENT OFFICE,1771142-20012712-113026-75408-1-2024,754.08
Home Office,Home Office,16/01/2024,OTHER FOREIGN TRAVEL,"STARS -  Science, Technology, Analysis, Research & Strategy",FOREIGN COMMONWEALTH & DEVELOPMENT OFFICE,1771142-20012712-113026-160298-1-2024,1602.98
Home Office,Home Office,16/01/2024,RECHARGE COST,"STARS -  Science, Technology, Analysis, Research & Strategy",FOREIGN COMMONWEALTH & DEVELOPMENT OFFICE,1771142-20012712-113026-552456-1-2024,5524.56
Home Office,Home Office,16/01/2024,CLINICAL & MEDICAL,"STARS -  Science, Technology, Analysis, Research & Strategy",FOREIGN COMMONWEALTH & DEVELOPMENT OFFICE,1862107-20012712-113026-4809467-1-2024,48094.67
Home Office,Home Office,17/01/2024,RESEARCH AND DEVELOPMENT,"STARS -  Science, Technology, Analysis, Research & Strategy",CT CENTRE (MOD) LTD T/A DSTL,1800810-SW000105-208273-58016-1-2024,58016
Home Office,Home Office,17/01/2024,RESEARCH AND DEVELOPMENT,"STARS -  Science, Technology, Analysis, Research & Strategy",CT CENTRE (MOD) LTD T/A DSTL,1800810-SW000107-208273-87358-1-2024,87358
Home Office,Home Office,17/01/2024,RESEARCH AND DEVELOPMENT,"STARS -  Science, Technology, Analysis, Research & Strategy",CT CENTRE (MOD) LTD T/A DSTL,1800810-SW000106-208273-89694-1-2024,89694
Home Office,Home Office,17/01/2024,RESEARCH AND DEVELOPMENT,"STARS -  Science, Technology, Analysis, Research & Strategy",CT CENTRE (MOD) LTD T/A DSTL,1800810-SW000102-208273-595155-1-2024,595155
Home Office,Home Office,17/01/2024,RESEARCH AND DEVELOPMENT,"STARS -  Science, Technology, Analysis, Research & Strategy",CT CENTRE (MOD) LTD T/A DSTL,1800810-SW000104-208273-640597-1-2024,640597
Home Office,Home Office,17/01/2024,RESEARCH AND DEVELOPMENT,"STARS -  Science, Technology, Analysis, Research & Strategy",CT CENTRE (MOD) LTD T/A DSTL,1800810-SW000103-208273-694576-1-2024,694576
Home Office,Home Office,17/01/2024,RESEARCH AND DEVELOPMENT,"STARS -  Science, Technology, Analysis, Research & Strategy",QINETIQ LTD,1800810-117074537-112688-472272-1-2024,47227.2
Home Office,Home Office,17/01/2024,ADVICE,"STARS -  Science, Technology, Analysis, Research & Strategy",THE ZOOLOGICAL SOCIETY OF LONDON,1283022-ZSL000006393 S- H0063-59869-127165-1-2024,152598
Home Office,Home Office,18/01/2024,ADVICE,"STARS -  Science, Technology, Analysis, Research & Strategy",CITY OF LONDON POLICE,1283022-4354804-255999-64000-1-2024,64000
Home Office,Home Office,18/01/2024,ADVICE,"STARS -  Science, Technology, Analysis, Research & Strategy",CITY OF LONDON POLICE,1283022-4354812-255999-64000-1-2024,64000
Home Office,Home Office,18/01/2024,RESEARCH AND DEVELOPMENT,"STARS -  Science, Technology, Analysis, Research & Strategy",COLLEGE OF POLICING,1800810-2648258-324330-38379-1-2024,38379
Home Office,Home Office,18/01/2024,ADVERSE LEGAL,"STARS -  Science, Technology, Analysis, Research & Strategy",GOVERNMENT LEGAL DEPARTMENT,1295051-HOLFT-895-113504-37500-1-2024,37500
Home Office,Home Office,19/01/2024,CONTINGENT LABOUR OTHER,"STARS -  Science, Technology, Analysis, Research & Strategy",ALEXANDER MANN SOLUTIONS LTD,1805055-2959353-560478-360035-1-2024,4320.42
Home Office,Home Office,19/01/2024,ADVICE,"STARS -  Science, Technology, Analysis, Research & Strategy",AXIOM INTERNATIONAL LTD,1283022-3189-58082-9201783-1-2024,1104213.96
Home Office,Home Office,19/01/2024,ADVICE,"STARS -  Science, Technology, Analysis, Research & Strategy",BIG WORD INTERPRETING SERVICES LTD (THE),1283022-INV20276606-105469-7424304-1-2024,89091.65
Home Office,Home Office,19/01/2024,FULL COST,"STARS -  Science, Technology, Analysis, Research & Strategy",BROOK STREET (UK) LTD,1805091-30801357-24-100385-90035-1-2024,1080.42
Home Office,Home Office,22/01/2024,ADVICE,"STARS -  Science, Technology, Analysis, Research & Strategy",BAE SYSTEM SAUDI DEVELOPMENT AND TRAINING CO LTD,1283022-1803000024/23-57767-82612386-1-2024,826123.86
Home Office,Home Office,22/01/2024,ADVICE,"STARS -  Science, Technology, Analysis, Research & Strategy",BAE SYSTEM SAUDI DEVELOPMENT AND TRAINING CO LTD,1283022-1803000025/23-57767-111370021-1-2024,1113700.21
Home Office,Home Office,22/01/2024,RESEARCH AND DEVELOPMENT,"STARS -  Science, Technology, Analysis, Research & Strategy",IMPERIAL COLLEGE PROJECTS LTD,1800810-86009524-55635-818677-1-2024,982412.4
Home Office,Home Office,22/01/2024,OTHER TRAVEL,"STARS -  Science, Technology, Analysis, Research & Strategy",INVESTIGO LTD,1283022-426266-486793-623365-1-2024,6233.65
Home Office,Home Office,22/01/2024,ADVICE,"STARS -  Science, Technology, Analysis, Research & Strategy",INVESTIGO LTD,1283022-426266-486793-385075-1-2024,46209
Home Office,Home Office,23/01/2024,FOREIGN SUBSISTENCE,"STARS -  Science, Technology, Analysis, Research & Strategy",FOREIGN COMMONWEALTH & DEVELOPMENT OFFICE,1771142-20012850-113026--263-1-2024,-2.63
Home Office,Home Office,23/01/2024,MOBILE PHONES,"STARS -  Science, Technology, Analysis, Research & Strategy",FOREIGN COMMONWEALTH & DEVELOPMENT OFFICE,1444089-20012850-113026-6557-1-2024,65.57
Home Office,Home Office,23/01/2024,CLINICAL & MEDICAL,"STARS -  Science, Technology, Analysis, Research & Strategy",FOREIGN COMMONWEALTH & DEVELOPMENT OFFICE,1862107-20012850-113026-4393-1-2024,439.3
Home Office,Home Office,23/01/2024,ADVICE,"STARS -  Science, Technology, Analysis, Research & Strategy",NORTH HIGHLAND UK LIMITED,1295051-CINV-2024-00446-215149-23090-1-2024,27708
Home Office,Home Office,23/01/2024,ADVICE,"STARS -  Science, Technology, Analysis, Research & Strategy",PROJECTINA AG,1771046-21813-60703-7266285-1-2024,72662.85
Home Office,Home Office,24/01/2024,ADVICE,"STARS -  Science, Technology, Analysis, Research & Strategy",INVESTIGO LTD,1283022-424154-486793-741382-1-2024,85325.55
Home Office,Home Office,24/01/2024,ADVICE,"STARS -  Science, Technology, Analysis, Research & Strategy",SMART ACCOMMODATION FOR RESIDENTIAL COMPLEXES COMPANY,1283022-000927-566980-987000-1-2024,987000
Home Office,Home Office,24/01/2024,ADVICE,"STARS -  Science, Technology, Analysis, Research & Strategy",THE COUNCIL ON STRATEGIC RISKS,1407009-1-59862-70000-1-2024,70000
Home Office,Home Office,26/01/2024,CONTINGENT LABOUR OTHER,"STARS -  Science, Technology, Analysis, Research & Strategy",ALEXANDER MANN SOLUTIONS LTD,1805055-2963750-560478-317655-1-2024,3811.86
Home Office,Home Office,26/01/2024,FULL COST,"STARS -  Science, Technology, Analysis, Research & Strategy",BROOK STREET (UK) LTD,1805091-30816320-24-100385-89799-1-2024,1077.59
Home Office,Home Office,26/01/2024,ADVICE,"STARS -  Science, Technology, Analysis, Research & Strategy",RED SNAPPER RECRUITMENT LTD,1283022-374265-206036-2727521-1-2024,32730.25
Home Office,Home Office,30/01/2024,RESEARCH AND DEVELOPMENT,"STARS -  Science, Technology, Analysis, Research & Strategy",IPSOS (MARKET RESEARCH) LTD,1270760-24000201-106668-13911127-1-2024,166933.52
Home Office,Home Office,30/01/2024,ADVICE,"STARS -  Science, Technology, Analysis, Research & Strategy",RED SNAPPER RECRUITMENT LTD,1283022-374266-206036-2637408-1-2024,31648.9
Home Office,Home Office,30/01/2024,ADVICE,"STARS -  Science, Technology, Analysis, Research & Strategy",SERCO LTD,1283022-91961315-158586-124576-1-2024,124576
Home Office,Home Office,02/01/2024,IT RUN COST,Strategy,ALEXANDER MANN SOLUTIONS LTD,1263000-2950553-560478-21700-1-2024,26040
Home Office,Home Office,05/01/2024,FULL COST,Strategy,BROOK STREET (UK) LTD,1263000-30782870-24-100385-71145-1-2024,853.74
Home Office,Home Office,08/01/2024,BASIC SALARY,Strategy,POLICE & CRIME COMMISSIONER FOR SURREY,1263000-1041749-100795-3270578-1-2024,39246.94
Home Office,Home Office,09/01/2024,BASIC SALARY,Strategy,WEST MIDLANDS FIRE AND RESCUE AUTHORITY,1263000-568014-512573-2527561-1-2024,25275.61
Home Office,Home Office,12/01/2024,FULL COST,Strategy,BROOK STREET (UK) LTD,1263000-30791401-24-100385-30918-1-2024,3710.16
Home Office,Home Office,16/01/2024,RESEARCH AND DEVELOPMENT,Strategy,CREST ADVISORY UK LTD,1263000-INV-1653-405812-23602-1-2024,23602
Home Office,Home Office,19/01/2024,FULL COST,Strategy,BROOK STREET (UK) LTD,1263000-30801357-24-100385-376687-1-2024,4520.24
Home Office,Home Office,19/01/2024,BASIC SALARY,Strategy,OFFICE OF THE POLICE & CRIME COMMISSIONER FOR MERSEYSIDE,1263000-304519-100544-4419428-1-2024,44194.28
Home Office,Home Office,22/01/2024,BASIC SALARY,Strategy,OFFICE OF THE POLICE & CRIME COMMISSIONER FOR STAFFORDSHIRE,1263000-0003050252-112728-2796246-1-2024,27962.46
Home Office,Home Office,22/01/2024,BASIC SALARY,Strategy,THE POLICE & CRIME COMMISSIONER FOR NORTH YORKSHIRE,1263000-20023775-101706-3576555-1-2024,35795.55
Home Office,Home Office,26/01/2024,FULL COST,Strategy,BROOK STREET (UK) LTD,1298009-30816320-24-100385-68672-1-2024,824.06
Home Office,Home Office,26/01/2024,FULL COST,Strategy,BROOK STREET (UK) LTD,1263000-30816320-24-100385-375839-1-2024,4510.06
Home Office,Home Office,30/01/2024,LEGAL ADVICE,Strategy,EVERSHEDS SUTHERLAND (INTERNATIONAL) LLP,1298009-9020054473-51704-7511529-1-2024,90138.35
Home Office,Home Office,31/01/2024,BASIC SALARY,Strategy,POLICE & CRIME COMMISSIONER FOR CHESHIRE,1263000-64002531-101718-323621-1-2024,32362.1
Home Office,Home Office,02/01/2024,CONTINGENT LABOUR OTHER,"UKASRA - Asylum Support, Resettlement & Accommodation.",ALEXANDER MANN SOLUTIONS LTD,1406412-2949716-560478-94929-1-2024,11391.48
Home Office,Home Office,02/01/2024,ADVICE,"UKASRA - Asylum Support, Resettlement & Accommodation.",ALEXANDER MANN SOLUTIONS LTD,1407010-2950551-560478-250000-1-2024,300000
Home Office,Home Office,03/01/2024,CONT OUT SERV OTHER,"UKASRA - Asylum Support, Resettlement & Accommodation.",COMMERCIAL SERVICES TRADING LTD T/A CONNECT2STAFF,1407015-7000042948-59034-2313763-1-2024,27765.16
Home Office,Home Office,03/01/2024,CONT OUT SERV OTHER,"UKASRA - Asylum Support, Resettlement & Accommodation.",COMMERCIAL SERVICES TRADING LTD T/A CONNECT2STAFF,1407015-7000042859-59034-3113163-1-2024,37357.96
Home Office,Home Office,05/01/2024,CONTINGENT LABOUR OTHER,"UKASRA - Asylum Support, Resettlement & Accommodation.",ALEXANDER MANN SOLUTIONS LTD,1406412-2952165-560478-574544-1-2024,6894.53
Home Office,Home Office,05/01/2024,FULL COST,"UKASRA - Asylum Support, Resettlement & Accommodation.",BROOK STREET (UK) LTD,1406677-30782870-24-100385-13612-1-2024,163.34
Home Office,Home Office,05/01/2024,FULL COST,"UKASRA - Asylum Support, Resettlement & Accommodation.",BROOK STREET (UK) LTD,1417918-30782870-24-100385-48785-1-2024,585.42
Home Office,Home Office,05/01/2024,FULL COST,"UKASRA - Asylum Support, Resettlement & Accommodation.",BROOK STREET (UK) LTD,1407004-30782870-24-100385-12333-1-2024,1479.96
Home Office,Home Office,05/01/2024,FULL COST,"UKASRA - Asylum Support, Resettlement & Accommodation.",BROOK STREET (UK) LTD,1407010-30782870-24-100385-203017-1-2024,2436.21
Home Office,Home Office,05/01/2024,FULL COST,"UKASRA - Asylum Support, Resettlement & Accommodation.",BROOK STREET (UK) LTD,1421031-30782870-24-100385-22142-1-2024,2657.04
Home Office,Home Office,05/01/2024,FULL COST,"UKASRA - Asylum Support, Resettlement & Accommodation.",BROOK STREET (UK) LTD,1417905-30782870-24-100385-696457-1-2024,83574.8
Home Office,Home Office,05/01/2024,PROJECT,"UKASRA - Asylum Support, Resettlement & Accommodation.",INTERSERVE (FACILITIES MANAGEMENT) LTD,1406417-357525/92941629-100369-9047168-1-2024,108566.02
Home Office,Home Office,08/01/2024,OTHER ICT COSTS,"UKASRA - Asylum Support, Resettlement & Accommodation.",WE ARE SNOOK LTD,1406417-91480384-54458-21600-1-2024,21600
Home Office,Home Office,08/01/2024,OTHER ICT COSTS,"UKASRA - Asylum Support, Resettlement & Accommodation.",WE ARE SNOOK LTD,1406417-91480383-54458-43200-1-2024,43200
Home Office,Home Office,08/01/2024,OTHER ICT COSTS,"UKASRA - Asylum Support, Resettlement & Accommodation.",WE ARE SNOOK LTD,1406417-91480385-54458-56000-1-2024,56000
Home Office,Home Office,08/01/2024,OTHER ICT COSTS,"UKASRA - Asylum Support, Resettlement & Accommodation.",WE ARE SNOOK LTD,1406417-91480382-54458-12194037-1-2024,121940.37
Home Office,Home Office,09/01/2024,ADVICE,"UKASRA - Asylum Support, Resettlement & Accommodation.",BLOOM PROCUREMENT SERVICES LTD,1407010-SIN047541-518536-3166165-1-2024,31661.65
Home Office,Home Office,09/01/2024,ADVICE,"UKASRA - Asylum Support, Resettlement & Accommodation.",BLOOM PROCUREMENT SERVICES LTD,1407010-SIN047521-518536-14546313-1-2024,145463.13
Home Office,Home Office,09/01/2024,IT,"UKASRA - Asylum Support, Resettlement & Accommodation.",BLOOM PROCUREMENT SERVICES LTD,1406412-SIN048033-518536-38145191-1-2024,457742.29
Home Office,Home Office,10/01/2024,INITIAL ACCOMMODATION,"UKASRA - Asylum Support, Resettlement & Accommodation.",CORPORATE TRAVEL MANAGEMENT (NORTH),1406676-19191-245986-20160428-1-2024,201605.14
Home Office,Home Office,10/01/2024,ADVICE,"UKASRA - Asylum Support, Resettlement & Accommodation.",ERNST AND YOUNG LLP,1407004-GB01G000496952-113852-24862-1-2024,29834.4
Home Office,Home Office,10/01/2024,ADVICE,"UKASRA - Asylum Support, Resettlement & Accommodation.",ERNST AND YOUNG LLP,1407004-GB01G000496954-113852-24862-1-2024,29834.4
Home Office,Home Office,10/01/2024,ADVICE,"UKASRA - Asylum Support, Resettlement & Accommodation.",ERNST AND YOUNG LLP,1407004-GB01G000496951-113852-30000-1-2024,36000
Home Office,Home Office,10/01/2024,CONTINGENT LABOUR OTHER,"UKASRA - Asylum Support, Resettlement & Accommodation.",ESRO,1406412-23-016 05-53931-58152-1-2024,69782.4
Home Office,Home Office,10/01/2024,LEGAL ADVICE,"UKASRA - Asylum Support, Resettlement & Accommodation.",GOVERNMENT LEGAL DEPARTMENT,1421031-537043-113504-2823167-1-2024,33878
Home Office,Home Office,11/01/2024,CONTRACT OUT SERVICE,"UKASRA - Asylum Support, Resettlement & Accommodation.",WAVENET LTD,1406676-1052770-54736-6663125-1-2024,79957.5
Home Office,Home Office,12/01/2024,FULL COST,"UKASRA - Asylum Support, Resettlement & Accommodation.",BROOK STREET (UK) LTD,1417918-30791401-24-100385-112274-1-2024,1347.29
Home Office,Home Office,12/01/2024,FULL COST,"UKASRA - Asylum Support, Resettlement & Accommodation.",BROOK STREET (UK) LTD,1407004-30791401-24-100385-126868-1-2024,1522.41
Home Office,Home Office,12/01/2024,FULL COST,"UKASRA - Asylum Support, Resettlement & Accommodation.",BROOK STREET (UK) LTD,1421031-30791401-24-100385-233305-1-2024,2799.66
Home Office,Home Office,12/01/2024,FULL COST,"UKASRA - Asylum Support, Resettlement & Accommodation.",BROOK STREET (UK) LTD,1407010-30791401-24-100385-48349-1-2024,5801.87
Home Office,Home Office,12/01/2024,FULL COST,"UKASRA - Asylum Support, Resettlement & Accommodation.",BROOK STREET (UK) LTD,1417905-30791401-24-100385-9840489-1-2024,118085.76
Home Office,Home Office,15/01/2024,CASH SUPPORT,"UKASRA - Asylum Support, Resettlement & Accommodation.",PREPAID FINANCIAL SERVICES,1421031-491-55118-525000-1-2024,525000
Home Office,Home Office,15/01/2024,SECTION 4 VOUCHERS,"UKASRA - Asylum Support, Resettlement & Accommodation.",PREPAID FINANCIAL SERVICES,1421031-490-55118-1275000-1-2024,1275000
Home Office,Home Office,15/01/2024,CASH SUPPORT,"UKASRA - Asylum Support, Resettlement & Accommodation.",PREPAID FINANCIAL SERVICES,1421031-489-55118-13200000-1-2024,13200000
Home Office,Home Office,16/01/2024,CONTINGENT LABOUR OTHER,"UKASRA - Asylum Support, Resettlement & Accommodation.",ALEXANDER MANN SOLUTIONS LTD,1406412-2955329-560478-1449978-1-2024,17399.75
Home Office,Home Office,16/01/2024,IT,"UKASRA - Asylum Support, Resettlement & Accommodation.",DELOITTE LLP,1406416-8004346610-112904-35000-1-2024,42000
Home Office,Home Office,17/01/2024,AD PRODUCTION,"UKASRA - Asylum Support, Resettlement & Accommodation.",CONEXIA LTD,1470031-6032642445-158585-4448285-1-2024,44482.85
Home Office,Home Office,19/01/2024,FULL COST,"UKASRA - Asylum Support, Resettlement & Accommodation.",BROOK STREET (UK) LTD,1406677-30801357-24-100385-6734-1-2024,808.08
Home Office,Home Office,19/01/2024,FULL COST,"UKASRA - Asylum Support, Resettlement & Accommodation.",BROOK STREET (UK) LTD,1417918-30801357-24-100385-164973-1-2024,1979.7
Home Office,Home Office,19/01/2024,FULL COST,"UKASRA - Asylum Support, Resettlement & Accommodation.",BROOK STREET (UK) LTD,1421031-30801357-24-100385-205306-1-2024,2463.67
Home Office,Home Office,19/01/2024,FULL COST,"UKASRA - Asylum Support, Resettlement & Accommodation.",BROOK STREET (UK) LTD,1407004-30801357-24-100385-312982-1-2024,3755.79
Home Office,Home Office,19/01/2024,FULL COST,"UKASRA - Asylum Support, Resettlement & Accommodation.",BROOK STREET (UK) LTD,1407010-30801357-24-100385-520631-1-2024,6247.57
Home Office,Home Office,19/01/2024,FULL COST,"UKASRA - Asylum Support, Resettlement & Accommodation.",BROOK STREET (UK) LTD,1417905-30801357-24-100385-12951275-1-2024,155415.34
Home Office,Home Office,19/01/2024,CONTRACT OUT SERVICE,"UKASRA - Asylum Support, Resettlement & Accommodation.",PREPAID FINANCIAL SERVICES,1421031-99863-55118-2713299-1-2024,325595.4
Home Office,Home Office,23/01/2024,IT,"UKASRA - Asylum Support, Resettlement & Accommodation.",METHODS  BUSINESS AND DIGITAL TECH LTD,1406416-SIN079184-119732-57081-1-2024,68497.2
Home Office,Home Office,24/01/2024,BASIC SALARY,"UKASRA - Asylum Support, Resettlement & Accommodation.",HM REVENUE & CUSTOMS,1421031-18000020652023-187546-46365-1-2024,55638
Home Office,Home Office,24/01/2024,IT RUN COST,"UKASRA - Asylum Support, Resettlement & Accommodation.",LEIDOS INNOVATIONS UK LTD,1470003-INV02-000650670-136199-494739-1-2024,5936.87
Home Office,Home Office,24/01/2024,OTHER ICT COSTS,"UKASRA - Asylum Support, Resettlement & Accommodation.",METHODS  BUSINESS AND DIGITAL TECH LTD,1406417-SIN078482-119732-20800-1-2024,24960
Home Office,Home Office,24/01/2024,OTHER ICT COSTS,"UKASRA - Asylum Support, Resettlement & Accommodation.",METHODS  BUSINESS AND DIGITAL TECH LTD,1406417-SIN078483-119732-301375-1-2024,36165
Home Office,Home Office,25/01/2024,BASIC SALARY,"UKASRA - Asylum Support, Resettlement & Accommodation.",HM REVENUE & CUSTOMS,1421031-18000028552023-1-187546-24728-1-2024,29673.6
Home Office,Home Office,26/01/2024,CONTINGENT LABOUR OTHER,"UKASRA - Asylum Support, Resettlement & Accommodation.",ALEXANDER MANN SOLUTIONS LTD,1406412-2963750-560478-189858-1-2024,22782.96
Home Office,Home Office,26/01/2024,FULL COST,"UKASRA - Asylum Support, Resettlement & Accommodation.",BROOK STREET (UK) LTD,1406677-30816320-24-100385-6734-1-2024,808.08
Home Office,Home Office,26/01/2024,FULL COST,"UKASRA - Asylum Support, Resettlement & Accommodation.",BROOK STREET (UK) LTD,1417918-30816320-24-100385-102898-1-2024,1234.77
Home Office,Home Office,26/01/2024,FULL COST,"UKASRA - Asylum Support, Resettlement & Accommodation.",BROOK STREET (UK) LTD,1421031-30816320-24-100385-206893-1-2024,2482.71
Home Office,Home Office,26/01/2024,FULL COST,"UKASRA - Asylum Support, Resettlement & Accommodation.",BROOK STREET (UK) LTD,1407004-30816320-24-100385-291637-1-2024,3499.64
Home Office,Home Office,26/01/2024,FULL COST,"UKASRA - Asylum Support, Resettlement & Accommodation.",BROOK STREET (UK) LTD,1407010-30816320-24-100385-504915-1-2024,6058.97
Home Office,Home Office,26/01/2024,FULL COST,"UKASRA - Asylum Support, Resettlement & Accommodation.",BROOK STREET (UK) LTD,1417905-30816320-24-100385-15606401-1-2024,187276.39
Home Office,Home Office,26/01/2024,ADVICE,"UKASRA - Asylum Support, Resettlement & Accommodation.",ERNST AND YOUNG LLP,1406412-GB01G000502433-113852-49000-1-2024,58800
Home Office,Home Office,26/01/2024,CONTRACT OUT SERVICE,"UKASRA - Asylum Support, Resettlement & Accommodation.",PREPAID FINANCIAL SERVICES,1421031-INV101310-55118-72104-1-2024,86524.8
Home Office,Home Office,30/01/2024,ADVICE,"UKASRA - Asylum Support, Resettlement & Accommodation.",BLOOM PROCUREMENT SERVICES LTD,1406412-SIN048642-518536-194832797-1-2024,1948327.97
Home Office,Home Office,31/01/2024,CONT OUT SERV OTHER,"UKASRA - Asylum Support, Resettlement & Accommodation.",COMMERCIAL SERVICES TRADING LTD T/A CONNECT2STAFF,1407015-7000043044-59034-3441388-1-2024,41296.66
Home Office,Home Office,02/01/2024,CONTINGENT LABOUR OTHER,UKBF - UK Border Force,ALEXANDER MANN SOLUTIONS LTD,1432031-2949716-560478-46195-1-2024,554.34
Home Office,Home Office,02/01/2024,CONTINGENT LABOUR OTHER,UKBF - UK Border Force,ALEXANDER MANN SOLUTIONS LTD,1431829-2949716-560478-288775-1-2024,3465.3
Home Office,Home Office,02/01/2024,CONTINGENT LABOUR OTHER,UKBF - UK Border Force,ALEXANDER MANN SOLUTIONS LTD,1431397-2949716-560478-30534-1-2024,3664.08
Home Office,Home Office,02/01/2024,IT RUN COST,UKBF - UK Border Force,ALEXANDER MANN SOLUTIONS LTD,1433452-2950544-560478-26221-1-2024,31465.2
Home Office,Home Office,02/01/2024,IT RUN COST,UKBF - UK Border Force,ALEXANDER MANN SOLUTIONS LTD,1433452-2950545-560478-81939-1-2024,98326.8
Home Office,Home Office,02/01/2024,ADVICE,UKBF - UK Border Force,ALEXANDER MANN SOLUTIONS LTD,1431392-2950557-560478-100000-1-2024,120000
Home Office,Home Office,02/01/2024,RECRUITMENT ADVERTISING,UKBF - UK Border Force,CONEXIA LTD,1431390-6032642443-158585-5861975-1-2024,58619.75
Home Office,Home Office,04/01/2024,EXTERNAL,UKBF - UK Border Force,BLOOM PROCUREMENT SERVICES LTD,1433623-SIN047975-518536-54180-1-2024,54180
Home Office,Home Office,04/01/2024,SYSTEM CLEARING,UKBF - UK Border Force,KINTO UK LTD,1431050-2751439-150319-248866-1-2024,29863.92
Home Office,Home Office,04/01/2024,SYSTEM CLEARING,UKBF - UK Border Force,KINTO UK LTD,1431050-2751440-150319-248866-1-2024,29863.92
Home Office,Home Office,04/01/2024,SYSTEM CLEARING,UKBF - UK Border Force,KINTO UK LTD,1431050-2751441-150319-248866-1-2024,29863.92
Home Office,Home Office,04/01/2024,SYSTEM CLEARING,UKBF - UK Border Force,KINTO UK LTD,1431050-2751442-150319-248866-1-2024,29863.92
Home Office,Home Office,04/01/2024,SYSTEM CLEARING,UKBF - UK Border Force,KINTO UK LTD,1431050-2751443-150319-248866-1-2024,29863.92
Home Office,Home Office,04/01/2024,SYSTEM CLEARING,UKBF - UK Border Force,KINTO UK LTD,1431050-2751444-150319-248866-1-2024,29863.92
Home Office,Home Office,04/01/2024,SYSTEM CLEARING,UKBF - UK Border Force,KINTO UK LTD,1431050-2751445-150319-248866-1-2024,29863.92
Home Office,Home Office,04/01/2024,SYSTEM CLEARING,UKBF - UK Border Force,KINTO UK LTD,1431050-2751446-150319-248866-1-2024,29863.92
Home Office,Home Office,04/01/2024,SYSTEM CLEARING,UKBF - UK Border Force,KINTO UK LTD,1431050-2751447-150319-248866-1-2024,29863.92
Home Office,Home Office,04/01/2024,SYSTEM CLEARING,UKBF - UK Border Force,KINTO UK LTD,1431050-2751448-150319-248866-1-2024,29863.92
Home Office,Home Office,04/01/2024,SYSTEM CLEARING,UKBF - UK Border Force,KINTO UK LTD,1431050-2751438-150319-2613864-1-2024,31366.37
Home Office,Home Office,04/01/2024,FLEET MANAGEMENT,UKBF - UK Border Force,MARITIME CRAFT SERVICES (CLYDE) LTD,1411454-24-027-59134-91450-1-2024,91450
Home Office,Home Office,04/01/2024,FLEET MANAGEMENT,UKBF - UK Border Force,MARITIME CRAFT SERVICES (CLYDE) LTD,1411454-24-028-59134-91450-1-2024,91450
Home Office,Home Office,05/01/2024,FLEET MANAGEMENT,UKBF - UK Border Force,AEOLIAN OFFSHORE LTD,1411454-INV-0387-58438-110825-1-2024,110825
Home Office,Home Office,05/01/2024,FLEET MANAGEMENT,UKBF - UK Border Force,AEOLIAN OFFSHORE LTD,1411454-INV-0388-58438-110825-1-2024,110825
Home Office,Home Office,05/01/2024,FLEET MANAGEMENT,UKBF - UK Border Force,AEOLIAN OFFSHORE LTD,1411454-INV-0398-58438-110825-1-2024,110825
Home Office,Home Office,05/01/2024,CONTINGENT LABOUR OTHER,UKBF - UK Border Force,ALEXANDER MANN SOLUTIONS LTD,1431829-2952165-560478-173265-1-2024,2079.18
Home Office,Home Office,05/01/2024,FULL COST,UKBF - UK Border Force,BROOK STREET (UK) LTD,1433599-30782870-24-100385-87208-1-2024,1046.5
Home Office,Home Office,05/01/2024,CAR PARKING,UKBF - UK Border Force,GATWICK AIRPORT LTD,1433619-4400070819-226967-6048-1-2024,72.58
Home Office,Home Office,05/01/2024,CAR PARKING,UKBF - UK Border Force,GATWICK AIRPORT LTD,1433570-4400070819-226967-6048-1-2024,72.58
Home Office,Home Office,05/01/2024,CAR PARKING,UKBF - UK Border Force,GATWICK AIRPORT LTD,1433503-4400070819-226967-12096-1-2024,145.15
Home Office,Home Office,05/01/2024,CAR PARKING,UKBF - UK Border Force,GATWICK AIRPORT LTD,1431247-4400070819-226967-18144-1-2024,217.73
Home Office,Home Office,05/01/2024,CAR PARKING,UKBF - UK Border Force,GATWICK AIRPORT LTD,1433618-4400070819-226967-24192-1-2024,290.3
Home Office,Home Office,05/01/2024,CAR PARKING,UKBF - UK Border Force,GATWICK AIRPORT LTD,1431132-4400070819-226967-24192-1-2024,290.3
Home Office,Home Office,05/01/2024,CAR PARKING,UKBF - UK Border Force,GATWICK AIRPORT LTD,1431668-4400070819-226967-3024-1-2024,362.88
Home Office,Home Office,05/01/2024,CAR PARKING,UKBF - UK Border Force,GATWICK AIRPORT LTD,1433566-4400070819-226967-42336-1-2024,508.03
Home Office,Home Office,05/01/2024,CAR PARKING,UKBF - UK Border Force,GATWICK AIRPORT LTD,1431861-4400070819-226967-78624-1-2024,943.49
Home Office,Home Office,05/01/2024,CAR PARKING,UKBF - UK Border Force,GATWICK AIRPORT LTD,1431770-4400070819-226967-163296-1-2024,1959.55
Home Office,Home Office,05/01/2024,CAR PARKING,UKBF - UK Border Force,GATWICK AIRPORT LTD,1431771-4400070819-226967-163296-1-2024,1959.55
Home Office,Home Office,05/01/2024,CAR PARKING,UKBF - UK Border Force,GATWICK AIRPORT LTD,1431884-4400070819-226967-199584-1-2024,2395.01
Home Office,Home Office,05/01/2024,CAR PARKING,UKBF - UK Border Force,GATWICK AIRPORT LTD,1431663-4400070819-226967-40824-1-2024,48988.79
Home Office,Home Office,05/01/2024,SYSTEM CLEARING,UKBF - UK Border Force,KINTO UK LTD,1431050-2745868-150319-3397755-1-2024,40449.06
Home Office,Home Office,05/01/2024,BASIC SALARY,UKBF - UK Border Force,MINISTRY OF DEFENCE,1411454-7751777-192639-9752656-1-2024,117031.87
Home Office,Home Office,05/01/2024,SPECIALIST USER SOFTWARE & HARDWARE,UKBF - UK Border Force,SPECIALIST COMPUTER CENTRES PLC,1433424-OP/ N501792-100774-7109431-1-2024,85313.17
Home Office,Home Office,08/01/2024,DEFENCE,UKBF - UK Border Force,MARITIME & COASTGUARD AGENCY (MCA),1431829-231006977-104371-448619-1-2024,53444.3
Home Office,Home Office,08/01/2024,DEFENCE,UKBF - UK Border Force,MARITIME & COASTGUARD AGENCY (MCA),1431829-231006978-104371-4796855-1-2024,57389.75
Home Office,Home Office,08/01/2024,DEFENCE,UKBF - UK Border Force,MARITIME & COASTGUARD AGENCY (MCA),1431829-231006976-104371-5619966-1-2024,67089.66
Home Office,Home Office,08/01/2024,DEFENCE,UKBF - UK Border Force,MARITIME & COASTGUARD AGENCY (MCA),1431829-231006975-104371-5690752-1-2024,67977.52
Home Office,Home Office,08/01/2024,IT RUN COST,UKBF - UK Border Force,WE ARE SNOOK LTD,1432008-91480277-54458-48305-1-2024,57966
Home Office,Home Office,09/01/2024,EXTERNAL,UKBF - UK Border Force,BLOOM PROCUREMENT SERVICES LTD,1433623-SIN047900-518536-25425-1-2024,25425
Home Office,Home Office,09/01/2024,CAR PARKING,UKBF - UK Border Force,HEATHROW AIRPORT LTD,1431601-1001290605-297220-5417045-1-2024,65004.54
Home Office,Home Office,09/01/2024,CAR PARKING,UKBF - UK Border Force,HEATHROW AIRPORT LTD,1431601-1001290539-297220-5591483-1-2024,67097.8
Home Office,Home Office,09/01/2024,CAR PARKING,UKBF - UK Border Force,HEATHROW AIRPORT LTD,1431601-1001290072-297220-5663388-1-2024,67960.66
Home Office,Home Office,10/01/2024,IT RUN COST,UKBF - UK Border Force,ACCENTURE (UK) LTD,1432008-3003644666-106767-54910-1-2024,65892
Home Office,Home Office,10/01/2024,ADVICE,UKBF - UK Border Force,ALEXANDER MANN SOLUTIONS LTD,1432000-2942338-560478-98000-1-2024,117600
Home Office,Home Office,10/01/2024,SECURITY GUARDS,UKBF - UK Border Force,NATIONAL CRIME AGENCY (NCA),1411454-SI\031233-343011-21032-1-2024,25238.4
Home Office,Home Office,10/01/2024,RECRUITMENT ADVERTISING,UKBF - UK Border Force,SHARED SERVICES CONNECTED LTD (SSCL),1431390-100042706-378790-177336-1-2024,177336
Home Office,Home Office,11/01/2024,DEFENCE,UKBF - UK Border Force,MARINE SCOTLAND,1431829-86031144-55935-108255-1-2024,129906
Home Office,Home Office,12/01/2024,FULL COST,UKBF - UK Border Force,BROOK STREET (UK) LTD,1433599-30791401-24-100385-162524-1-2024,1950.29
Home Office,Home Office,12/01/2024,SYSTEM CLEARING,UKBF - UK Border Force,KINTO UK LTD,1431050-2765047-150319-248866-1-2024,29863.92
Home Office,Home Office,12/01/2024,PROJECT,UKBF - UK Border Force,MOTT MACDONALD LTD,1432008-100567663-112809-22702-1-2024,27242.4
Home Office,Home Office,15/01/2024,IT RUN COST,UKBF - UK Border Force,6POINT6 LTD,1432008-3916-338678-953975-1-2024,114477
Home Office,Home Office,16/01/2024,CONTINGENT LABOUR OTHER,UKBF - UK Border Force,ALEXANDER MANN SOLUTIONS LTD,1432008-2955329-560478-147712-1-2024,1772.54
Home Office,Home Office,16/01/2024,CONTINGENT LABOUR OTHER,UKBF - UK Border Force,ALEXANDER MANN SOLUTIONS LTD,1431825-2955329-560478-163814-1-2024,1965.77
Home Office,Home Office,16/01/2024,CONTINGENT LABOUR OTHER,UKBF - UK Border Force,ALEXANDER MANN SOLUTIONS LTD,1431829-2955329-560478-23102-1-2024,2772.24
Home Office,Home Office,16/01/2024,CONTINGENT LABOUR OTHER,UKBF - UK Border Force,ALEXANDER MANN SOLUTIONS LTD,1431392-2955329-560478-588056-1-2024,7056.67
Home Office,Home Office,16/01/2024,RECRUITMENT ADVERTISING,UKBF - UK Border Force,CONEXIA LTD,1431829-6032646390-158585-691949-1-2024,69194.9
Home Office,Home Office,16/01/2024,IT,UKBF - UK Border Force,DELOITTE LLP,1411458-8004342298-112904-3603994-1-2024,43247.93
Home Office,Home Office,17/01/2024,SYSTEM CLEARING,UKBF - UK Border Force,ATKINSREALIS PPS LTD,1411458-23051276-53010-16607751-1-2024,199293.01
Home Office,Home Office,17/01/2024,SYSTEM CLEARING,UKBF - UK Border Force,ATKINSREALIS PPS LTD,1411458-23051276-53010-2869331-1-2024,344319.73
Home Office,Home Office,17/01/2024,FLEET MANAGEMENT,UKBF - UK Border Force,CWIND LTD,1411467-10743-56497-124000-1-2024,124000
Home Office,Home Office,17/01/2024,IT RUN COST,UKBF - UK Border Force,FUJITSU SERVICES LTD,1432008-1030021090-106173-8970448-1-2024,107645.38
Home Office,Home Office,17/01/2024,IT RUN COST,UKBF - UK Border Force,FUJITSU SERVICES LTD,1432008-1030021091-106173-1437199-1-2024,172463.88
Home Office,Home Office,17/01/2024,IT RUN COST,UKBF - UK Border Force,PA CONSULTING SERVICES LTD,1432008-0000029460-100039-25140-1-2024,30168
Home Office,Home Office,17/01/2024,CAR PARKING,UKBF - UK Border Force,PORTSMOUTH CITY COUNCIL,1431281-090306583-100967-55440-1-2024,66528
Home Office,Home Office,18/01/2024,PROJECT,UKBF - UK Border Force,HM REVENUE & CUSTOMS,1433051-18000019632023-187546-36011057-1-2024,360110.57
Home Office,Home Office,19/01/2024,CONTINGENT LABOUR OTHER,UKBF - UK Border Force,ALEXANDER MANN SOLUTIONS LTD,1431829-2959353-560478-288775-1-2024,3465.3
Home Office,Home Office,19/01/2024,CONTINGENT LABOUR OTHER,UKBF - UK Border Force,ALEXANDER MANN SOLUTIONS LTD,1431825-2959353-560478-409535-1-2024,4914.42
Home Office,Home Office,19/01/2024,CONTINGENT LABOUR OTHER,UKBF - UK Border Force,ALEXANDER MANN SOLUTIONS LTD,1431392-2959353-560478-661563-1-2024,7938.76
Home Office,Home Office,19/01/2024,FULL COST,UKBF - UK Border Force,BROOK STREET (UK) LTD,1433599-30801357-24-100385-147604-1-2024,1771.24
Home Office,Home Office,19/01/2024,SYSTEM CLEARING,UKBF - UK Border Force,FUJITSU SERVICES LTD,1432008-1010008312-106173-2993941-1-2024,35927.29
Home Office,Home Office,19/01/2024,SYSTEM CLEARING,UKBF - UK Border Force,FUJITSU SERVICES LTD,1432008-1010008313-106173-302234-1-2024,36268.08
Home Office,Home Office,19/01/2024,SYSTEM CLEARING,UKBF - UK Border Force,FUJITSU SERVICES LTD,1432008-1010008311-106173-9798772-1-2024,117585.26
Home Office,Home Office,19/01/2024,SYSTEM CLEARING,UKBF - UK Border Force,KINTO UK LTD,1431050-2685275-150319-2671717-1-2024,32060.6
Home Office,Home Office,19/01/2024,SYSTEM CLEARING,UKBF - UK Border Force,KINTO UK LTD,1431050-2700123-150319-2695504-1-2024,32346.05
Home Office,Home Office,19/01/2024,SYSTEM CLEARING,UKBF - UK Border Force,KINTO UK LTD,1431050-2641728-150319-4444133-1-2024,53329.59
Home Office,Home Office,19/01/2024,IT RUN COST,UKBF - UK Border Force,PA CONSULTING SERVICES LTD,1433424-0000029478-100039-1252895-1-2024,150347.4
Home Office,Home Office,19/01/2024,IT RUN COST,UKBF - UK Border Force,VISION-BOX SYSTEMS LTD,1433450-24020004-332210-53233-1-2024,63879.6
Home Office,Home Office,22/01/2024,CONTINGENT LABOUR OTHER,UKBF - UK Border Force,ALEXANDER MANN SOLUTIONS LTD,1431392-2960385-560478-625000-1-2024,750000
Home Office,Home Office,22/01/2024,FLEET MANAGEMENT,UKBF - UK Border Force,ALEXANDER MANN SOLUTIONS LTD,1411467-2960388-560478-67858368-1-2024,814300.42
Home Office,Home Office,23/01/2024,IT RUN COST,UKBF - UK Border Force,BAE SYSTEMS APPLIED INTELLIGENCE LIMITED,1432008-1001058503-136604-85659626-1-2024,1027915.51
Home Office,Home Office,23/01/2024,IT RUN COST,UKBF - UK Border Force,CACI LTD,1432008-046992-149473-7051598-1-2024,705159.8
Home Office,Home Office,23/01/2024,OCCUPATIONAL HEALTH,UKBF - UK Border Force,CRG MEDICAL SERVICES,1433526-UKBFCOL-1221-384636-3474865-1-2024,34748.65
Home Office,Home Office,24/01/2024,IT RUN COST,UKBF - UK Border Force,LEIDOS INNOVATIONS UK LTD,1431632-INV02-000650670-136199-494739-1-2024,5936.87
Home Office,Home Office,24/01/2024,IT RUN COST,UKBF - UK Border Force,LEIDOS INNOVATIONS UK LTD,1431736-INV02-000650670-136199-494739-1-2024,5936.87
Home Office,Home Office,24/01/2024,IT RUN COST,UKBF - UK Border Force,LEIDOS INNOVATIONS UK LTD,1431719-INV02-000650670-136199-494739-1-2024,5936.87
Home Office,Home Office,24/01/2024,IT RUN COST,UKBF - UK Border Force,LEIDOS INNOVATIONS UK LTD,1431258-INV02-000650670-136199-989478-1-2024,11873.74
Home Office,Home Office,24/01/2024,POSTAGE,UKBF - UK Border Force,MERCATEO UK LTD,1432031-1080048877-57891-45-1-2024,54
Home Office,Home Office,24/01/2024,OFFICE MACHINERY,UKBF - UK Border Force,MERCATEO UK LTD,1432031-1080048877-57891-71280-1-2024,85536
Home Office,Home Office,24/01/2024,OTHER ICT COSTS,UKBF - UK Border Force,METHODS  BUSINESS AND DIGITAL TECH LTD,1433424-SIN078483-119732-14950-1-2024,17940
Home Office,Home Office,24/01/2024,OTHER ICT COSTS,UKBF - UK Border Force,METHODS  BUSINESS AND DIGITAL TECH LTD,1433424-SIN078482-119732-2354625-1-2024,28255.5
Home Office,Home Office,24/01/2024,IT RUN COST,UKBF - UK Border Force,METHODS  BUSINESS AND DIGITAL TECH LTD,1432008-SIN079206-119732-23850-1-2024,28620
Home Office,Home Office,24/01/2024,OTHER ICT COSTS,UKBF - UK Border Force,METHODS  BUSINESS AND DIGITAL TECH LTD,1432008-SIN078482-119732-10640775-1-2024,127689.3
Home Office,Home Office,24/01/2024,OTHER ICT COSTS,UKBF - UK Border Force,METHODS  BUSINESS AND DIGITAL TECH LTD,1432008-SIN078483-119732-109442-1-2024,131330.4
Home Office,Home Office,25/01/2024,IT RUN COST,UKBF - UK Border Force,BAE SYSTEMS APPLIED INTELLIGENCE LIMITED,1432008-1001057732-136604-290500-1-2024,348600
Home Office,Home Office,25/01/2024,IT RUN COST,UKBF - UK Border Force,BAE SYSTEMS APPLIED INTELLIGENCE LIMITED,1432008-1001057815-136604-290500-1-2024,348600
Home Office,Home Office,25/01/2024,IT RUN COST,UKBF - UK Border Force,FUJITSU SERVICES LTD,1432008-1010008779-106173-2567403-1-2024,30808.84
Home Office,Home Office,25/01/2024,POSTAGE,UKBF - UK Border Force,MERCATEO UK LTD,1432031-1080048953-57891-45-1-2024,54
Home Office,Home Office,25/01/2024,OFFICE MACHINERY,UKBF - UK Border Force,MERCATEO UK LTD,1432031-1080048953-57891-24640-1-2024,29568
Home Office,Home Office,25/01/2024,IT RUN COST,UKBF - UK Border Force,VISION-BOX SYSTEMS LTD,1433450-24020010-332210-7507122-1-2024,90085.46
Home Office,Home Office,25/01/2024,IT RUN COST,UKBF - UK Border Force,VISION-BOX SYSTEMS LTD,1433450-23020182-332210-8438996-1-2024,101267.95
Home Office,Home Office,26/01/2024,CONTINGENT LABOUR OTHER,UKBF - UK Border Force,ALEXANDER MANN SOLUTIONS LTD,1431829-2963750-560478-288775-1-2024,3465.3
Home Office,Home Office,26/01/2024,CONTINGENT LABOUR OTHER,UKBF - UK Border Force,ALEXANDER MANN SOLUTIONS LTD,1431392-2963750-560478-367535-1-2024,4410.42
Home Office,Home Office,26/01/2024,CONTINGENT LABOUR OTHER,UKBF - UK Border Force,ALEXANDER MANN SOLUTIONS LTD,1431825-2963750-560478-409535-1-2024,4914.42
Home Office,Home Office,26/01/2024,IT RUN COST,UKBF - UK Border Force,ALEXANDER MANN SOLUTIONS LTD,1433452-2964814-560478-26221-1-2024,31465.2
Home Office,Home Office,26/01/2024,IT RUN COST,UKBF - UK Border Force,ALEXANDER MANN SOLUTIONS LTD,1432008-2964810-560478-320235-1-2024,38428.2
Home Office,Home Office,26/01/2024,IT RUN COST,UKBF - UK Border Force,ALEXANDER MANN SOLUTIONS LTD,1433452-2964816-560478-65552-1-2024,78662.4
Home Office,Home Office,26/01/2024,IT RUN COST,UKBF - UK Border Force,ALEXANDER MANN SOLUTIONS LTD,1433452-2964813-560478-78662-1-2024,94394.4
Home Office,Home Office,26/01/2024,IT RUN COST,UKBF - UK Border Force,ALEXANDER MANN SOLUTIONS LTD,1433452-2964815-560478-81939-1-2024,98326.8
Home Office,Home Office,26/01/2024,IT RUN COST,UKBF - UK Border Force,ALEXANDER MANN SOLUTIONS LTD,1433452-2964812-560478-98327-1-2024,117992.4
Home Office,Home Office,26/01/2024,ADVICE,UKBF - UK Border Force,ALEXANDER MANN SOLUTIONS LTD,1431392-2964821-560478-150000-1-2024,180000
Home Office,Home Office,26/01/2024,FULL COST,UKBF - UK Border Force,BROOK STREET (UK) LTD,1433599-30816320-24-100385-148106-1-2024,1777.27
Home Office,Home Office,26/01/2024,LEGAL REPRESENTATION,UKBF - UK Border Force,GOVERNMENT LEGAL DEPARTMENT,1431826-537994-113504-587833-1-2024,5878.33
Home Office,Home Office,26/01/2024,LEGAL ADVICE,UKBF - UK Border Force,GOVERNMENT LEGAL DEPARTMENT,1431826-537994-113504-422697-1-2024,42269.7
Home Office,Home Office,29/01/2024,IT RUN COST,UKBF - UK Border Force,CAPGEMINI UK PLC,1432008-2600110406233-112696-11857091-1-2024,142285.09
Home Office,Home Office,29/01/2024,IT RUN COST,UKBF - UK Border Force,CAPGEMINI UK PLC,1432008-2600110406615-112696-48020925-1-2024,576251.1
Home Office,Home Office,29/01/2024,IT RUN COST,UKBF - UK Border Force,FUJITSU SERVICES LTD,1432008-1010008797-106173-5573388-1-2024,66880.66
Home Office,Home Office,30/01/2024,OTHER ICT COSTS,UKBF - UK Border Force,6POINT6 LTD,1432008-3943-338678-166180-1-2024,166180
Home Office,Home Office,30/01/2024,SYSTEM CLEARING,UKBF - UK Border Force,ATKINSREALIS PPS LTD,1411458-24003616-53010-15137372-1-2024,181648.47
Home Office,Home Office,30/01/2024,BUILDING SERVICE CHARGES,UKBF - UK Border Force,HEATHROW AIRPORT LTD,1431601-1001316953-297220-22675-1-2024,27210
Home Office,Home Office,30/01/2024,SYSTEM CLEARING,UKBF - UK Border Force,MASTEK (UK) LTD,1433450-90399443-351665-17719-1-2024,17719
Home Office,Home Office,31/01/2024,FLEET MANAGEMENT,UKBF - UK Border Force,CWIND LTD,1411467-10744-56497-124000-1-2024,124000
Home Office,Home Office,31/01/2024,IT RUN COST,UKBF - UK Border Force,MARLOWE CONSULTING LTD,1432008-1402023-439582-87410-1-2024,104892
Home Office,Home Office,02/01/2024,CONTINGENT LABOUR OTHER,UKIE - Immigration Enforcement,ADECCO UK LTD,1418258-29718708-56679-18216-1-2024,218.59
Home Office,Home Office,02/01/2024,CONTINGENT LABOUR OTHER,UKIE - Immigration Enforcement,ADECCO UK LTD,1417914-29718799-56679-67673-1-2024,812.08
Home Office,Home Office,02/01/2024,CONTINGENT LABOUR OTHER,UKIE - Immigration Enforcement,ADECCO UK LTD,1418131-29718708-56679-67673-1-2024,812.08
Home Office,Home Office,02/01/2024,CONTINGENT LABOUR OTHER,UKIE - Immigration Enforcement,ADECCO UK LTD,1411431-29718708-56679-77256-1-2024,927.07
Home Office,Home Office,02/01/2024,CONTINGENT LABOUR OTHER,UKIE - Immigration Enforcement,ADECCO UK LTD,1418258-29718799-56679-115296-1-2024,1383.55
Home Office,Home Office,02/01/2024,CONTINGENT LABOUR OTHER,UKIE - Immigration Enforcement,ADECCO UK LTD,1418261-29718708-56679-249683-1-2024,2996.2
Home Office,Home Office,02/01/2024,CONTINGENT LABOUR OTHER,UKIE - Immigration Enforcement,ADECCO UK LTD,1411448-29718708-56679-274994-1-2024,3299.93
Home Office,Home Office,02/01/2024,CONTINGENT LABOUR OTHER,UKIE - Immigration Enforcement,ALEXANDER MANN SOLUTIONS LTD,1418256-2949716-560478-857418-1-2024,10289.02
Home Office,Home Office,02/01/2024,CONTINGENT LABOUR OTHER,UKIE - Immigration Enforcement,ALEXANDER MANN SOLUTIONS LTD,1418282-2949716-560478-1880595-1-2024,22567.14
Home Office,Home Office,02/01/2024,CONTINGENT LABOUR OTHER,UKIE - Immigration Enforcement,ALEXANDER MANN SOLUTIONS LTD,1411002-2949716-560478-3150356-1-2024,37804.3
Home Office,Home Office,02/01/2024,PROJECT,UKIE - Immigration Enforcement,MOTT MACDONALD LTD,1411453-100557536-112809-2169024-1-2024,26028.29
Home Office,Home Office,03/01/2024,ASYLUM CASES,UKIE - Immigration Enforcement,CWT UK GROUP LTD,1417111-R7065072240102-112726-343621-1-2024,34362.1
Home Office,Home Office,03/01/2024,ASYLUM CASES,UKIE - Immigration Enforcement,CWT UK GROUP LTD,1417111-R7065072231229-112726-7775761-1-2024,77757.61
Home Office,Home Office,03/01/2024,LEGAL ADVICE,UKIE - Immigration Enforcement,GOVERNMENT LEGAL DEPARTMENT,1418422-536913-113504-28834-1-2024,28834
Home Office,Home Office,03/01/2024,IN COUNTRY ESCORT,UKIE - Immigration Enforcement,MITIE CARE & CUSTODY LTD,1411412-186797/92944561-243944-3414818-1-2024,34148.18
Home Office,Home Office,04/01/2024,ASYLUM CASES,UKIE - Immigration Enforcement,CWT UK GROUP LTD,1417111-R7065072240103-112726-3102006-1-2024,31020.06
Home Office,Home Office,05/01/2024,CONTINGENT LABOUR OTHER,UKIE - Immigration Enforcement,ALEXANDER MANN SOLUTIONS LTD,1418256-2952165-560478-525393-1-2024,6304.72
Home Office,Home Office,05/01/2024,CONTINGENT LABOUR OTHER,UKIE - Immigration Enforcement,ALEXANDER MANN SOLUTIONS LTD,1411002-2952165-560478-728148-1-2024,8737.77
Home Office,Home Office,05/01/2024,CONTINGENT LABOUR OTHER,UKIE - Immigration Enforcement,ALEXANDER MANN SOLUTIONS LTD,1418282-2952165-560478-857436-1-2024,10289.23
Home Office,Home Office,05/01/2024,DETENTION IN POLICE CELLS,UKIE - Immigration Enforcement,AVON & SOMERSET POLICE & CRIME COMMISSIONER,1411102-60646195-112671-352025-1-2024,35202.5
Home Office,Home Office,05/01/2024,FULL COST,UKIE - Immigration Enforcement,BROOK STREET (UK) LTD,1417629-30782870-24-100385-13252-1-2024,159.02
Home Office,Home Office,05/01/2024,FULL COST,UKIE - Immigration Enforcement,BROOK STREET (UK) LTD,1418277-30782870-24-100385-150632-1-2024,1807.59
Home Office,Home Office,05/01/2024,FULL COST,UKIE - Immigration Enforcement,BROOK STREET (UK) LTD,1411411-30782870-24-100385-182868-1-2024,2194.4
Home Office,Home Office,05/01/2024,ASYLUM CASES,UKIE - Immigration Enforcement,CWT UK GROUP LTD,1417111-R7065072240104-112726-3168429-1-2024,31684.29
Home Office,Home Office,05/01/2024,CAR PARKING,UKIE - Immigration Enforcement,GATWICK AIRPORT LTD,1418190-4400070819-226967-36288-1-2024,435.46
Home Office,Home Office,05/01/2024,CAR PARKING,UKIE - Immigration Enforcement,GATWICK AIRPORT LTD,1418231-4400070819-226967-163296-1-2024,1959.56
Home Office,Home Office,05/01/2024,PROJECT,UKIE - Immigration Enforcement,INTERSERVE (FACILITIES MANAGEMENT) LTD,1411412-357525/92941628-100369-7325008-1-2024,87900.1
Home Office,Home Office,05/01/2024,OVERSEAS ESCORTS,UKIE - Immigration Enforcement,MITIE CARE & CUSTODY LTD,1418194-186797/92946342-243944-3115112-1-2024,31151.12
Home Office,Home Office,08/01/2024,CONTINGENT LABOUR OTHER,UKIE - Immigration Enforcement,ADECCO UK LTD,1411431-29724672-56679-1566-1-2024,187.92
Home Office,Home Office,08/01/2024,CONTINGENT LABOUR OTHER,UKIE - Immigration Enforcement,ADECCO UK LTD,1418258-29724758-56679-1566-1-2024,187.92
Home Office,Home Office,08/01/2024,CONTINGENT LABOUR OTHER,UKIE - Immigration Enforcement,ADECCO UK LTD,1411448-29724672-56679-40238-1-2024,482.86
Home Office,Home Office,08/01/2024,CONTINGENT LABOUR OTHER,UKIE - Immigration Enforcement,ADECCO UK LTD,1418258-29724672-56679-49825-1-2024,597.9
Home Office,Home Office,08/01/2024,CONTINGENT LABOUR OTHER,UKIE - Immigration Enforcement,ADECCO UK LTD,1418131-29724672-56679-5487-1-2024,658.44
Home Office,Home Office,08/01/2024,CONTINGENT LABOUR OTHER,UKIE - Immigration Enforcement,ADECCO UK LTD,1418261-29724672-56679-103339-1-2024,1240.08
Home Office,Home Office,08/01/2024,ASYLUM CASES,UKIE - Immigration Enforcement,CWT UK GROUP LTD,1417111-24-000-0058441-112726-84797-1-2024,84797
Home Office,Home Office,08/01/2024,SYSTEM CLEARING,UKIE - Immigration Enforcement,GALLIFORD TRY CONSTRUCTION LTD,1411010-3122003426-126770-32047215-1-2024,384566.58
Home Office,Home Office,09/01/2024,CONT OUT SERV OTHER,UKIE - Immigration Enforcement,ATKINSREALIS PPS LTD,1411010-23054602-53010-1015149-1-2024,121817.88
Home Office,Home Office,09/01/2024,ASYLUM CASES,UKIE - Immigration Enforcement,CWT UK GROUP LTD,1417111-R7065072240108-112726-3995734-1-2024,39957.34
Home Office,Home Office,09/01/2024,COURIER COSTS,UKIE - Immigration Enforcement,FOREIGN COMMONWEALTH & DEVELOPMENT OFFICE,1417122-20011260-113026-17185-1-2024,171.85
Home Office,Home Office,09/01/2024,FCO CHARGES,UKIE - Immigration Enforcement,FOREIGN COMMONWEALTH & DEVELOPMENT OFFICE,1417122-20011260-113026-354488-1-2024,3544.88
Home Office,Home Office,09/01/2024,FCO CHARGES,UKIE - Immigration Enforcement,FOREIGN COMMONWEALTH & DEVELOPMENT OFFICE,1417122-20012074-113026-659834-1-2024,6598.34
Home Office,Home Office,10/01/2024,GAS,UKIE - Immigration Enforcement,CROWN OIL LTD,1411432-1743484-59315-2263298-1-2024,27021.57
Home Office,Home Office,10/01/2024,OVERSEAS ESCORTS,UKIE - Immigration Enforcement,MITIE CARE & CUSTODY LTD,1411413-186797/92942712-243944-2116498-1-2024,21164.98
Home Office,Home Office,10/01/2024,IN COUNTRY ESCORT,UKIE - Immigration Enforcement,MITIE CARE & CUSTODY LTD,1411412-186797/92942687-243944-6394391-1-2024,63943.91
Home Office,Home Office,10/01/2024,OVERSEAS ESCORTS,UKIE - Immigration Enforcement,MITIE CARE & CUSTODY LTD,1411413-186797/92942700-243944-7812495-1-2024,78124.95
Home Office,Home Office,10/01/2024,OVERSEAS ESCORTS,UKIE - Immigration Enforcement,MITIE CARE & CUSTODY LTD,1411413-186797/92942610-243944-27019084-1-2024,270190.84
Home Office,Home Office,10/01/2024,DETENTION IN POLICE CELLS,UKIE - Immigration Enforcement,OFFICE OF THE POLICE & CRIME COMMISSIONER FOR MERSEYSIDE,1411102-304467-100544-2617395-1-2024,26173.95
Home Office,Home Office,10/01/2024,VOLUNTARY ASSISTED RETURNS,UKIE - Immigration Enforcement,PREPAID FINANCIAL SERVICES,1418194-485-55118-500000-1-2024,500000
Home Office,Home Office,11/01/2024,ASYLUM CASES,UKIE - Immigration Enforcement,CWT UK GROUP LTD,1417111-R7065072240110-112726-4517577-1-2024,45175.77
Home Office,Home Office,11/01/2024,OVERSEAS ESCORTS,UKIE - Immigration Enforcement,MITIE CARE & CUSTODY LTD,1411413-186797/92946350-243944-4476859-1-2024,44768.59
Home Office,Home Office,11/01/2024,OVERSEAS ESCORTS,UKIE - Immigration Enforcement,MITIE CARE & CUSTODY LTD,1411413-186797/92946152-243944-904748-1-2024,90474.8
Home Office,Home Office,11/01/2024,DETENTION IN POLICE CELLS,UKIE - Immigration Enforcement,SCOTTISH POLICE AUTHORITY,1411102-S0029022-194742-456807-1-2024,45680.7
Home Office,Home Office,12/01/2024,FULL COST,UKIE - Immigration Enforcement,BROOK STREET (UK) LTD,1411453-30791401-24-100385-5946-1-2024,713.52
Home Office,Home Office,12/01/2024,FULL COST,UKIE - Immigration Enforcement,BROOK STREET (UK) LTD,1418189-30791401-24-100385-6747-1-2024,809.64
Home Office,Home Office,12/01/2024,FULL COST,UKIE - Immigration Enforcement,BROOK STREET (UK) LTD,1417629-30791401-24-100385-72607-1-2024,871.28
Home Office,Home Office,12/01/2024,FULL COST,UKIE - Immigration Enforcement,BROOK STREET (UK) LTD,1417102-30791401-24-100385-195969-1-2024,2351.63
Home Office,Home Office,12/01/2024,FULL COST,UKIE - Immigration Enforcement,BROOK STREET (UK) LTD,1418277-30791401-24-100385-265828-1-2024,3189.94
Home Office,Home Office,12/01/2024,FULL COST,UKIE - Immigration Enforcement,BROOK STREET (UK) LTD,1411411-30791401-24-100385-320271-1-2024,3843.25
Home Office,Home Office,12/01/2024,ASYLUM CASES,UKIE - Immigration Enforcement,CWT UK GROUP LTD,1417111-R7065072240111-112726-3864647-1-2024,38646.47
Home Office,Home Office,12/01/2024,IN COUNTRY ESCORT,UKIE - Immigration Enforcement,MITIE CARE & CUSTODY LTD,1411412-186797/92942663-243944-6017818-1-2024,60178.18
Home Office,Home Office,12/01/2024,OVERSEAS ESCORTS,UKIE - Immigration Enforcement,MITIE CARE & CUSTODY LTD,1411413-186797/92942625-243944-45824864-1-2024,458248.64
Home Office,Home Office,12/01/2024,DETENTION IN POLICE CELLS,UKIE - Immigration Enforcement,NORTHERN IRELAND PRISON SERVICE,1411102-520001068-55399-244500-1-2024,293400
Home Office,Home Office,12/01/2024,DETENTION IN POLICE CELLS,UKIE - Immigration Enforcement,POLICE & CRIME COMMISSIONER FOR HAMPSHIRE,1411102-3680025032-100220-2525555-1-2024,25255.55
Home Office,Home Office,15/01/2024,CONTINGENT LABOUR OTHER,UKIE - Immigration Enforcement,ADECCO UK LTD,1411431-29727575-56679-3132-1-2024,375.84
Home Office,Home Office,15/01/2024,CONTINGENT LABOUR OTHER,UKIE - Immigration Enforcement,ADECCO UK LTD,1418258-29727575-56679-63754-1-2024,765.05
Home Office,Home Office,15/01/2024,CONTINGENT LABOUR OTHER,UKIE - Immigration Enforcement,ADECCO UK LTD,1418131-29727575-56679-67673-1-2024,812.08
Home Office,Home Office,15/01/2024,CONTINGENT LABOUR OTHER,UKIE - Immigration Enforcement,ADECCO UK LTD,1418258-29727653-56679-12528-1-2024,1503.36
Home Office,Home Office,15/01/2024,CONTINGENT LABOUR OTHER,UKIE - Immigration Enforcement,ADECCO UK LTD,1418261-29727575-56679-136261-1-2024,1635.13
Home Office,Home Office,15/01/2024,CONTRACTS,UKIE - Immigration Enforcement,MITIE CARE & CUSTODY LTD,1411432-229181/92942594-243944-86664467-1-2024,866644.67
Home Office,Home Office,15/01/2024,CONTRACTS,UKIE - Immigration Enforcement,SERCO LTD,1411447-91965935-158586-2527332-1-2024,25273.32
Home Office,Home Office,15/01/2024,CONTRACTS,UKIE - Immigration Enforcement,SERCO LTD,1411431-91965295-158586-5945789-1-2024,59457.89
Home Office,Home Office,15/01/2024,CONTRACTS,UKIE - Immigration Enforcement,SERCO LTD,1411431-91965293-158586-60186645-1-2024,601866.45
Home Office,Home Office,15/01/2024,CONTRACTS,UKIE - Immigration Enforcement,SERCO LTD,1411431-91965294-158586-78414756-1-2024,784147.56
Home Office,Home Office,15/01/2024,CONTRACTS,UKIE - Immigration Enforcement,SERCO LTD,1411447-91965699-158586-2314005-1-2024,2314005
Home Office,Home Office,16/01/2024,CONTINGENT LABOUR OTHER,UKIE - Immigration Enforcement,ALEXANDER MANN SOLUTIONS LTD,1418256-2955329-560478-414519-1-2024,4974.23
Home Office,Home Office,16/01/2024,CONTINGENT LABOUR OTHER,UKIE - Immigration Enforcement,ALEXANDER MANN SOLUTIONS LTD,1418282-2955329-560478-1299903-1-2024,15598.84
Home Office,Home Office,16/01/2024,CONTINGENT LABOUR OTHER,UKIE - Immigration Enforcement,ALEXANDER MANN SOLUTIONS LTD,1411002-2955329-560478-2410878-1-2024,28930.56
Home Office,Home Office,16/01/2024,COURIER COSTS,UKIE - Immigration Enforcement,FOREIGN COMMONWEALTH & DEVELOPMENT OFFICE,1417122-20012712-113026-771-1-2024,77.1
Home Office,Home Office,16/01/2024,FCO CHARGES,UKIE - Immigration Enforcement,FOREIGN COMMONWEALTH & DEVELOPMENT OFFICE,1417122-20012712-113026-3322168-1-2024,33221.68
Home Office,Home Office,17/01/2024,ASYLUM CASES,UKIE - Immigration Enforcement,CWT UK GROUP LTD,1417111-R7065072240115-112726-4433567-1-2024,44335.67
Home Office,Home Office,17/01/2024,ASYLUM CASES,UKIE - Immigration Enforcement,CWT UK GROUP LTD,1417111-R7065072240116-112726-11848886-1-2024,118488.86
Home Office,Home Office,17/01/2024,IN COUNTRY ESCORT,UKIE - Immigration Enforcement,MITIE CARE & CUSTODY LTD,1411412-186797/92944557-243944-3164389-1-2024,31643.89
Home Office,Home Office,17/01/2024,IN COUNTRY ESCORT,UKIE - Immigration Enforcement,MITIE CARE & CUSTODY LTD,1411412-186797/92944566-243944-5667225-1-2024,56672.25
Home Office,Home Office,17/01/2024,IN COUNTRY ESCORT,UKIE - Immigration Enforcement,MITIE CARE & CUSTODY LTD,1411412-186797/92944554-243944-13999717-1-2024,139997.17
Home Office,Home Office,17/01/2024,IN COUNTRY ESCORT,UKIE - Immigration Enforcement,MITIE CARE & CUSTODY LTD,1411412-186797/92944556-243944-15789305-1-2024,157893.05
Home Office,Home Office,17/01/2024,IN COUNTRY ESCORT,UKIE - Immigration Enforcement,MITIE CARE & CUSTODY LTD,1411412-186797/92944569-243944-16875753-1-2024,168757.53
Home Office,Home Office,17/01/2024,OVERSEAS ESCORTS,UKIE - Immigration Enforcement,MITIE CARE & CUSTODY LTD,1411413-186797/92944553-243944-23628485-1-2024,236284.85
Home Office,Home Office,17/01/2024,IN COUNTRY ESCORT,UKIE - Immigration Enforcement,MITIE CARE & CUSTODY LTD,1411412-186797/92944568-243944-24469415-1-2024,244694.15
Home Office,Home Office,17/01/2024,IN COUNTRY ESCORT,UKIE - Immigration Enforcement,MITIE CARE & CUSTODY LTD,1411412-186797/92944552-243944-80885183-1-2024,808851.83
Home Office,Home Office,17/01/2024,IN COUNTRY ESCORT,UKIE - Immigration Enforcement,MITIE CARE & CUSTODY LTD,1411412-186797/92944558-243944-10496205-1-2024,1049620.5
Home Office,Home Office,17/01/2024,IN COUNTRY ESCORT,UKIE - Immigration Enforcement,MITIE CARE & CUSTODY LTD,1411412-186797/92944555-243944-180850529-1-2024,1808505.29
Home Office,Home Office,17/01/2024,SYSTEM CLEARING,UKIE - Immigration Enforcement,PA CONSULTING SERVICES LTD,1418267-0000029473-100039-7500-1-2024,9000
Home Office,Home Office,17/01/2024,SYSTEM CLEARING,UKIE - Immigration Enforcement,PA CONSULTING SERVICES LTD,1418267-0000029474-100039-7500-1-2024,9000
Home Office,Home Office,17/01/2024,OTHER ICT COSTS,UKIE - Immigration Enforcement,QINETIQ LTD,1418267-117074070-112688-6701937-1-2024,80423.24
Home Office,Home Office,18/01/2024,ASYLUM CASES,UKIE - Immigration Enforcement,CWT UK GROUP LTD,1417111-R7065072240117-112726-6246727-1-2024,62467.27
Home Office,Home Office,19/01/2024,CONTINGENT LABOUR OTHER,UKIE - Immigration Enforcement,ALEXANDER MANN SOLUTIONS LTD,1418256-2959353-560478-802768-1-2024,9633.22
Home Office,Home Office,19/01/2024,CONTINGENT LABOUR OTHER,UKIE - Immigration Enforcement,ALEXANDER MANN SOLUTIONS LTD,1418282-2959353-560478-1023453-1-2024,12281.44
Home Office,Home Office,19/01/2024,CONTINGENT LABOUR OTHER,UKIE - Immigration Enforcement,ALEXANDER MANN SOLUTIONS LTD,1411002-2959353-560478-4940826-1-2024,59289.92
Home Office,Home Office,19/01/2024,FULL COST,UKIE - Immigration Enforcement,BROOK STREET (UK) LTD,1417629-30801357-24-100385-54321-1-2024,651.85
Home Office,Home Office,19/01/2024,FULL COST,UKIE - Immigration Enforcement,BROOK STREET (UK) LTD,1411453-30801357-24-100385-74815-1-2024,897.78
Home Office,Home Office,19/01/2024,FULL COST,UKIE - Immigration Enforcement,BROOK STREET (UK) LTD,1417102-30801357-24-100385-79219-1-2024,950.63
Home Office,Home Office,19/01/2024,FULL COST,UKIE - Immigration Enforcement,BROOK STREET (UK) LTD,1418189-30801357-24-100385-83816-1-2024,1005.79
Home Office,Home Office,19/01/2024,FULL COST,UKIE - Immigration Enforcement,BROOK STREET (UK) LTD,1418277-30801357-24-100385-36285-1-2024,4354.19
Home Office,Home Office,19/01/2024,FULL COST,UKIE - Immigration Enforcement,BROOK STREET (UK) LTD,1411411-30801357-24-100385-368256-1-2024,4419.06
Home Office,Home Office,19/01/2024,ASYLUM CASES,UKIE - Immigration Enforcement,CWT UK GROUP LTD,1417111-R7065072240118-112726-541711-1-2024,54171.1
Home Office,Home Office,19/01/2024,CURFEW & ELECTRONIC MONITORING,UKIE - Immigration Enforcement,MINISTRY OF JUSTICE,1418258-2272916-199603-149703-1-2024,179643.6
Home Office,Home Office,19/01/2024,CURFEW & ELECTRONIC MONITORING,UKIE - Immigration Enforcement,MINISTRY OF JUSTICE,1418258-2272917-199603-215991756-1-2024,2591901.07
Home Office,Home Office,19/01/2024,CONTRACTS,UKIE - Immigration Enforcement,MITIE CARE & CUSTODY LTD,1411444-30118/92947345-243944-17809225-1-2024,178092.25
Home Office,Home Office,19/01/2024,CONTRACTS,UKIE - Immigration Enforcement,MITIE CARE & CUSTODY LTD,1411444-30118/92944551-243944-216608313-1-2024,2166083.13
Home Office,Home Office,19/01/2024,SYSTEM CLEARING,UKIE - Immigration Enforcement,PA CONSULTING SERVICES LTD,1418267-0000029489-100039-28993-1-2024,34791.6
Home Office,Home Office,22/01/2024,CONTINGENT LABOUR OTHER,UKIE - Immigration Enforcement,ADECCO UK LTD,1418258-29732008-56679-783-1-2024,939.6
Home Office,Home Office,22/01/2024,CONTINGENT LABOUR OTHER,UKIE - Immigration Enforcement,ADECCO UK LTD,1411431-29731917-56679-88266-1-2024,1059.19
Home Office,Home Office,22/01/2024,CONTINGENT LABOUR OTHER,UKIE - Immigration Enforcement,ADECCO UK LTD,1418261-29731917-56679-135346-1-2024,1624.16
Home Office,Home Office,22/01/2024,ASYLUM CASES,UKIE - Immigration Enforcement,CWT UK GROUP LTD,1417111-R7065072240119-112726-2847472-1-2024,28474.72
Home Office,Home Office,23/01/2024,GAS,UKIE - Immigration Enforcement,CROWN OIL LTD,1411432-1751607-59315-2226486-1-2024,26580.17
Home Office,Home Office,23/01/2024,ASYLUM CASES,UKIE - Immigration Enforcement,CWT UK GROUP LTD,1417111-R7065072240122-112726-4967946-1-2024,49679.46
Home Office,Home Office,23/01/2024,FCO CHARGES,UKIE - Immigration Enforcement,FOREIGN COMMONWEALTH & DEVELOPMENT OFFICE,1417122-20012850-113026-417237-1-2024,4172.37
Home Office,Home Office,23/01/2024,CONTRACTS,UKIE - Immigration Enforcement,SERCO LTD,1411447-91966526-158586-6552594-1-2024,65525.94
Home Office,Home Office,24/01/2024,SYSTEM CLEARING,UKIE - Immigration Enforcement,BJSS LIMITED,1418267-INV-UK027438-508104-23220-1-2024,27864
Home Office,Home Office,24/01/2024,SYSTEM CLEARING,UKIE - Immigration Enforcement,BJSS LIMITED,1418267-INV-UK027439-508104-64615-1-2024,77538
Home Office,Home Office,24/01/2024,SYSTEM CLEARING,UKIE - Immigration Enforcement,BJSS LIMITED,1418267-INV-UK027440-508104-72450-1-2024,86940
Home Office,Home Office,24/01/2024,ASYLUM CASES,UKIE - Immigration Enforcement,CWT UK GROUP LTD,1417111-R7065072240123-112726-2583646-1-2024,25836.46
Home Office,Home Office,24/01/2024,OTHER ICT COSTS,UKIE - Immigration Enforcement,METHODS  BUSINESS AND DIGITAL TECH LTD,1418267-SIN078483-119732-1871625-1-2024,22459.5
Home Office,Home Office,24/01/2024,OTHER ICT COSTS,UKIE - Immigration Enforcement,METHODS  BUSINESS AND DIGITAL TECH LTD,1418267-SIN078482-119732-196075-1-2024,23529
Home Office,Home Office,25/01/2024,TELEPHONE,UKIE - Immigration Enforcement,CABINET OFFICE,1418286-3836572-113009-2632222-1-2024,31586.66
Home Office,Home Office,25/01/2024,SYSTEM CLEARING,UKIE - Immigration Enforcement,CLARASYS LTD,1418267-INV105192-56484-15400-1-2024,18480
Home Office,Home Office,25/01/2024,ASYLUM CASES,UKIE - Immigration Enforcement,CWT UK GROUP LTD,1417111-R7065072240124-112726-5888299-1-2024,58882.99
Home Office,Home Office,26/01/2024,CONTINGENT LABOUR OTHER,UKIE - Immigration Enforcement,ALEXANDER MANN SOLUTIONS LTD,1418256-2963750-560478-829773-1-2024,9957.28
Home Office,Home Office,26/01/2024,CONTINGENT LABOUR OTHER,UKIE - Immigration Enforcement,ALEXANDER MANN SOLUTIONS LTD,1418282-2963750-560478-1825452-1-2024,21905.42
Home Office,Home Office,26/01/2024,CONTINGENT LABOUR OTHER,UKIE - Immigration Enforcement,ALEXANDER MANN SOLUTIONS LTD,1411002-2963750-560478-5409547-1-2024,64914.57
Home Office,Home Office,26/01/2024,FULL COST,UKIE - Immigration Enforcement,BROOK STREET (UK) LTD,1417102-30816320-24-100385-63224-1-2024,758.69
Home Office,Home Office,26/01/2024,FULL COST,UKIE - Immigration Enforcement,BROOK STREET (UK) LTD,1417629-30816320-24-100385-65601-1-2024,787.21
Home Office,Home Office,26/01/2024,FULL COST,UKIE - Immigration Enforcement,BROOK STREET (UK) LTD,1411453-30816320-24-100385-70574-1-2024,846.89
Home Office,Home Office,26/01/2024,FULL COST,UKIE - Immigration Enforcement,BROOK STREET (UK) LTD,1418189-30816320-24-100385-76772-1-2024,921.26
Home Office,Home Office,26/01/2024,FULL COST,UKIE - Immigration Enforcement,BROOK STREET (UK) LTD,1411411-30816320-24-100385-367164-1-2024,4405.97
Home Office,Home Office,26/01/2024,FULL COST,UKIE - Immigration Enforcement,BROOK STREET (UK) LTD,1418277-30816320-24-100385-393635-1-2024,4723.61
Home Office,Home Office,26/01/2024,ASYLUM CASES,UKIE - Immigration Enforcement,CWT UK GROUP LTD,1417111-R7065072240125-112726-4711827-1-2024,47118.27
Home Office,Home Office,26/01/2024,ASYLUM CASES,UKIE - Immigration Enforcement,CWT UK GROUP LTD,1417111-23-000-0058332-112726-84797-1-2024,84797
Home Office,Home Office,26/01/2024,VOLUNTARY ASSISTED RETURNS,UKIE - Immigration Enforcement,PREPAID FINANCIAL SERVICES,1418194-493-55118-500000-1-2024,500000
Home Office,Home Office,29/01/2024,CONTINGENT LABOUR OTHER,UKIE - Immigration Enforcement,ADECCO UK LTD,1411431-29736445-56679-5742-1-2024,689.04
Home Office,Home Office,29/01/2024,CONTINGENT LABOUR OTHER,UKIE - Immigration Enforcement,ADECCO UK LTD,1418258-29736534-56679-783-1-2024,939.6
Home Office,Home Office,29/01/2024,CONTINGENT LABOUR OTHER,UKIE - Immigration Enforcement,ADECCO UK LTD,1418261-29736445-56679-91907-1-2024,1102.88
Home Office,Home Office,29/01/2024,CONTINGENT LABOUR OTHER,UKIE - Immigration Enforcement,ADECCO UK LTD,1418258-29736445-56679-123223-1-2024,1478.68
Home Office,Home Office,29/01/2024,CONT OUT SERV OTHER,UKIE - Immigration Enforcement,ATKINSREALIS PPS LTD,1411010-24000540-53010-1015149-1-2024,121817.88
Home Office,Home Office,29/01/2024,ASYLUM CASES,UKIE - Immigration Enforcement,CWT UK GROUP LTD,1417111-R7065072240126-112726-3492784-1-2024,34927.84
Home Office,Home Office,29/01/2024,OTHER ICT COSTS,UKIE - Immigration Enforcement,DELOITTE LLP,1418267-8004386708-112904-21978-1-2024,26373.6
Home Office,Home Office,30/01/2024,ASYLUM CASES,UKIE - Immigration Enforcement,CWT UK GROUP LTD,1417111-R7065072240129-112726-5154771-1-2024,51547.71
Home Office,Home Office,30/01/2024,ASYLUM CASES,UKIE - Immigration Enforcement,CWT UK GROUP LTD,1417111-24-284-0001745-112726-37699925-1-2024,376999.25
Home Office,Home Office,31/01/2024,EXTERNAL,UKIE - Immigration Enforcement,CSL - KPMG LLP,1418236-5502771727-478245-22586-1-2024,22586
Home Office,Home Office,31/01/2024,ASYLUM CASES,UKIE - Immigration Enforcement,CWT UK GROUP LTD,1417111-24-284-0002864-112726-42596833-1-2024,425968.33
Home Office,Home Office,31/01/2024,OTHER,UKIE - Immigration Enforcement,HM REVENUE & CUSTOMS,1417102-18000056092023-187546-712635-1-2024,85516.2
Home Office,Home Office,31/01/2024,RUN COSTS,UKIE - Immigration Enforcement,SERCO LTD,1411453-91965297-158586-60914879-1-2024,609148.79
Home Office,Home Office,02/01/2024,CONTINGENT LABOUR OTHER,UKVIP - Visas Information & Passports,ADECCO UK LTD,1406413-29718708-56679-68588-1-2024,823.06
Home Office,Home Office,02/01/2024,CONTINGENT LABOUR OTHER,UKVIP - Visas Information & Passports,ADECCO UK LTD,1417944-29718799-56679-80185-1-2024,962.22
Home Office,Home Office,02/01/2024,CONTINGENT LABOUR OTHER,UKVIP - Visas Information & Passports,ADECCO UK LTD,1407011-29718799-56679-83443-1-2024,1001.32
Home Office,Home Office,02/01/2024,CONTINGENT LABOUR OTHER,UKVIP - Visas Information & Passports,ADECCO UK LTD,1406686-29718708-56679-185763-1-2024,2229.16
Home Office,Home Office,02/01/2024,CONTINGENT LABOUR OTHER,UKVIP - Visas Information & Passports,ADECCO UK LTD,1406404-29718708-56679-224983-1-2024,2699.81
Home Office,Home Office,02/01/2024,CONTINGENT LABOUR OTHER,UKVIP - Visas Information & Passports,ADECCO UK LTD,1417942-29718708-56679-344928-1-2024,4139.13
Home Office,Home Office,02/01/2024,CONTINGENT LABOUR OTHER,UKVIP - Visas Information & Passports,ADECCO UK LTD,1406686-29718799-56679-392546-1-2024,4710.56
Home Office,Home Office,02/01/2024,CONTINGENT LABOUR OTHER,UKVIP - Visas Information & Passports,ADECCO UK LTD,1406408-29718708-56679-462441-1-2024,5549.29
Home Office,Home Office,02/01/2024,CONTINGENT LABOUR OTHER,UKVIP - Visas Information & Passports,ADECCO UK LTD,1417940-29718708-56679-648578-1-2024,7782.92
Home Office,Home Office,02/01/2024,CONTINGENT LABOUR OTHER,UKVIP - Visas Information & Passports,ADECCO UK LTD,1417940-29718799-56679-794619-1-2024,9535.44
Home Office,Home Office,02/01/2024,CONTINGENT LABOUR OTHER,UKVIP - Visas Information & Passports,ADECCO UK LTD,1406167-29718708-56679-886485-1-2024,10637.82
Home Office,Home Office,02/01/2024,CONTINGENT LABOUR OTHER,UKVIP - Visas Information & Passports,ADECCO UK LTD,1406956-29718708-56679-1234319-1-2024,14811.83
Home Office,Home Office,02/01/2024,CONTINGENT LABOUR OTHER,UKVIP - Visas Information & Passports,ADECCO UK LTD,1508462-29718752-56679-2232286-1-2024,26787.43
Home Office,Home Office,02/01/2024,CONTINGENT LABOUR OTHER,UKVIP - Visas Information & Passports,ADECCO UK LTD,1406415-29718799-56679-594823-1-2024,71378.72
Home Office,Home Office,02/01/2024,CONTINGENT LABOUR OTHER,UKVIP - Visas Information & Passports,ALEXANDER MANN SOLUTIONS LTD,1486657-2949716-560478-5408-1-2024,6489.6
Home Office,Home Office,02/01/2024,OTHER ICT COSTS,UKVIP - Visas Information & Passports,CONNECT ASSIST LTD,1417008-CA 7825-55000-4186245-1-2024,41862.45
Home Office,Home Office,02/01/2024,PASSPORT SECURE DELIVERY,UKVIP - Visas Information & Passports,ROYAL MAIL,1508414-9069107883-112710-1786867-1-2024,178686.7
Home Office,Home Office,03/01/2024,BASIC SALARY,UKVIP - Visas Information & Passports,HM REVENUE & CUSTOMS,1417501-18000050342023-187546-182721-1-2024,219265.2
Home Office,Home Office,03/01/2024,PASSPORT SECURE DELIVERY,UKVIP - Visas Information & Passports,ROYAL MAIL,1508414-9069220853-112710-1630535-1-2024,163053.5
Home Office,Home Office,03/01/2024,PASSPORT SECURE DELIVERY,UKVIP - Visas Information & Passports,ROYAL MAIL,1508414-9069166892-112710-1653113-1-2024,165311.3
Home Office,Home Office,04/01/2024,OTHER,UKVIP - Visas Information & Passports,ALLIED PUBLICITY SERVICES (MANCHESTER) LIMITED,1417945-C83205-500635-5621316-1-2024,56213.16
Home Office,Home Office,04/01/2024,LEGAL REPRESENTATION,UKVIP - Visas Information & Passports,GOVERNMENT LEGAL DEPARTMENT,1406940-536689-113504-54323277-1-2024,543232.77
Home Office,Home Office,04/01/2024,LEGAL ADVICE,UKVIP - Visas Information & Passports,GOVERNMENT LEGAL DEPARTMENT,1406940-536689-113504-156792472-1-2024,1567924.72
Home Office,Home Office,05/01/2024,CONTINGENT LABOUR OTHER,UKVIP - Visas Information & Passports,ALEXANDER MANN SOLUTIONS LTD,1508442-2952165-560478-244212-1-2024,2930.54
Home Office,Home Office,05/01/2024,CONTINGENT LABOUR OTHER,UKVIP - Visas Information & Passports,ALEXANDER MANN SOLUTIONS LTD,1486657-2952165-560478-531608-1-2024,6379.3
Home Office,Home Office,05/01/2024,FULL COST,UKVIP - Visas Information & Passports,BROOK STREET (UK) LTD,1417940-30782870-24-100385-24516-1-2024,294.19
Home Office,Home Office,05/01/2024,FULL COST,UKVIP - Visas Information & Passports,BROOK STREET (UK) LTD,1406413-30782870-24-100385-38976-1-2024,467.71
Home Office,Home Office,05/01/2024,FULL COST,UKVIP - Visas Information & Passports,BROOK STREET (UK) LTD,1406041-30782870-24-100385-52126-1-2024,625.51
Home Office,Home Office,05/01/2024,FULL COST,UKVIP - Visas Information & Passports,BROOK STREET (UK) LTD,1417943-30782870-24-100385-105676-1-2024,1268.11
Home Office,Home Office,05/01/2024,FULL COST,UKVIP - Visas Information & Passports,BROOK STREET (UK) LTD,1417207-30782870-24-100385-108988-1-2024,1307.86
Home Office,Home Office,05/01/2024,FULL COST,UKVIP - Visas Information & Passports,BROOK STREET (UK) LTD,1406956-30782870-24-100385-121669-1-2024,1460.03
Home Office,Home Office,05/01/2024,FULL COST,UKVIP - Visas Information & Passports,BROOK STREET (UK) LTD,1406033-30782870-24-100385-29349-1-2024,3521.87
Home Office,Home Office,05/01/2024,FULL COST,UKVIP - Visas Information & Passports,BROOK STREET (UK) LTD,1406698-30782870-24-100385-333076-1-2024,3996.89
Home Office,Home Office,05/01/2024,FULL COST,UKVIP - Visas Information & Passports,BROOK STREET (UK) LTD,1406404-30782870-24-100385-358405-1-2024,4300.86
Home Office,Home Office,05/01/2024,FULL COST,UKVIP - Visas Information & Passports,BROOK STREET (UK) LTD,1406166-30782870-24-100385-36665-1-2024,4399.79
Home Office,Home Office,05/01/2024,FULL COST,UKVIP - Visas Information & Passports,BROOK STREET (UK) LTD,1417909-30782870-24-100385-485923-1-2024,5831.07
Home Office,Home Office,05/01/2024,FULL COST,UKVIP - Visas Information & Passports,BROOK STREET (UK) LTD,1406165-30782870-24-100385-60266-1-2024,7231.91
Home Office,Home Office,05/01/2024,FULL COST,UKVIP - Visas Information & Passports,BROOK STREET (UK) LTD,1406696-30782870-24-100385-663321-1-2024,7959.85
Home Office,Home Office,05/01/2024,FULL COST,UKVIP - Visas Information & Passports,BROOK STREET (UK) LTD,1406686-30782870-24-100385-816613-1-2024,9799.33
Home Office,Home Office,05/01/2024,FULL COST,UKVIP - Visas Information & Passports,BROOK STREET (UK) LTD,1417941-30782870-24-100385-883551-1-2024,10602.61
Home Office,Home Office,05/01/2024,FULL COST,UKVIP - Visas Information & Passports,BROOK STREET (UK) LTD,1417008-30782870-24-100385-1116223-1-2024,13394.66
Home Office,Home Office,05/01/2024,FULL COST,UKVIP - Visas Information & Passports,BROOK STREET (UK) LTD,1508009-30778891-24-100385-1261532-1-2024,15138.39
Home Office,Home Office,05/01/2024,FULL COST,UKVIP - Visas Information & Passports,BROOK STREET (UK) LTD,1406408-30782870-24-100385-130685-1-2024,15682.17
Home Office,Home Office,05/01/2024,FULL COST,UKVIP - Visas Information & Passports,BROOK STREET (UK) LTD,1407011-30782870-24-100385-1409012-1-2024,16908.13
Home Office,Home Office,05/01/2024,FULL COST,UKVIP - Visas Information & Passports,BROOK STREET (UK) LTD,1406415-30782870-24-100385-3088806-1-2024,37065.68
Home Office,Home Office,05/01/2024,FULL COST,UKVIP - Visas Information & Passports,BROOK STREET (UK) LTD,1508462-30778891-24-100385-3718033-1-2024,44616.36
Home Office,Home Office,05/01/2024,FULL COST,UKVIP - Visas Information & Passports,BROOK STREET (UK) LTD,1406163-30782870-24-100385-4907966-1-2024,58895.61
Home Office,Home Office,05/01/2024,COURIER COSTS,UKVIP - Visas Information & Passports,ROYAL MAIL,1508443-0001879217-112710-26916215-1-2024,269162.15
Home Office,Home Office,05/01/2024,PRINT,UKVIP - Visas Information & Passports,THALES DIS UK LTD,1508411-101423003932-516500-17684991-1-2024,176849.91
Home Office,Home Office,08/01/2024,CONTINGENT LABOUR OTHER,UKVIP - Visas Information & Passports,ADECCO UK LTD,1406408-29724672-56679-47146-1-2024,565.75
Home Office,Home Office,08/01/2024,CONTINGENT LABOUR OTHER,UKVIP - Visas Information & Passports,ADECCO UK LTD,1407011-29724758-56679-60499-1-2024,725.99
Home Office,Home Office,08/01/2024,CONTINGENT LABOUR OTHER,UKVIP - Visas Information & Passports,ADECCO UK LTD,1417944-29724758-56679-67356-1-2024,808.27
Home Office,Home Office,08/01/2024,CONTINGENT LABOUR OTHER,UKVIP - Visas Information & Passports,ADECCO UK LTD,1406413-29724672-56679-108826-1-2024,1305.92
Home Office,Home Office,08/01/2024,CONTINGENT LABOUR OTHER,UKVIP - Visas Information & Passports,ADECCO UK LTD,1406686-29724672-56679-128013-1-2024,1536.16
Home Office,Home Office,08/01/2024,CONTINGENT LABOUR OTHER,UKVIP - Visas Information & Passports,ADECCO UK LTD,1406404-29724672-56679-14102-1-2024,1692.24
Home Office,Home Office,08/01/2024,CONTINGENT LABOUR OTHER,UKVIP - Visas Information & Passports,ADECCO UK LTD,1417940-29724672-56679-154089-1-2024,1849.07
Home Office,Home Office,08/01/2024,CONTINGENT LABOUR OTHER,UKVIP - Visas Information & Passports,ADECCO UK LTD,1406167-29724672-56679-216358-1-2024,2596.31
Home Office,Home Office,08/01/2024,CONTINGENT LABOUR OTHER,UKVIP - Visas Information & Passports,ADECCO UK LTD,1406686-29724758-56679-251389-1-2024,3016.67
Home Office,Home Office,08/01/2024,CONTINGENT LABOUR OTHER,UKVIP - Visas Information & Passports,ADECCO UK LTD,1417940-29724758-56679-266139-1-2024,3193.67
Home Office,Home Office,08/01/2024,CONTINGENT LABOUR OTHER,UKVIP - Visas Information & Passports,ADECCO UK LTD,1406956-29724672-56679-640741-1-2024,7688.84
Home Office,Home Office,08/01/2024,CONTINGENT LABOUR OTHER,UKVIP - Visas Information & Passports,ADECCO UK LTD,1406415-29724758-56679-2380267-1-2024,28563.18
Home Office,Home Office,08/01/2024,CONFERENCES,UKVIP - Visas Information & Passports,CALDER CONFERENCES LTD,1417922-513537-112824-5335083-1-2024,53350.83
Home Office,Home Office,08/01/2024,LEGAL ADVICE,UKVIP - Visas Information & Passports,SCOTLAND OFFICE,1421092-16830-113483-277397-1-2024,277397
Home Office,Home Office,09/01/2024,LEGAL ADVICE,UKVIP - Visas Information & Passports,ADDLESHAW GODDARD LLP,1486657-100-1059236-54018-3036464-1-2024,36437.57
Home Office,Home Office,09/01/2024,LEGAL ADVICE,UKVIP - Visas Information & Passports,ADDLESHAW GODDARD LLP,1486657-100-1056234-54018-3719448-1-2024,44633.38
Home Office,Home Office,09/01/2024,TRANSLATOR,UKVIP - Visas Information & Passports,BIG WORD INTERPRETING SERVICES LTD (THE),1406408-748924-105469-3056581-1-2024,30565.81
Home Office,Home Office,10/01/2024,ADVERSE LEGAL,UKVIP - Visas Information & Passports,GOVERNMENT LEGAL DEPARTMENT,1508010-HOLFT-894-113504-14625-1-2024,14625
Home Office,Home Office,11/01/2024,CONFERENCES,UKVIP - Visas Information & Passports,CALDER CONFERENCES LTD,1417922-514062-112824-33750-1-2024,33750
Home Office,Home Office,11/01/2024,EXTERNAL,UKVIP - Visas Information & Passports,ERNST AND YOUNG LLP,1417922-GB01G000489474-113852-2868325-1-2024,286832.5
Home Office,Home Office,12/01/2024,ADVICE,UKVIP - Visas Information & Passports,ALEXANDER MANN SOLUTIONS LTD,1486657-2956223-560478-22000-1-2024,26400
Home Office,Home Office,12/01/2024,TRANSLATOR,UKVIP - Visas Information & Passports,BIG WORD INTERPRETING SERVICES LTD (THE),1406408-20278186-105469-16120965-1-2024,161209.65
Home Office,Home Office,12/01/2024,FULL COST,UKVIP - Visas Information & Passports,BROOK STREET (UK) LTD,1417940-30791401-24-100385-36774-1-2024,441.29
Home Office,Home Office,12/01/2024,FULL COST,UKVIP - Visas Information & Passports,BROOK STREET (UK) LTD,1406413-30791401-24-100385-79296-1-2024,951.55
Home Office,Home Office,12/01/2024,FULL COST,UKVIP - Visas Information & Passports,BROOK STREET (UK) LTD,1417207-30791401-24-100385-11205-1-2024,1344.6
Home Office,Home Office,12/01/2024,FULL COST,UKVIP - Visas Information & Passports,BROOK STREET (UK) LTD,1417943-30791401-24-100385-139532-1-2024,1674.39
Home Office,Home Office,12/01/2024,FULL COST,UKVIP - Visas Information & Passports,BROOK STREET (UK) LTD,1406956-30791401-24-100385-150822-1-2024,1809.86
Home Office,Home Office,12/01/2024,FULL COST,UKVIP - Visas Information & Passports,BROOK STREET (UK) LTD,1406041-30791401-24-100385-16168-1-2024,1940.16
Home Office,Home Office,12/01/2024,FULL COST,UKVIP - Visas Information & Passports,BROOK STREET (UK) LTD,1406698-30791401-24-100385-436448-1-2024,5237.37
Home Office,Home Office,12/01/2024,FULL COST,UKVIP - Visas Information & Passports,BROOK STREET (UK) LTD,1406404-30791401-24-100385-466903-1-2024,5602.84
Home Office,Home Office,12/01/2024,FULL COST,UKVIP - Visas Information & Passports,BROOK STREET (UK) LTD,1406166-30791401-24-100385-628164-1-2024,7537.95
Home Office,Home Office,12/01/2024,FULL COST,UKVIP - Visas Information & Passports,BROOK STREET (UK) LTD,1406033-30791401-24-100385-68723-1-2024,8246.75
Home Office,Home Office,12/01/2024,FULL COST,UKVIP - Visas Information & Passports,BROOK STREET (UK) LTD,1417909-30791401-24-100385-73021-1-2024,8762.51
Home Office,Home Office,12/01/2024,FULL COST,UKVIP - Visas Information & Passports,BROOK STREET (UK) LTD,1406165-30791401-24-100385-764854-1-2024,9178.23
Home Office,Home Office,12/01/2024,FULL COST,UKVIP - Visas Information & Passports,BROOK STREET (UK) LTD,1406696-30791401-24-100385-995467-1-2024,11945.61
Home Office,Home Office,12/01/2024,FULL COST,UKVIP - Visas Information & Passports,BROOK STREET (UK) LTD,1406686-30791401-24-100385-1050441-1-2024,12605.28
Home Office,Home Office,12/01/2024,FULL COST,UKVIP - Visas Information & Passports,BROOK STREET (UK) LTD,1417941-30791401-24-100385-1570866-1-2024,18850.38
Home Office,Home Office,12/01/2024,FULL COST,UKVIP - Visas Information & Passports,BROOK STREET (UK) LTD,1417008-30791401-24-100385-1678357-1-2024,20140.26
Home Office,Home Office,12/01/2024,FULL COST,UKVIP - Visas Information & Passports,BROOK STREET (UK) LTD,1407011-30791401-24-100385-2507177-1-2024,30086.09
Home Office,Home Office,12/01/2024,FULL COST,UKVIP - Visas Information & Passports,BROOK STREET (UK) LTD,1406408-30791401-24-100385-2648855-1-2024,31786.22
Home Office,Home Office,12/01/2024,FULL COST,UKVIP - Visas Information & Passports,BROOK STREET (UK) LTD,1406415-30791401-24-100385-3694562-1-2024,44334.72
Home Office,Home Office,12/01/2024,FULL COST,UKVIP - Visas Information & Passports,BROOK STREET (UK) LTD,1406163-30791401-24-100385-97442-1-2024,116930.23
Home Office,Home Office,12/01/2024,IT RUN COST,UKVIP - Visas Information & Passports,BUSINESS SYSTEMS (UK) LTD,1407011-05883-467495-32525-1-2024,39030
Home Office,Home Office,12/01/2024,IT RUN COST,UKVIP - Visas Information & Passports,BUSINESS SYSTEMS (UK) LTD,1407011-05884-467495-32525-1-2024,39030
Home Office,Home Office,12/01/2024,IT RUN COST,UKVIP - Visas Information & Passports,BUSINESS SYSTEMS (UK) LTD,1407011-05882-467495-5305269-1-2024,63663.23
Home Office,Home Office,12/01/2024,LEGAL REPRESENTATION,UKVIP - Visas Information & Passports,CROWN SOLICITORS OFFICE,1421092-HOINV-0024-100610-2725776-1-2024,27257.76
Home Office,Home Office,12/01/2024,PASSPORT SECURE DELIVERY,UKVIP - Visas Information & Passports,DHL PARCEL UK LTD,1508414-8834576-250188-26284641-1-2024,262846.41
Home Office,Home Office,12/01/2024,OTHER,UKVIP - Visas Information & Passports,SOPRA STERIA LTD,1508460-100212911-112699-2451555-1-2024,29418.66
Home Office,Home Office,12/01/2024,OTHER,UKVIP - Visas Information & Passports,SOPRA STERIA LTD,1508460-100213687-112699-2451555-1-2024,29418.66
Home Office,Home Office,15/01/2024,CONTINGENT LABOUR OTHER,UKVIP - Visas Information & Passports,ADECCO UK LTD,1406167-29727575-56679-5744-1-2024,68.93
Home Office,Home Office,15/01/2024,CONTINGENT LABOUR OTHER,UKVIP - Visas Information & Passports,ADECCO UK LTD,1406413-29727575-56679-53956-1-2024,647.47
Home Office,Home Office,15/01/2024,CONTINGENT LABOUR OTHER,UKVIP - Visas Information & Passports,ADECCO UK LTD,1417944-29727653-56679-58528-1-2024,702.34
Home Office,Home Office,15/01/2024,CONTINGENT LABOUR OTHER,UKVIP - Visas Information & Passports,ADECCO UK LTD,1406686-29727575-56679-156888-1-2024,1882.66
Home Office,Home Office,15/01/2024,CONTINGENT LABOUR OTHER,UKVIP - Visas Information & Passports,ADECCO UK LTD,1406404-29727575-56679-202532-1-2024,2430.38
Home Office,Home Office,15/01/2024,CONTINGENT LABOUR OTHER,UKVIP - Visas Information & Passports,ADECCO UK LTD,1417940-29727575-56679-22583-1-2024,2709.96
Home Office,Home Office,15/01/2024,CONTINGENT LABOUR OTHER,UKVIP - Visas Information & Passports,ADECCO UK LTD,1406686-29727653-56679-373351-1-2024,4480.22
Home Office,Home Office,15/01/2024,CONTINGENT LABOUR OTHER,UKVIP - Visas Information & Passports,ADECCO UK LTD,1417940-29727653-56679-566599-1-2024,6799.14
Home Office,Home Office,15/01/2024,CONTINGENT LABOUR OTHER,UKVIP - Visas Information & Passports,ADECCO UK LTD,1406956-29727575-56679-846729-1-2024,10160.77
Home Office,Home Office,15/01/2024,CONTINGENT LABOUR OTHER,UKVIP - Visas Information & Passports,ADECCO UK LTD,1406415-29727653-56679-3741884-1-2024,44902.65
Home Office,Home Office,15/01/2024,FULL COST,UKVIP - Visas Information & Passports,BROOK STREET (UK) LTD,1508009-30786093-24-100385-1913303-1-2024,22959.62
Home Office,Home Office,15/01/2024,FULL COST,UKVIP - Visas Information & Passports,BROOK STREET (UK) LTD,1508462-30786093-24-100385-5308551-1-2024,63702.62
Home Office,Home Office,15/01/2024,IT RUN COST,UKVIP - Visas Information & Passports,ENTSERV UK LTD,1508572-6134065-102438-12313309-1-2024,147759.71
Home Office,Home Office,15/01/2024,ADVICE,UKVIP - Visas Information & Passports,ERNST AND YOUNG LLP,1508611-GB01G000498710-113852-106250-1-2024,106250
Home Office,Home Office,16/01/2024,CONTINGENT LABOUR OTHER,UKVIP - Visas Information & Passports,ALEXANDER MANN SOLUTIONS LTD,1508442-2955329-560478-162808-1-2024,1953.7
Home Office,Home Office,16/01/2024,CONTINGENT LABOUR OTHER,UKVIP - Visas Information & Passports,ALEXANDER MANN SOLUTIONS LTD,1486657-2955329-560478-1486425-1-2024,17837.11
Home Office,Home Office,16/01/2024,OTHER ICT COSTS,UKVIP - Visas Information & Passports,FOREIGN COMMONWEALTH & DEVELOPMENT OFFICE,1406662-20012712-113026-58538-1-2024,585.38
Home Office,Home Office,16/01/2024,OUTHOUSING SEIZED GOODS,UKVIP - Visas Information & Passports,IRON MOUNTAIN (UK) LTD,1508001-0800453-116000-3380786-1-2024,33807.86
Home Office,Home Office,16/01/2024,CALL CENTRE PDP RUN COSTS,UKVIP - Visas Information & Passports,SERCO LTD,1508414-91965795-158586-20942363-1-2024,209423.63
Home Office,Home Office,16/01/2024,CALL CENTRE PDP RUN COSTS,UKVIP - Visas Information & Passports,TELEPERFORMANCE LTD,1508443-TPUK-INV000008409-216073-10490429-1-2024,104904.29
Home Office,Home Office,16/01/2024,CALL CENTRE PDP RUN COSTS,UKVIP - Visas Information & Passports,TELEPERFORMANCE LTD,1508443-TPUK-INV000008408-216073-14887421-1-2024,148874.21
Home Office,Home Office,16/01/2024,CALL CENTRE PDP RUN COSTS,UKVIP - Visas Information & Passports,TELEPERFORMANCE LTD,1508443-TPUK-INV000008410-216073-56490014-1-2024,564900.14
Home Office,Home Office,17/01/2024,PASSPORT SECURE DELIVERY,UKVIP - Visas Information & Passports,ROYAL MAIL,1508414-9069275186-112710-1332431-1-2024,133243.1
Home Office,Home Office,18/01/2024,CONFERENCES,UKVIP - Visas Information & Passports,CALDER CONFERENCES LTD,1406033-514378-112824-7166665-1-2024,71666.65
Home Office,Home Office,18/01/2024,COURIER COSTS,UKVIP - Visas Information & Passports,WHISTL UK LTD,1508443-IN13US24000203-57640-2251297-1-2024,22512.97
Home Office,Home Office,18/01/2024,COURIER COSTS,UKVIP - Visas Information & Passports,WHISTL UK LTD,1508443-IN13US24000187-57640-2534664-1-2024,25346.64
Home Office,Home Office,19/01/2024,CONTINGENT LABOUR OTHER,UKVIP - Visas Information & Passports,ALEXANDER MANN SOLUTIONS LTD,1508442-2959353-560478-40702-1-2024,4884.24
Home Office,Home Office,19/01/2024,CONTINGENT LABOUR OTHER,UKVIP - Visas Information & Passports,ALEXANDER MANN SOLUTIONS LTD,1486657-2959353-560478-228006-1-2024,27360.72
Home Office,Home Office,19/01/2024,FULL COST,UKVIP - Visas Information & Passports,BROOK STREET (UK) LTD,1417940-30801357-24-100385-49326-1-2024,591.91
Home Office,Home Office,19/01/2024,FULL COST,UKVIP - Visas Information & Passports,BROOK STREET (UK) LTD,1406413-30801357-24-100385-99988-1-2024,1199.85
Home Office,Home Office,19/01/2024,FULL COST,UKVIP - Visas Information & Passports,BROOK STREET (UK) LTD,1417207-30801357-24-100385-130821-1-2024,1569.84
Home Office,Home Office,19/01/2024,FULL COST,UKVIP - Visas Information & Passports,BROOK STREET (UK) LTD,1406956-30801357-24-100385-17073-1-2024,2048.76
Home Office,Home Office,19/01/2024,FULL COST,UKVIP - Visas Information & Passports,BROOK STREET (UK) LTD,1406041-30801357-24-100385-250542-1-2024,3006.5
Home Office,Home Office,19/01/2024,FULL COST,UKVIP - Visas Information & Passports,BROOK STREET (UK) LTD,1417943-30801357-24-100385-255664-1-2024,3067.96
Home Office,Home Office,19/01/2024,FULL COST,UKVIP - Visas Information & Passports,BROOK STREET (UK) LTD,1406404-30801357-24-100385-509504-1-2024,6114.05
Home Office,Home Office,19/01/2024,FULL COST,UKVIP - Visas Information & Passports,BROOK STREET (UK) LTD,1406698-30801357-24-100385-613558-1-2024,7362.67
Home Office,Home Office,19/01/2024,FULL COST,UKVIP - Visas Information & Passports,BROOK STREET (UK) LTD,1406033-30801357-24-100385-777352-1-2024,9328.23
Home Office,Home Office,19/01/2024,FULL COST,UKVIP - Visas Information & Passports,BROOK STREET (UK) LTD,1406166-30801357-24-100385-81567-1-2024,9788.07
Home Office,Home Office,19/01/2024,FULL COST,UKVIP - Visas Information & Passports,BROOK STREET (UK) LTD,1406165-30801357-24-100385-943146-1-2024,11317.76
Home Office,Home Office,19/01/2024,FULL COST,UKVIP - Visas Information & Passports,BROOK STREET (UK) LTD,1417909-30801357-24-100385-953685-1-2024,11444.23
Home Office,Home Office,19/01/2024,FULL COST,UKVIP - Visas Information & Passports,BROOK STREET (UK) LTD,1417941-30801357-24-100385-132974-1-2024,15956.89
Home Office,Home Office,19/01/2024,FULL COST,UKVIP - Visas Information & Passports,BROOK STREET (UK) LTD,1406696-30801357-24-100385-1636624-1-2024,19639.43
Home Office,Home Office,19/01/2024,FULL COST,UKVIP - Visas Information & Passports,BROOK STREET (UK) LTD,1406686-30801357-24-100385-1680234-1-2024,20162.78
Home Office,Home Office,19/01/2024,FULL COST,UKVIP - Visas Information & Passports,BROOK STREET (UK) LTD,1508009-30795630-24-100385-2586886-1-2024,31042.58
Home Office,Home Office,19/01/2024,FULL COST,UKVIP - Visas Information & Passports,BROOK STREET (UK) LTD,1417008-30801357-24-100385-2807623-1-2024,33691.46
Home Office,Home Office,19/01/2024,FULL COST,UKVIP - Visas Information & Passports,BROOK STREET (UK) LTD,1407011-30801357-24-100385-3142863-1-2024,37714.42
Home Office,Home Office,19/01/2024,FULL COST,UKVIP - Visas Information & Passports,BROOK STREET (UK) LTD,1406408-30801357-24-100385-3583812-1-2024,43005.71
Home Office,Home Office,19/01/2024,FULL COST,UKVIP - Visas Information & Passports,BROOK STREET (UK) LTD,1406415-30801357-24-100385-553869-1-2024,66464.18
Home Office,Home Office,19/01/2024,FULL COST,UKVIP - Visas Information & Passports,BROOK STREET (UK) LTD,1508462-30795630-24-100385-7324887-1-2024,87898.65
Home Office,Home Office,19/01/2024,FULL COST,UKVIP - Visas Information & Passports,BROOK STREET (UK) LTD,1406163-30801357-24-100385-11057489-1-2024,132690.11
Home Office,Home Office,19/01/2024,LEGAL REPRESENTATION,UKVIP - Visas Information & Passports,GOVERNMENT LEGAL DEPARTMENT,1406940-537981-113504-58692758-1-2024,586927.58
Home Office,Home Office,19/01/2024,LEGAL ADVICE,UKVIP - Visas Information & Passports,GOVERNMENT LEGAL DEPARTMENT,1406940-537981-113504-122306371-1-2024,1223063.71
Home Office,Home Office,19/01/2024,RECRUITMENT ADVERTISING,UKVIP - Visas Information & Passports,SHARED SERVICES CONNECTED LTD (SSCL),1417909-100041253-378790-3399371-1-2024,33993.71
Home Office,Home Office,22/01/2024,CONTINGENT LABOUR OTHER,UKVIP - Visas Information & Passports,ADECCO UK LTD,1508462-29731917-56679-17145-1-2024,205.74
Home Office,Home Office,22/01/2024,CONTINGENT LABOUR OTHER,UKVIP - Visas Information & Passports,ADECCO UK LTD,1417944-29732008-56679-67673-1-2024,812.08
Home Office,Home Office,22/01/2024,CONTINGENT LABOUR OTHER,UKVIP - Visas Information & Passports,ADECCO UK LTD,1407011-29732008-56679-67673-1-2024,812.08
Home Office,Home Office,22/01/2024,CONTINGENT LABOUR OTHER,UKVIP - Visas Information & Passports,ADECCO UK LTD,1406413-29731917-56679-104712-1-2024,1256.55
Home Office,Home Office,22/01/2024,CONTINGENT LABOUR OTHER,UKVIP - Visas Information & Passports,ADECCO UK LTD,1406167-29731917-56679-123458-1-2024,1481.5
Home Office,Home Office,22/01/2024,CONTINGENT LABOUR OTHER,UKVIP - Visas Information & Passports,ADECCO UK LTD,1406686-29731917-56679-185763-1-2024,2229.16
Home Office,Home Office,22/01/2024,CONTINGENT LABOUR OTHER,UKVIP - Visas Information & Passports,ADECCO UK LTD,1406404-29731917-56679-220223-1-2024,2642.69
Home Office,Home Office,22/01/2024,CONTINGENT LABOUR OTHER,UKVIP - Visas Information & Passports,ADECCO UK LTD,1417940-29731917-56679-293559-1-2024,3522.66
Home Office,Home Office,22/01/2024,CONTINGENT LABOUR OTHER,UKVIP - Visas Information & Passports,ADECCO UK LTD,1406686-29732008-56679-34327-1-2024,4119.24
Home Office,Home Office,22/01/2024,CONTINGENT LABOUR OTHER,UKVIP - Visas Information & Passports,ADECCO UK LTD,1417940-29732008-56679-442198-1-2024,5306.28
Home Office,Home Office,22/01/2024,CONTINGENT LABOUR OTHER,UKVIP - Visas Information & Passports,ADECCO UK LTD,1406956-29731917-56679-1191343-1-2024,14296.1
Home Office,Home Office,22/01/2024,CONTINGENT LABOUR OTHER,UKVIP - Visas Information & Passports,ADECCO UK LTD,1406415-29732008-56679-4816402-1-2024,57796.9
Home Office,Home Office,22/01/2024,RUN COST DEVICE PFI,UKVIP - Visas Information & Passports,ALEXANDER MANN SOLUTIONS LTD,1486657-2960382-560478-64125-1-2024,64125
Home Office,Home Office,23/01/2024,OTHER ICT COSTS,UKVIP - Visas Information & Passports,FOREIGN COMMONWEALTH & DEVELOPMENT OFFICE,1406662-20012850-113026-339-1-2024,3.39
Home Office,Home Office,24/01/2024,PASSPORT APPLICATION FORMS,UKVIP - Visas Information & Passports,CABINET OFFICE,1508641-3836594-113009-3053987-1-2024,30539.87
Home Office,Home Office,24/01/2024,CONFERENCES,UKVIP - Visas Information & Passports,CALDER CONFERENCES LTD,1417922-515054-112824-2889733-1-2024,28897.33
Home Office,Home Office,24/01/2024,IT RUN COST,UKVIP - Visas Information & Passports,LEIDOS INNOVATIONS UK LTD,1406165-INV02-000650670-136199-1978956-1-2024,23747.47
Home Office,Home Office,25/01/2024,BASIC SALARY,UKVIP - Visas Information & Passports,HM REVENUE & CUSTOMS,1406408-18000055602023-187546-4338666-1-2024,52063.99
Home Office,Home Office,26/01/2024,CONTINGENT LABOUR OTHER,UKVIP - Visas Information & Passports,ALEXANDER MANN SOLUTIONS LTD,1486657-2963750-560478-2458305-1-2024,29499.66
Home Office,Home Office,26/01/2024,FULL COST,UKVIP - Visas Information & Passports,BROOK STREET (UK) LTD,1417940-30816320-24-100385-492-1-2024,590.4
Home Office,Home Office,26/01/2024,FULL COST,UKVIP - Visas Information & Passports,BROOK STREET (UK) LTD,1406413-30816320-24-100385-79532-1-2024,954.38
Home Office,Home Office,26/01/2024,FULL COST,UKVIP - Visas Information & Passports,BROOK STREET (UK) LTD,1417207-30816320-24-100385-11803-1-2024,1416.36
Home Office,Home Office,26/01/2024,FULL COST,UKVIP - Visas Information & Passports,BROOK STREET (UK) LTD,1406956-30816320-24-100385-188442-1-2024,2261.3
Home Office,Home Office,26/01/2024,FULL COST,UKVIP - Visas Information & Passports,BROOK STREET (UK) LTD,1406041-30816320-24-100385-262404-1-2024,3148.84
Home Office,Home Office,26/01/2024,FULL COST,UKVIP - Visas Information & Passports,BROOK STREET (UK) LTD,1417943-30816320-24-100385-328471-1-2024,3941.64
Home Office,Home Office,26/01/2024,FULL COST,UKVIP - Visas Information & Passports,BROOK STREET (UK) LTD,1406404-30816320-24-100385-524783-1-2024,6297.38
Home Office,Home Office,26/01/2024,FULL COST,UKVIP - Visas Information & Passports,BROOK STREET (UK) LTD,1406698-30816320-24-100385-626752-1-2024,7520.99
Home Office,Home Office,26/01/2024,FULL COST,UKVIP - Visas Information & Passports,BROOK STREET (UK) LTD,1406166-30816320-24-100385-715405-1-2024,8584.84
Home Office,Home Office,26/01/2024,FULL COST,UKVIP - Visas Information & Passports,BROOK STREET (UK) LTD,1406033-30816320-24-100385-751449-1-2024,9017.39
Home Office,Home Office,26/01/2024,FULL COST,UKVIP - Visas Information & Passports,BROOK STREET (UK) LTD,1406165-30816320-24-100385-968517-1-2024,11622.17
Home Office,Home Office,26/01/2024,FULL COST,UKVIP - Visas Information & Passports,BROOK STREET (UK) LTD,1417909-30816320-24-100385-1147404-1-2024,13768.81
Home Office,Home Office,26/01/2024,FULL COST,UKVIP - Visas Information & Passports,BROOK STREET (UK) LTD,1417941-30816320-24-100385-1267179-1-2024,15206.13
Home Office,Home Office,26/01/2024,FULL COST,UKVIP - Visas Information & Passports,BROOK STREET (UK) LTD,1406686-30816320-24-100385-1614826-1-2024,19377.88
Home Office,Home Office,26/01/2024,FULL COST,UKVIP - Visas Information & Passports,BROOK STREET (UK) LTD,1406696-30816320-24-100385-1808867-1-2024,21706.37
Home Office,Home Office,26/01/2024,FULL COST,UKVIP - Visas Information & Passports,BROOK STREET (UK) LTD,1508009-30810575-24-100385-2494354-1-2024,29932.2
Home Office,Home Office,26/01/2024,FULL COST,UKVIP - Visas Information & Passports,BROOK STREET (UK) LTD,1417008-30816320-24-100385-3137729-1-2024,37652.66
Home Office,Home Office,26/01/2024,FULL COST,UKVIP - Visas Information & Passports,BROOK STREET (UK) LTD,1406408-30816320-24-100385-3217083-1-2024,38604.89
Home Office,Home Office,26/01/2024,FULL COST,UKVIP - Visas Information & Passports,BROOK STREET (UK) LTD,1407011-30816320-24-100385-3384996-1-2024,40619.86
Home Office,Home Office,26/01/2024,FULL COST,UKVIP - Visas Information & Passports,BROOK STREET (UK) LTD,1508462-30810575-24-100385-6610721-1-2024,79328.62
Home Office,Home Office,26/01/2024,FULL COST,UKVIP - Visas Information & Passports,BROOK STREET (UK) LTD,1406415-30816320-24-100385-6892509-1-2024,82709.94
Home Office,Home Office,26/01/2024,FULL COST,UKVIP - Visas Information & Passports,BROOK STREET (UK) LTD,1406163-30816320-24-100385-10855468-1-2024,130266.45
Home Office,Home Office,26/01/2024,BASIC SALARY,UKVIP - Visas Information & Passports,HM REVENUE & CUSTOMS,1406164-18000055572023-187546-3717945-1-2024,446153.4
Home Office,Home Office,29/01/2024,CONTINGENT LABOUR OTHER,UKVIP - Visas Information & Passports,ADECCO UK LTD,1417944-29736534-56679-67673-1-2024,812.08
Home Office,Home Office,29/01/2024,CONTINGENT LABOUR OTHER,UKVIP - Visas Information & Passports,ADECCO UK LTD,1407011-29736534-56679-83443-1-2024,1001.32
Home Office,Home Office,29/01/2024,CONTINGENT LABOUR OTHER,UKVIP - Visas Information & Passports,ADECCO UK LTD,1406686-29736445-56679-128975-1-2024,1547.7
Home Office,Home Office,29/01/2024,CONTINGENT LABOUR OTHER,UKVIP - Visas Information & Passports,ADECCO UK LTD,1406413-29736445-56679-136438-1-2024,1637.26
Home Office,Home Office,29/01/2024,CONTINGENT LABOUR OTHER,UKVIP - Visas Information & Passports,ADECCO UK LTD,1417940-29736445-56679-241759-1-2024,2901.08
Home Office,Home Office,29/01/2024,CONTINGENT LABOUR OTHER,UKVIP - Visas Information & Passports,ADECCO UK LTD,1417940-29736534-56679-24321-1-2024,2918.52
Home Office,Home Office,29/01/2024,CONTINGENT LABOUR OTHER,UKVIP - Visas Information & Passports,ADECCO UK LTD,1406404-29736445-56679-281827-1-2024,3381.94
Home Office,Home Office,29/01/2024,CONTINGENT LABOUR OTHER,UKVIP - Visas Information & Passports,ADECCO UK LTD,1406686-29736534-56679-334978-1-2024,4019.74
Home Office,Home Office,29/01/2024,CONTINGENT LABOUR OTHER,UKVIP - Visas Information & Passports,ADECCO UK LTD,1406956-29736445-56679-1120089-1-2024,13441.06
Home Office,Home Office,29/01/2024,CONTINGENT LABOUR OTHER,UKVIP - Visas Information & Passports,ADECCO UK LTD,1406415-29736534-56679-5258706-1-2024,63104.46
Home Office,Home Office,29/01/2024,OVERSEAS PASSPORT DIRECT COST,UKVIP - Visas Information & Passports,DHL GLOBAL FORWARDING UK LTD,1508008-H1674051-246751-51075-1-2024,61290
Home Office,Home Office,29/01/2024,OVERSEAS PASSPORT DIRECT COST,UKVIP - Visas Information & Passports,DHL GLOBAL FORWARDING UK LTD,1508008-H1674032-246751-70925452-1-2024,709254.52
Home Office,Home Office,29/01/2024,BASIC SALARY,UKVIP - Visas Information & Passports,HM REVENUE & CUSTOMS,1417501-18000055592023-187546-1604295-1-2024,192515.4
Home Office,Home Office,29/01/2024,MINOR WORK,UKVIP - Visas Information & Passports,INTERSERVE (FACILITIES MANAGEMENT) LTD,1406165-357525/92941630-100369-3676758-1-2024,44121.1
Home Office,Home Office,29/01/2024,PRINT,UKVIP - Visas Information & Passports,THALES DIS UK LTD,1508411-101424000255-516500-151576681-1-2024,1515766.81
Home Office,Home Office,30/01/2024,COURIER COSTS,UKVIP - Visas Information & Passports,WHISTL UK LTD,1508443-IN13US24000295-57640-2864214-1-2024,28642.14
Home Office,Home Office,30/01/2024,COURIER COSTS,UKVIP - Visas Information & Passports,WHISTL UK LTD,1508443-IN13US24000322-57640-3147463-1-2024,31474.63
